Workbook

Sheet fiú (hidden)
B1: 101 m | C1: 100m | D1: 801 m | E1: 800 m | F1: Pont | G1: Távol | H1: Súlyl. | I1: Kisl. | J1: Pont | M1: Távol
B2: 9.98 | C2: 10 | D2: 00:01:42.380 | E2: 00:01:42.400 | F2: 300 | G2: 1.8 | H2: 3 | I2: 4 | J2: 0 | M2: 1.8 | O2: 180
B3: 10.0051 | C3: 10.024 | D3: 00:01:42.405 | E3: 00:01:42.752 | F3: 299 | G3: 1.82 | H3: 3.06 | I3: 4.36 | J3: 1 | M3: 1.82 | O3: 182
B4: 10.0291 | C4: 10.048 | D4: 00:01:42.757 | E4: 00:01:43.104 | F4: 298 | G4: 1.85 | H4: 3.12 | I4: 4.73 | J4: 2 | M4: 1.85 | O4: 185
B5: 10.0531 | C5: 10.072 | D5: 00:01:43.109 | E5: 00:01:43.456 | F5: 297 | G5: 1.87 | H5: 3.17 | I5: 5.09 | J5: 3 | M5: 1.87 | O5: 187
B6: 10.0771 | C6: 10.096 | D6: 00:01:43.461 | E6: 00:01:43.808 | F6: 296 | G6: 1.89 | H6: 3.23 | I6: 5.46 | J6: 4 | M6: 1.89 | O6: 189
B7: 10.1011 | C7: 10.12 | D7: 00:01:43.813 | E7: 00:01:44.160 | F7: 295 | G7: 1.92 | H7: 3.29 | I7: 5.82 | J7: 5 | M7: 1.92 | O7: 192
B8: 10.1251 | C8: 10.144 | D8: 00:01:44.165 | E8: 00:01:44.512 | F8: 294 | G8: 1.94 | H8: 3.35 | I8: 6.19 | J8: 6 | M8: 1.94 | O8: 194
B9: 10.1491 | C9: 10.168 | D9: 00:01:44.517 | E9: 00:01:44.864 | F9: 293 | G9: 1.96 | H9: 3.4 | I9: 6.55 | J9: 7 | M9: 1.96 | O9: 196
B10: 10.1731 | C10: 10.192 | D10: 00:01:44.869 | E10: 00:01:45.216 | F10: 292 | G10: 1.99 | H10: 3.46 | I10: 6.92 | J10: 8 | M10: 1.99 | O10: 199
B11: 10.1971 | C11: 10.216 | D11: 00:01:45.221 | E11: 00:01:45.568 | F11: 291 | G11: 2.01 | H11: 3.52 | I11: 7.28 | J11: 9 | M11: 2.01 | O11: 201
B12: 10.2211 | C12: 10.24 | D12: 00:01:45.573 | E12: 00:01:45.920 | F12: 290 | G12: 2.03 | H12: 3.58 | I12: 7.65 | J12: 10 | M12: 2.03 | O12: 203
B13: 10.2451 | C13: 10.264 | D13: 00:01:45.925 | E13: 00:01:46.272 | F13: 289 | G13: 2.06 | H13: 3.63 | I13: 8.01 | J13: 11 | M13: 2.06 | O13: 206
B14: 10.2691 | C14: 10.288 | D14: 00:01:46.277 | E14: 00:01:46.624 | F14: 288 | G14: 2.08 | H14: 3.69 | I14: 8.38 | J14: 12 | M14: 2.08 | O14: 208
B15: 10.2931 | C15: 10.312 | D15: 00:01:46.629 | E15: 00:01:46.976 | F15: 287 | G15: 2.1 | H15: 3.75 | I15: 8.74 | J15: 13 | M15: 2.1 | O15: 210
B16: 10.3171 | C16: 10.336 | D16: 00:01:46.981 | E16: 00:01:47.328 | F16: 286 | G16: 2.13 | H16: 3.81 | I16: 9.11 | J16: 14 | M16: 2.13 | O16: 213
B17: 10.3411 | C17: 10.36 | D17: 00:01:47.333 | E17: 00:01:47.680 | F17: 285 | G17: 2.15 | H17: 3.86 | I17: 9.47 | J17: 15 | M17: 2.15 | O17: 215
B18: 10.3651 | C18: 10.384 | D18: 00:01:47.685 | E18: 00:01:48.032 | F18: 284 | G18: 2.17 | H18: 3.92 | I18: 9.84 | J18: 16 | M18: 2.17 | O18: 217
B19: 10.3891 | C19: 10.408 | D19: 00:01:48.037 | E19: 00:01:48.384 | F19: 283 | G19: 2.2 | H19: 3.98 | I19: 10.2 | J19: 17 | M19: 2.2 | O19: 220
B20: 10.4131 | C20: 10.432 | D20: 00:01:48.389 | E20: 00:01:48.736 | F20: 282 | G20: 2.22 | H20: 4.04 | I20: 10.57 | J20: 18 | M20: 2.22 | O20: 222
B21: 10.4371 | C21: 10.456 | D21: 00:01:48.741 | E21: 00:01:49.088 | F21: 281 | G21: 2.24 | H21: 4.09 | I21: 10.93 | J21: 19 | M21: 2.24 | O21: 224
B22: 10.4611 | C22: 10.48 | D22: 00:01:49.093 | E22: 00:01:49.440 | F22: 280 | G22: 2.27 | H22: 4.15 | I22: 11.3 | J22: 20 | M22: 2.27 | O22: 227
B23: 10.4851 | C23: 10.504 | D23: 00:01:49.445 | E23: 00:01:49.792 | F23: 279 | G23: 2.29 | H23: 4.21 | I23: 11.66 | J23: 21 | M23: 2.29 | O23: 229
B24: 10.5091 | C24: 10.528 | D24: 00:01:49.797 | E24: 00:01:50.144 | F24: 278 | G24: 2.31 | H24: 4.27 | I24: 12.03 | J24: 22 | M24: 2.31 | O24: 231
B25: 10.5331 | C25: 10.552 | D25: 00:01:50.149 | E25: 00:01:50.496 | F25: 277 | G25: 2.34 | H25: 4.32 | I25: 12.39 | J25: 23 | M25: 2.34 | O25: 234
B26: 10.5571 | C26: 10.576 | D26: 00:01:50.501 | E26: 00:01:50.848 | F26: 276 | G26: 2.36 | H26: 4.38 | I26: 12.76 | J26: 24 | M26: 2.36 | O26: 236
B27: 10.5811 | C27: 10.6 | D27: 00:01:50.853 | E27: 00:01:51.200 | F27: 275 | G27: 2.39 | H27: 4.44 | I27: 13.12 | J27: 25 | M27: 2.39 | O27: 239
B28: 10.6051 | C28: 10.624 | D28: 00:01:51.205 | E28: 00:01:51.552 | F28: 274 | G28: 2.41 | H28: 4.5 | I28: 13.48 | J28: 26 | M28: 2.41 | O28: 241
B29: 10.6291 | C29: 10.648 | D29: 00:01:51.557 | E29: 00:01:51.904 | F29: 273 | G29: 2.43 | H29: 4.56 | I29: 13.85 | J29: 27 | M29: 2.43 | O29: 243
B30: 10.6531 | C30: 10.672 | D30: 00:01:51.909 | E30: 00:01:52.256 | F30: 272 | G30: 2.46 | H30: 4.61 | I30: 14.21 | J30: 28 | M30: 2.46 | O30: 246
B31: 10.6771 | C31: 10.696 | D31: 00:01:52.261 | E31: 00:01:52.608 | F31: 271 | G31: 2.48 | H31: 4.67 | I31: 14.58 | J31: 29 | M31: 2.48 | O31: 248
B32: 10.7011 | C32: 10.72 | D32: 00:01:52.613 | E32: 00:01:52.960 | F32: 270 | G32: 2.5 | H32: 4.73 | I32: 14.94 | J32: 30 | M32: 2.5 | O32: 250
B33: 10.7251 | C33: 10.744 | D33: 00:01:52.965 | E33: 00:01:53.312 | F33: 269 | G33: 2.53 | H33: 4.79 | I33: 15.31 | J33: 31 | M33: 2.53 | O33: 253
B34: 10.7491 | C34: 10.768 | D34: 00:01:53.317 | E34: 00:01:53.664 | F34: 268 | G34: 2.55 | H34: 4.84 | I34: 15.67 | J34: 32 | M34: 2.55 | O34: 255
B35: 10.7731 | C35: 10.792 | D35: 00:01:53.669 | E35: 00:01:54.016 | F35: 267 | G35: 2.57 | H35: 4.9 | I35: 16.04 | J35: 33 | M35: 2.57 | O35: 257
B36: 10.7971 | C36: 10.816 | D36: 00:01:54.021 | E36: 00:01:54.368 | F36: 266 | G36: 2.6 | H36: 4.96 | I36: 16.4 | J36: 34 | M36: 2.6 | O36: 260
B37: 10.8211 | C37: 10.84 | D37: 00:01:54.373 | E37: 00:01:54.720 | F37: 265 | G37: 2.62 | H37: 5.02 | I37: 16.77 | J37: 35 | M37: 2.62 | O37: 262
B38: 10.8451 | C38: 10.864 | D38: 00:01:54.725 | E38: 00:01:55.072 | F38: 264 | G38: 2.64 | H38: 5.07 | I38: 17.13 | J38: 36 | M38: 2.64 | O38: 264
B39: 10.8691 | C39: 10.888 | D39: 00:01:55.077 | E39: 00:01:55.424 | F39: 263 | G39: 2.67 | H39: 5.13 | I39: 17.5 | J39: 37 | M39: 2.67 | O39: 267
B40: 10.8931 | C40: 10.912 | D40: 00:01:55.429 | E40: 00:01:55.776 | F40: 262 | G40: 2.69 | H40: 5.19 | I40: 17.86 | J40: 38 | M40: 2.69 | O40: 269
B41: 10.9171 | C41: 10.936 | D41: 00:01:55.781 | E41: 00:01:56.128 | F41: 261 | G41: 2.71 | H41: 5.25 | I41: 18.23 | J41: 39 | M41: 2.71 | O41: 271
B42: 10.9411 | C42: 10.96 | D42: 00:01:56.133 | E42: 00:01:56.480 | F42: 260 | G42: 2.74 | H42: 5.3 | I42: 18.59 | J42: 40 | M42: 2.74 | O42: 274
B43: 10.9651 | C43: 10.984 | D43: 00:01:56.485 | E43: 00:01:56.832 | F43: 259 | G43: 2.76 | H43: 5.36 | I43: 18.96 | J43: 41 | M43: 2.76 | O43: 276
B44: 10.9891 | C44: 11.008 | D44: 00:01:56.837 | E44: 00:01:57.184 | F44: 258 | G44: 2.78 | H44: 5.42 | I44: 19.32 | J44: 42 | M44: 2.78 | O44: 278
B45: 11.0131 | C45: 11.032 | D45: 00:01:57.189 | E45: 00:01:57.536 | F45: 257 | G45: 2.81 | H45: 5.48 | I45: 19.69 | J45: 43 | M45: 2.81 | O45: 281
B46: 11.0371 | C46: 11.056 | D46: 00:01:57.541 | E46: 00:01:57.888 | F46: 256 | G46: 2.83 | H46: 5.53 | I46: 20.05 | J46: 44 | M46: 2.83 | O46: 283
B47: 11.0611 | C47: 11.08 | D47: 00:01:57.893 | E47: 00:01:58.240 | F47: 255 | G47: 2.85 | H47: 5.59 | I47: 20.42 | J47: 45 | M47: 2.85 | O47: 285
B48: 11.0851 | C48: 11.104 | D48: 00:01:58.245 | E48: 00:01:58.592 | F48: 254 | G48: 2.88 | H48: 5.65 | I48: 20.78 | J48: 46 | M48: 2.88 | O48: 288
B49: 11.1091 | C49: 11.128 | D49: 00:01:58.597 | E49: 00:01:58.944 | F49: 253 | G49: 2.9 | H49: 5.71 | I49: 21.15 | J49: 47 | M49: 2.9 | O49: 290
B50: 11.1331 | C50: 11.152 | D50: 00:01:58.949 | E50: 00:01:59.296 | F50: 252 | G50: 2.92 | H50: 5.76 | I50: 21.51 | J50: 48 | M50: 2.92 | O50: 292
B51: 11.1571 | C51: 11.176 | D51: 00:01:59.301 | E51: 00:01:59.648 | F51: 251 | G51: 2.95 | H51: 5.82 | I51: 21.88 | J51: 49 | M51: 2.95 | O51: 295
B52: 11.1811 | C52: 11.2 | D52: 00:01:59.653 | E52: 00:02:00 | F52: 250 | G52: 2.97 | H52: 5.88 | I52: 22.24 | J52: 50 | M52: 2.97 | O52: 297
B53: 11.2051 | C53: 11.23 | D53: 00:02:00.005 | E53: 00:02:00.352 | F53: 249 | G53: 2.99 | H53: 5.93 | I53: 22.57 | J53: 51 | M53: 2.99 | O53: 299
B54: 11.2351 | C54: 11.25 | D54: 00:02:00.357 | E54: 00:02:00.704 | F54: 248 | G54: 3.01 | H54: 5.99 | I54: 22.91 | J54: 52 | M54: 3.01 | O54: 301
B55: 11.2551 | C55: 11.28 | D55: 00:02:00.709 | E55: 00:02:01.056 | F55: 247 | G55: 3.03 | H55: 6.04 | I55: 23.24 | J55: 53 | M55: 3.03 | O55: 303
B56: 11.2851 | C56: 11.3 | D56: 00:02:01.061 | E56: 00:02:01.408 | F56: 246 | G56: 3.06 | H56: 6.09 | I56: 23.58 | J56: 54 | M56: 3.06 | O56: 306
B57: 11.3051 | C57: 11.33 | D57: 00:02:01.413 | E57: 00:02:01.760 | F57: 245 | G57: 3.08 | H57: 6.14 | I57: 23.91 | J57: 55 | M57: 3.08 | O57: 308
B58: 11.3351 | C58: 11.35 | D58: 00:02:01.765 | E58: 00:02:02.112 | F58: 244 | G58: 3.1 | H58: 6.2 | I58: 24.25 | J58: 56 | M58: 3.1 | O58: 310
B59: 11.3551 | C59: 11.38 | D59: 00:02:02.117 | E59: 00:02:02.464 | F59: 243 | G59: 3.12 | H59: 6.25 | I59: 24.58 | J59: 57 | M59: 3.12 | O59: 312
B60: 11.3851 | C60: 11.4 | D60: 00:02:02.469 | E60: 00:02:02.816 | F60: 242 | G60: 3.14 | H60: 6.3 | I60: 24.92 | J60: 58 | M60: 3.14 | O60: 314
B61: 11.4051 | C61: 11.43 | D61: 00:02:02.821 | E61: 00:02:03.168 | F61: 241 | G61: 3.16 | H61: 6.36 | I61: 25.25 | J61: 59 | M61: 3.16 | O61: 316
B62: 11.4351 | C62: 11.45 | D62: 00:02:03.173 | E62: 00:02:03.520 | F62: 240 | G62: 3.19 | H62: 6.41 | I62: 25.58 | J62: 60 | M62: 3.19 | O62: 319
B63: 11.4551 | C63: 11.48 | D63: 00:02:03.525 | E63: 00:02:03.872 | F63: 239 | G63: 3.21 | H63: 6.46 | I63: 25.92 | J63: 61 | M63: 3.21 | O63: 321
B64: 11.4851 | C64: 11.5 | D64: 00:02:03.877 | E64: 00:02:04.224 | F64: 238 | G64: 3.23 | H64: 6.51 | I64: 26.25 | J64: 62 | M64: 3.23 | O64: 323
B65: 11.5051 | C65: 11.53 | D65: 00:02:04.229 | E65: 00:02:04.576 | F65: 237 | G65: 3.25 | H65: 6.57 | I65: 26.59 | J65: 63 | M65: 3.25 | O65: 325
B66: 11.5351 | C66: 11.55 | D66: 00:02:04.581 | E66: 00:02:04.928 | F66: 236 | G66: 3.27 | H66: 6.62 | I66: 26.92 | J66: 64 | M66: 3.27 | O66: 327
B67: 11.5551 | C67: 11.58 | D67: 00:02:04.933 | E67: 00:02:05.280 | F67: 235 | G67: 3.29 | H67: 6.67 | I67: 27.26 | J67: 65 | M67: 3.29 | O67: 329
B68: 11.5851 | C68: 11.6 | D68: 00:02:05.285 | E68: 00:02:05.632 | F68: 234 | G68: 3.32 | H68: 6.72 | I68: 27.59 | J68: 66 | M68: 3.32 | O68: 332
B69: 11.6051 | C69: 11.63 | D69: 00:02:05.637 | E69: 00:02:05.984 | F69: 233 | G69: 3.34 | H69: 6.78 | I69: 27.92 | J69: 67 | M69: 3.34 | O69: 334
B70: 11.6351 | C70: 11.65 | D70: 00:02:05.989 | E70: 00:02:06.336 | F70: 232 | G70: 3.36 | H70: 6.83 | I70: 28.26 | J70: 68 | M70: 3.36 | O70: 336
B71: 11.6551 | C71: 11.68 | D71: 00:02:06.341 | E71: 00:02:06.688 | F71: 231 | G71: 3.38 | H71: 6.88 | I71: 28.59 | J71: 69 | M71: 3.38 | O71: 338
B72: 11.6851 | C72: 11.7 | D72: 00:02:06.693 | E72: 00:02:07.040 | F72: 230 | G72: 3.4 | H72: 6.94 | I72: 28.93 | J72: 70 | M72: 3.4 | O72: 340
B73: 11.7051 | C73: 11.73 | D73: 00:02:07.045 | E73: 00:02:07.392 | F73: 229 | G73: 3.42 | H73: 6.99 | I73: 29.26 | J73: 71 | M73: 3.42 | O73: 342
B74: 11.7351 | C74: 11.75 | D74: 00:02:07.397 | E74: 00:02:07.744 | F74: 228 | G74: 3.45 | H74: 7.04 | I74: 29.6 | J74: 72 | M74: 3.45 | O74: 345
B75: 11.7551 | C75: 11.78 | D75: 00:02:07.749 | E75: 00:02:08.096 | F75: 227 | G75: 3.47 | H75: 7.09 | I75: 29.93 | J75: 73 | M75: 3.47 | O75: 347
B76: 11.7851 | C76: 11.8 | D76: 00:02:08.101 | E76: 00:02:08.448 | F76: 226 | G76: 3.49 | H76: 7.15 | I76: 30.27 | J76: 74 | M76: 3.49 | O76: 349
B77: 11.8051 | C77: 11.83 | D77: 00:02:08.453 | E77: 00:02:08.800 | F77: 225 | G77: 3.51 | H77: 7.2 | I77: 30.6 | J77: 75 | M77: 3.51 | O77: 351
B78: 11.8351 | C78: 11.85 | D78: 00:02:08.805 | E78: 00:02:09.152 | F78: 224 | G78: 3.53 | H78: 7.25 | I78: 30.93 | J78: 76 | M78: 3.53 | O78: 353
B79: 11.8551 | C79: 11.88 | D79: 00:02:09.157 | E79: 00:02:09.504 | F79: 223 | G79: 3.55 | H79: 7.31 | I79: 31.27 | J79: 77 | M79: 3.55 | O79: 355
B80: 11.8851 | C80: 11.9 | D80: 00:02:09.509 | E80: 00:02:09.856 | F80: 222 | G80: 3.57 | H80: 7.36 | I80: 31.6 | J80: 78 | M80: 3.57 | O80: 357
B81: 11.9051 | C81: 11.93 | D81: 00:02:09.861 | E81: 00:02:10.208 | F81: 221 | G81: 3.6 | H81: 7.41 | I81: 31.94 | J81: 79 | M81: 3.6 | O81: 360
B82: 11.9351 | C82: 11.95 | D82: 00:02:10.213 | E82: 00:02:10.560 | F82: 220 | G82: 3.62 | H82: 7.46 | I82: 32.27 | J82: 80 | M82: 3.62 | O82: 362
B83: 11.9551 | C83: 11.98 | D83: 00:02:10.565 | E83: 00:02:10.912 | F83: 219 | G83: 3.64 | H83: 7.52 | I83: 32.61 | J83: 81 | M83: 3.64 | O83: 364
B84: 11.9851 | C84: 12 | D84: 00:02:10.917 | E84: 00:02:11.264 | F84: 218 | G84: 3.66 | H84: 7.57 | I84: 32.94 | J84: 82 | M84: 3.66 | O84: 366
B85: 12.0051 | C85: 12.03 | D85: 00:02:11.269 | E85: 00:02:11.616 | F85: 217 | G85: 3.68 | H85: 7.62 | I85: 33.28 | J85: 83 | M85: 3.68 | O85: 368
B86: 12.0351 | C86: 12.05 | D86: 00:02:11.621 | E86: 00:02:11.968 | F86: 216 | G86: 3.7 | H86: 7.68 | I86: 33.61 | J86: 84 | M86: 3.7 | O86: 370
B87: 12.0551 | C87: 12.08 | D87: 00:02:11.973 | E87: 00:02:12.320 | F87: 215 | G87: 3.73 | H87: 7.73 | I87: 33.94 | J87: 85 | M87: 3.73 | O87: 373
B88: 12.0851 | C88: 12.1 | D88: 00:02:12.325 | E88: 00:02:12.672 | F88: 214 | G88: 3.75 | H88: 7.78 | I88: 34.28 | J88: 86 | M88: 3.75 | O88: 375
B89: 12.1051 | C89: 12.13 | D89: 00:02:12.677 | E89: 00:02:13.024 | F89: 213 | G89: 3.77 | H89: 7.83 | I89: 34.61 | J89: 87 | M89: 3.77 | O89: 377
B90: 12.1351 | C90: 12.15 | D90: 00:02:13.029 | E90: 00:02:13.376 | F90: 212 | G90: 3.79 | H90: 7.89 | I90: 34.95 | J90: 88 | M90: 3.79 | O90: 379
B91: 12.1551 | C91: 12.18 | D91: 00:02:13.381 | E91: 00:02:13.728 | F91: 211 | G91: 3.81 | H91: 7.94 | I91: 35.28 | J91: 89 | M91: 3.81 | O91: 381
B92: 12.1851 | C92: 12.2 | D92: 00:02:13.733 | E92: 00:02:14.080 | F92: 210 | G92: 3.83 | H92: 7.99 | I92: 35.62 | J92: 90 | M92: 3.83 | O92: 383
B93: 12.2051 | C93: 12.23 | D93: 00:02:14.085 | E93: 00:02:14.432 | F93: 209 | G93: 3.86 | H93: 8.04 | I93: 35.95 | J93: 91 | M93: 3.86 | O93: 386
B94: 12.2351 | C94: 12.25 | D94: 00:02:14.437 | E94: 00:02:14.784 | F94: 208 | G94: 3.88 | H94: 8.1 | I94: 36.28 | J94: 92 | M94: 3.88 | O94: 388
B95: 12.2551 | C95: 12.28 | D95: 00:02:14.789 | E95: 00:02:15.136 | F95: 207 | G95: 3.9 | H95: 8.15 | I95: 36.62 | J95: 93 | M95: 3.9 | O95: 390
B96: 12.2851 | C96: 12.3 | D96: 00:02:15.141 | E96: 00:02:15.488 | F96: 206 | G96: 3.92 | H96: 8.2 | I96: 36.95 | J96: 94 | M96: 3.92 | O96: 392
B97: 12.3051 | C97: 12.33 | D97: 00:02:15.493 | E97: 00:02:15.840 | F97: 205 | G97: 3.94 | H97: 8.26 | I97: 37.29 | J97: 95 | M97: 3.94 | O97: 394
B98: 12.3351 | C98: 12.35 | D98: 00:02:15.845 | E98: 00:02:16.192 | F98: 204 | G98: 3.96 | H98: 8.31 | I98: 37.62 | J98: 96 | M98: 3.96 | O98: 396
B99: 12.3551 | C99: 12.38 | D99: 00:02:16.197 | E99: 00:02:16.544 | F99: 203 | G99: 3.99 | H99: 8.36 | I99: 37.96 | J99: 97 | M99: 3.99 | O99: 399
B100: 12.3851 | C100: 12.4 | D100: 00:02:16.549 | E100: 00:02:16.896 | F100: 202 | G100: 4.01 | H100: 8.41 | I100: 38.29 | J100: 98 | M100: 4.01 | O100: 401
B101: 12.4051 | C101: 12.43 | D101: 00:02:16.901 | E101: 00:02:17.248 | F101: 201 | G101: 4.03 | H101: 8.47 | I101: 38.63 | J101: 99 | M101: 4.03 | O101: 403
B102: 12.4351 | C102: 12.45 | D102: 00:02:17.253 | E102: 00:02:17.600 | F102: 200 | G102: 4.05 | H102: 8.52 | I102: 38.96 | J102: 100 | M102: 4.05 | O102: 405
B103: 12.4551 | C103: 12.48 | D103: 00:02:17.605 | E103: 00:02:17.996 | F103: 199 | G103: 4.07 | H103: 8.57 | I103: 39.26 | J103: 101 | M103: 4.07 | O103: 407
B104: 12.4851 | C104: 12.51 | D104: 00:02:18.001 | E104: 00:02:18.392 | F104: 198 | G104: 4.09 | H104: 8.62 | I104: 39.57 | J104: 102 | M104: 4.09 | O104: 409
B105: 12.5151 | C105: 12.53 | D105: 00:02:18.397 | E105: 00:02:18.788 | F105: 197 | G105: 4.11 | H105: 8.66 | I105: 39.87 | J105: 103 | M105: 4.11 | O105: 411
B106: 12.5351 | C106: 12.56 | D106: 00:02:18.793 | E106: 00:02:19.184 | F106: 196 | G106: 4.13 | H106: 8.71 | I106: 40.18 | J106: 104 | M106: 4.13 | O106: 413
B107: 12.5651 | C107: 12.59 | D107: 00:02:19.189 | E107: 00:02:19.580 | F107: 195 | G107: 4.15 | H107: 8.76 | I107: 40.48 | J107: 105 | M107: 4.15 | O107: 415
B108: 12.5951 | C108: 12.62 | D108: 00:02:19.585 | E108: 00:02:19.976 | F108: 194 | G108: 4.17 | H108: 8.81 | I108: 40.78 | J108: 106 | M108: 4.17 | O108: 417
B109: 12.6251 | C109: 12.65 | D109: 00:02:19.981 | E109: 00:02:20.372 | F109: 193 | G109: 4.19 | H109: 8.86 | I109: 41.09 | J109: 107 | M109: 4.19 | O109: 419
B110: 12.6551 | C110: 12.67 | D110: 00:02:20.377 | E110: 00:02:20.768 | F110: 192 | G110: 4.21 | H110: 8.9 | I110: 41.39 | J110: 108 | M110: 4.21 | O110: 421
B111: 12.6751 | C111: 12.7 | D111: 00:02:20.773 | E111: 00:02:21.164 | F111: 191 | G111: 4.23 | H111: 8.95 | I111: 41.7 | J111: 109 | M111: 4.23 | O111: 423
B112: 12.7051 | C112: 12.73 | D112: 00:02:21.169 | E112: 00:02:21.560 | F112: 190 | G112: 4.25 | H112: 9 | I112: 42 | J112: 110 | M112: 4.25 | O112: 425
B113: 12.7351 | C113: 12.76 | D113: 00:02:21.565 | E113: 00:02:21.956 | F113: 189 | G113: 4.27 | H113: 9.05 | I113: 42.3 | J113: 111 | M113: 4.27 | O113: 427
B114: 12.7651 | C114: 12.79 | D114: 00:02:21.961 | E114: 00:02:22.352 | F114: 188 | G114: 4.29 | H114: 9.1 | I114: 42.61 | J114: 112 | M114: 4.29 | O114: 429
B115: 12.7951 | C115: 12.81 | D115: 00:02:22.357 | E115: 00:02:22.748 | F115: 187 | G115: 4.3 | H115: 9.14 | I115: 42.91 | J115: 113 | M115: 4.3 | O115: 430
B116: 12.8151 | C116: 12.84 | D116: 00:02:22.753 | E116: 00:02:23.144 | F116: 186 | G116: 4.32 | H116: 9.19 | I116: 43.22 | J116: 114 | M116: 4.32 | O116: 432
B117: 12.8451 | C117: 12.87 | D117: 00:02:23.149 | E117: 00:02:23.540 | F117: 185 | G117: 4.34 | H117: 9.24 | I117: 43.52 | J117: 115 | M117: 4.34 | O117: 434
B118: 12.8751 | C118: 12.9 | D118: 00:02:23.545 | E118: 00:02:23.936 | F118: 184 | G118: 4.36 | H118: 9.29 | I118: 43.82 | J118: 116 | M118: 4.36 | O118: 436
B119: 12.9051 | C119: 12.93 | D119: 00:02:23.941 | E119: 00:02:24.332 | F119: 183 | G119: 4.38 | H119: 9.34 | I119: 44.13 | J119: 117 | M119: 4.38 | O119: 438
B120: 12.9351 | C120: 12.95 | D120: 00:02:24.337 | E120: 00:02:24.728 | F120: 182 | G120: 4.4 | H120: 9.38 | I120: 44.43 | J120: 118 | M120: 4.4 | O120: 440
B121: 12.9551 | C121: 12.98 | D121: 00:02:24.733 | E121: 00:02:25.124 | F121: 181 | G121: 4.42 | H121: 9.43 | I121: 44.74 | J121: 119 | M121: 4.42 | O121: 442
B122: 12.9851 | C122: 13.01 | D122: 00:02:25.129 | E122: 00:02:25.520 | F122: 180 | G122: 4.44 | H122: 9.48 | I122: 45.04 | J122: 120 | M122: 4.44 | O122: 444
B123: 13.0151 | C123: 13.04 | D123: 00:02:25.525 | E123: 00:02:25.916 | F123: 179 | G123: 4.46 | H123: 9.53 | I123: 45.34 | J123: 121 | M123: 4.46 | O123: 446
B124: 13.0451 | C124: 13.07 | D124: 00:02:25.921 | E124: 00:02:26.312 | F124: 178 | G124: 4.48 | H124: 9.58 | I124: 45.65 | J124: 122 | M124: 4.48 | O124: 448
B125: 13.0751 | C125: 13.09 | D125: 00:02:26.317 | E125: 00:02:26.708 | F125: 177 | G125: 4.5 | H125: 9.62 | I125: 45.95 | J125: 123 | M125: 4.5 | O125: 450
B126: 13.0951 | C126: 13.12 | D126: 00:02:26.713 | E126: 00:02:27.104 | F126: 176 | G126: 4.52 | H126: 9.67 | I126: 46.26 | J126: 124 | M126: 4.52 | O126: 452
B127: 13.1251 | C127: 13.15 | D127: 00:02:27.109 | E127: 00:02:27.500 | F127: 175 | G127: 4.54 | H127: 9.72 | I127: 46.56 | J127: 125 | M127: 4.54 | O127: 454
B128: 13.1551 | C128: 13.18 | D128: 00:02:27.505 | E128: 00:02:27.896 | F128: 174 | G128: 4.56 | H128: 9.77 | I128: 46.86 | J128: 126 | M128: 4.56 | O128: 456
B129: 13.1851 | C129: 13.21 | D129: 00:02:27.901 | E129: 00:02:28.292 | F129: 173 | G129: 4.58 | H129: 9.82 | I129: 47.17 | J129: 127 | M129: 4.58 | O129: 458
B130: 13.2151 | C130: 13.23 | D130: 00:02:28.297 | E130: 00:02:28.688 | F130: 172 | G130: 4.6 | H130: 9.86 | I130: 47.47 | J130: 128 | M130: 4.6 | O130: 460
B131: 13.2351 | C131: 13.26 | D131: 00:02:28.693 | E131: 00:02:29.084 | F131: 171 | G131: 4.62 | H131: 9.91 | I131: 47.78 | J131: 129 | M131: 4.62 | O131: 462
B132: 13.2651 | C132: 13.29 | D132: 00:02:29.089 | E132: 00:02:29.480 | F132: 170 | G132: 4.64 | H132: 9.96 | I132: 48.08 | J132: 130 | M132: 4.64 | O132: 464
B133: 13.2951 | C133: 13.32 | D133: 00:02:29.485 | E133: 00:02:29.876 | F133: 169 | G133: 4.66 | H133: 10.01 | I133: 48.38 | J133: 131 | M133: 4.66 | O133: 466
B134: 13.3251 | C134: 13.35 | D134: 00:02:29.881 | E134: 00:02:30.272 | F134: 168 | G134: 4.68 | H134: 10.06 | I134: 48.69 | J134: 132 | M134: 4.68 | O134: 468
B135: 13.3551 | C135: 13.37 | D135: 00:02:30.277 | E135: 00:02:30.668 | F135: 167 | G135: 4.7 | H135: 10.1 | I135: 48.99 | J135: 133 | M135: 4.7 | O135: 470
B136: 13.3751 | C136: 13.4 | D136: 00:02:30.673 | E136: 00:02:31.064 | F136: 166 | G136: 4.72 | H136: 10.15 | I136: 49.3 | J136: 134 | M136: 4.72 | O136: 472
B137: 13.4051 | C137: 13.43 | D137: 00:02:31.069 | E137: 00:02:31.460 | F137: 165 | G137: 4.74 | H137: 10.2 | I137: 49.6 | J137: 135 | M137: 4.74 | O137: 474
B138: 13.4351 | C138: 13.46 | D138: 00:02:31.465 | E138: 00:02:31.856 | F138: 164 | G138: 4.76 | H138: 10.25 | I138: 49.9 | J138: 136 | M138: 4.76 | O138: 476
B139: 13.4651 | C139: 13.49 | D139: 00:02:31.861 | E139: 00:02:32.252 | F139: 163 | G139: 4.78 | H139: 10.3 | I139: 50.21 | J139: 137 | M139: 4.78 | O139: 478
B140: 13.4951 | C140: 13.51 | D140: 00:02:32.257 | E140: 00:02:32.648 | F140: 162 | G140: 4.79 | H140: 10.34 | I140: 50.51 | J140: 138 | M140: 4.79 | O140: 479
B141: 13.5151 | C141: 13.54 | D141: 00:02:32.653 | E141: 00:02:33.044 | F141: 161 | G141: 4.81 | H141: 10.39 | I141: 50.82 | J141: 139 | M141: 4.81 | O141: 481
B142: 13.5451 | C142: 13.57 | D142: 00:02:33.049 | E142: 00:02:33.440 | F142: 160 | G142: 4.83 | H142: 10.44 | I142: 51.12 | J142: 140 | M142: 4.83 | O142: 483
B143: 13.5751 | C143: 13.6 | D143: 00:02:33.445 | E143: 00:02:33.836 | F143: 159 | G143: 4.85 | H143: 10.49 | I143: 51.42 | J143: 141 | M143: 4.85 | O143: 485
B144: 13.6051 | C144: 13.63 | D144: 00:02:33.841 | E144: 00:02:34.232 | F144: 158 | G144: 4.87 | H144: 10.54 | I144: 51.73 | J144: 142 | M144: 4.87 | O144: 487
B145: 13.6351 | C145: 13.65 | D145: 00:02:34.237 | E145: 00:02:34.628 | F145: 157 | G145: 4.89 | H145: 10.58 | I145: 52.03 | J145: 143 | M145: 4.89 | O145: 489
B146: 13.6551 | C146: 13.68 | D146: 00:02:34.633 | E146: 00:02:35.024 | F146: 156 | G146: 4.91 | H146: 10.63 | I146: 52.34 | J146: 144 | M146: 4.91 | O146: 491
B147: 13.6851 | C147: 13.71 | D147: 00:02:35.029 | E147: 00:02:35.420 | F147: 155 | G147: 4.93 | H147: 10.68 | I147: 52.64 | J147: 145 | M147: 4.93 | O147: 493
B148: 13.7151 | C148: 13.74 | D148: 00:02:35.425 | E148: 00:02:35.816 | F148: 154 | G148: 4.95 | H148: 10.73 | I148: 52.94 | J148: 146 | M148: 4.95 | O148: 495
B149: 13.7451 | C149: 13.77 | D149: 00:02:35.821 | E149: 00:02:36.212 | F149: 153 | G149: 4.97 | H149: 10.78 | I149: 53.25 | J149: 147 | M149: 4.97 | O149: 497
B150: 13.7751 | C150: 13.79 | D150: 00:02:36.217 | E150: 00:02:36.608 | F150: 152 | G150: 4.99 | H150: 10.82 | I150: 53.55 | J150: 148 | M150: 4.99 | O150: 499
B151: 13.7951 | C151: 13.82 | D151: 00:02:36.613 | E151: 00:02:37.004 | F151: 151 | G151: 5.01 | H151: 10.87 | I151: 53.86 | J151: 149 | M151: 5.01 | O151: 501
B152: 13.8251 | C152: 13.85 | D152: 00:02:37.009 | E152: 00:02:37.400 | F152: 150 | G152: 5.03 | H152: 10.92 | I152: 54.16 | J152: 150 | M152: 5.03 | O152: 503
B153: 13.8551 | C153: 13.88 | D153: 00:02:37.405 | E153: 00:02:37.840 | F153: 149 | G153: 5.05 | H153: 10.96 | I153: 54.43 | J153: 151 | M153: 5.05 | O153: 505
B154: 13.8851 | C154: 13.91 | D154: 00:02:37.845 | E154: 00:02:38.280 | F154: 148 | G154: 5.07 | H154: 11.01 | I154: 54.71 | J154: 152 | M154: 5.07 | O154: 507
B155: 13.9151 | C155: 13.94 | D155: 00:02:38.285 | E155: 00:02:38.720 | F155: 147 | G155: 5.08 | H155: 11.05 | I155: 54.98 | J155: 153 | M155: 5.08 | O155: 508
B156: 13.9451 | C156: 13.97 | D156: 00:02:38.725 | E156: 00:02:39.160 | F156: 146 | G156: 5.1 | H156: 11.09 | I156: 55.25 | J156: 154 | M156: 5.1 | O156: 510
B157: 13.9751 | C157: 14.01 | D157: 00:02:39.165 | E157: 00:02:39.600 | F157: 145 | G157: 5.12 | H157: 11.14 | I157: 55.53 | J157: 155 | M157: 5.12 | O157: 512
B158: 14.0151 | C158: 14.04 | D158: 00:02:39.605 | E158: 00:02:40.040 | F158: 144 | G158: 5.14 | H158: 11.18 | I158: 55.8 | J158: 156 | M158: 5.14 | O158: 514
B159: 14.0451 | C159: 14.07 | D159: 00:02:40.045 | E159: 00:02:40.480 | F159: 143 | G159: 5.15 | H159: 11.22 | I159: 56.08 | J159: 157 | M159: 5.15 | O159: 515
B160: 14.0751 | C160: 14.1 | D160: 00:02:40.485 | E160: 00:02:40.920 | F160: 142 | G160: 5.17 | H160: 11.27 | I160: 56.35 | J160: 158 | M160: 5.17 | O160: 517
B161: 14.1051 | C161: 14.13 | D161: 00:02:40.925 | E161: 00:02:41.360 | F161: 141 | G161: 5.19 | H161: 11.31 | I161: 56.62 | J161: 159 | M161: 5.19 | O161: 519
B162: 14.1351 | C162: 14.16 | D162: 00:02:41.365 | E162: 00:02:41.800 | F162: 140 | G162: 5.21 | H162: 11.35 | I162: 56.9 | J162: 160 | M162: 5.21 | O162: 521
B163: 14.1651 | C163: 14.19 | D163: 00:02:41.805 | E163: 00:02:42.240 | F163: 139 | G163: 5.22 | H163: 11.4 | I163: 57.17 | J163: 161 | M163: 5.22 | O163: 522
B164: 14.1951 | C164: 14.22 | D164: 00:02:42.245 | E164: 00:02:42.680 | F164: 138 | G164: 5.24 | H164: 11.44 | I164: 57.44 | J164: 162 | M164: 5.24 | O164: 524
B165: 14.2251 | C165: 14.26 | D165: 00:02:42.685 | E165: 00:02:43.120 | F165: 137 | G165: 5.26 | H165: 11.48 | I165: 57.72 | J165: 163 | M165: 5.26 | O165: 526
B166: 14.2651 | C166: 14.29 | D166: 00:02:43.125 | E166: 00:02:43.560 | F166: 136 | G166: 5.28 | H166: 11.52 | I166: 57.99 | J166: 164 | M166: 5.28 | O166: 528
B167: 14.2951 | C167: 14.32 | D167: 00:02:43.565 | E167: 00:02:44 | F167: 135 | G167: 5.29 | H167: 11.57 | I167: 58.26 | J167: 165 | M167: 5.29 | O167: 529
B168: 14.3251 | C168: 14.35 | D168: 00:02:44.005 | E168: 00:02:44.440 | F168: 134 | G168: 5.31 | H168: 11.61 | I168: 58.54 | J168: 166 | M168: 5.31 | O168: 531
B169: 14.3551 | C169: 14.38 | D169: 00:02:44.445 | E169: 00:02:44.880 | F169: 133 | G169: 5.33 | H169: 11.65 | I169: 58.81 | J169: 167 | M169: 5.33 | O169: 533
B170: 14.3851 | C170: 14.41 | D170: 00:02:44.885 | E170: 00:02:45.320 | F170: 132 | G170: 5.35 | H170: 11.7 | I170: 59.08 | J170: 168 | M170: 5.35 | O170: 535
B171: 14.4151 | C171: 14.44 | D171: 00:02:45.325 | E171: 00:02:45.760 | F171: 131 | G171: 5.36 | H171: 11.74 | I171: 59.36 | J171: 169 | M171: 5.36 | O171: 536
B172: 14.4451 | C172: 14.47 | D172: 00:02:45.765 | E172: 00:02:46.200 | F172: 130 | G172: 5.38 | H172: 11.78 | I172: 59.63 | J172: 170 | M172: 5.38 | O172: 538
B173: 14.4751 | C173: 14.51 | D173: 00:02:46.205 | E173: 00:02:46.640 | F173: 129 | G173: 5.4 | H173: 11.83 | I173: 59.91 | J173: 171 | M173: 5.4 | O173: 540
B174: 14.5151 | C174: 14.54 | D174: 00:02:46.645 | E174: 00:02:47.080 | F174: 128 | G174: 5.42 | H174: 11.87 | I174: 60.18 | J174: 172 | M174: 5.42 | O174: 542
B175: 14.5451 | C175: 14.57 | D175: 00:02:47.085 | E175: 00:02:47.520 | F175: 127 | G175: 5.43 | H175: 11.91 | I175: 60.45 | J175: 173 | M175: 5.43 | O175: 543
B176: 14.5751 | C176: 14.6 | D176: 00:02:47.525 | E176: 00:02:47.960 | F176: 126 | G176: 5.45 | H176: 11.96 | I176: 60.73 | J176: 174 | M176: 5.45 | O176: 545
B177: 14.6051 | C177: 14.63 | D177: 00:02:47.965 | E177: 00:02:48.400 | F177: 125 | G177: 5.47 | H177: 12 | I177: 61 | J177: 175 | M177: 5.47 | O177: 547
B178: 14.6351 | C178: 14.66 | D178: 00:02:48.405 | E178: 00:02:48.840 | F178: 124 | G178: 5.49 | H178: 12.04 | I178: 61.27 | J178: 176 | M178: 5.49 | O178: 549
B179: 14.6651 | C179: 14.69 | D179: 00:02:48.845 | E179: 00:02:49.280 | F179: 123 | G179: 5.51 | H179: 12.09 | I179: 61.55 | J179: 177 | M179: 5.51 | O179: 551
B180: 14.6951 | C180: 14.72 | D180: 00:02:49.285 | E180: 00:02:49.720 | F180: 122 | G180: 5.52 | H180: 12.13 | I180: 61.82 | J180: 178 | M180: 5.52 | O180: 552
B181: 14.7251 | C181: 14.75 | D181: 00:02:49.725 | E181: 00:02:50.160 | F181: 121 | G181: 5.54 | H181: 12.17 | I181: 62.09 | J181: 179 | M181: 5.54 | O181: 554
B182: 14.7551 | C182: 14.79 | D182: 00:02:50.165 | E182: 00:02:50.600 | F182: 120 | G182: 5.56 | H182: 12.22 | I182: 62.37 | J182: 180 | M182: 5.56 | O182: 556
B183: 14.7951 | C183: 14.82 | D183: 00:02:50.605 | E183: 00:02:51.040 | F183: 119 | G183: 5.58 | H183: 12.26 | I183: 62.64 | J183: 181 | M183: 5.58 | O183: 558
B184: 14.8251 | C184: 14.85 | D184: 00:02:51.045 | E184: 00:02:51.480 | F184: 118 | G184: 5.59 | H184: 12.3 | I184: 62.92 | J184: 182 | M184: 5.59 | O184: 559
B185: 14.8551 | C185: 14.88 | D185: 00:02:51.485 | E185: 00:02:51.920 | F185: 117 | G185: 5.61 | H185: 12.35 | I185: 63.19 | J185: 183 | M185: 5.61 | O185: 561
B186: 14.8851 | C186: 14.91 | D186: 00:02:51.925 | E186: 00:02:52.360 | F186: 116 | G186: 5.63 | H186: 12.39 | I186: 63.46 | J186: 184 | M186: 5.63 | O186: 563
B187: 14.9151 | C187: 14.94 | D187: 00:02:52.365 | E187: 00:02:52.800 | F187: 115 | G187: 5.65 | H187: 12.43 | I187: 63.74 | J187: 185 | M187: 5.65 | O187: 565
B188: 14.9451 | C188: 14.97 | D188: 00:02:52.805 | E188: 00:02:53.240 | F188: 114 | G188: 5.66 | H188: 12.48 | I188: 64.01 | J188: 186 | M188: 5.66 | O188: 566
B189: 14.9751 | C189: 15 | D189: 00:02:53.245 | E189: 00:02:53.680 | F189: 113 | G189: 5.68 | H189: 12.52 | I189: 64.28 | J189: 187 | M189: 5.68 | O189: 568
B190: 15.0051 | C190: 15.04 | D190: 00:02:53.685 | E190: 00:02:54.120 | F190: 112 | G190: 5.7 | H190: 12.56 | I190: 64.56 | J190: 188 | M190: 5.7 | O190: 570
B191: 15.0451 | C191: 15.07 | D191: 00:02:54.125 | E191: 00:02:54.560 | F191: 111 | G191: 5.72 | H191: 12.6 | I191: 64.83 | J191: 189 | M191: 5.72 | O191: 572
B192: 15.0751 | C192: 15.1 | D192: 00:02:54.565 | E192: 00:02:55 | F192: 110 | G192: 5.73 | H192: 12.65 | I192: 65.1 | J192: 190 | M192: 5.73 | O192: 573
B193: 15.1051 | C193: 15.13 | D193: 00:02:55.005 | E193: 00:02:55.440 | F193: 109 | G193: 5.75 | H193: 12.69 | I193: 65.38 | J193: 191 | M193: 5.75 | O193: 575
B194: 15.1351 | C194: 15.16 | D194: 00:02:55.445 | E194: 00:02:55.880 | F194: 108 | G194: 5.77 | H194: 12.73 | I194: 65.65 | J194: 192 | M194: 5.77 | O194: 577
B195: 15.1651 | C195: 15.19 | D195: 00:02:55.885 | E195: 00:02:56.320 | F195: 107 | G195: 5.79 | H195: 12.78 | I195: 65.92 | J195: 193 | M195: 5.79 | O195: 579
B196: 15.1951 | C196: 15.22 | D196: 00:02:56.325 | E196: 00:02:56.760 | F196: 106 | G196: 5.8 | H196: 12.82 | I196: 66.2 | J196: 194 | M196: 5.8 | O196: 580
B197: 15.2251 | C197: 15.25 | D197: 00:02:56.765 | E197: 00:02:57.200 | F197: 105 | G197: 5.82 | H197: 12.86 | I197: 66.47 | J197: 195 | M197: 5.82 | O197: 582
B198: 15.2551 | C198: 15.29 | D198: 00:02:57.205 | E198: 00:02:57.640 | F198: 104 | G198: 5.84 | H198: 12.91 | I198: 66.75 | J198: 196 | M198: 5.84 | O198: 584
B199: 15.2951 | C199: 15.32 | D199: 00:02:57.645 | E199: 00:02:58.080 | F199: 103 | G199: 5.86 | H199: 12.95 | I199: 67.02 | J199: 197 | M199: 5.86 | O199: 586
B200: 15.3251 | C200: 15.35 | D200: 00:02:58.085 | E200: 00:02:58.520 | F200: 102 | G200: 5.87 | H200: 12.99 | I200: 67.29 | J200: 198 | M200: 5.87 | O200: 587
... 102 more rows

Sheet Be
A1: IV. korcsoport FIÚ Összetett verseny
A3: Név | B3: Sz.év | C3: 100 m | E3: Távolugrás | G3: Klabdahajítás | I3: Súlylökés | K3: 800 m | M3: Összpont | N3: helyezés | O3: Iskola
A4: Kiss Bendegúz | B4: 2009 | C4: 12.4 | D4: =IF(C4<6.19,0,VLOOKUP(C4,rfut,5,TRUE)) -> 202 | E4: 5.85 | F4: =IF(E4<1.79,0,VLOOKUP(E4,távol,4,TRUE)) -> 196 | G4: 41.41 | H4: =IF(G4<4,0,VLOOKUP(G4,kisl,2,TRUE)) -> 108 | I4: 10.33 | J4: =IF(I4<3,0,VLOOKUP(I4,súly,3,TRUE)) -> 137 | K4: 00:02:26.100 | L4: =IF(K4<fiú!$D$2,0,VLOOKUP(K4,hfut,3,TRUE)) -> 178 | M4: =SUM(D4,F4,H4,L4,J4) -> 821 | N4: =RANK(M4,Egyéni!$N$3:$N$156,0) -> 2 | O4: PTE Gyakorló Ált. Isk.
A5: Tojzán Zádor | B5: 2008 | C5: 12.4 | D5: 202 | E5: 5.65 | F5: 185 | G5: 48.48 | H5: 131 | I5: 11.79 | J5: 170 | K5: 00:02:28.100 | L5: =IF(K5<fiú!$D$2,0,VLOOKUP(K5,hfut,3,TRUE)) -> 173 | M5: =SUM(D5,F5,H5,L5,J5) -> 861 | N5: =RANK(M5,Egyéni!$N$3:$N$156,0) -> 1 | O5: Szekszárd, Garay
A6: Lakatos-Lamm Bence | B6: 2009 | C6: 12.4 | D6: 202 | E6: 5.78 | F6: 192 | G6: 48.92 | H6: 132 | I6: 7.78 | J6: 86 | K6: 00:02:39 | L6: =IF(K6<fiú!$D$2,0,VLOOKUP(K6,hfut,3,TRUE)) -> 146 | M6: 758 | N6: =RANK(M6,Egyéni!$N$3:$N$156,0) -> 6 | O6: Dombóvári Illyés Gy. Gimn.
D7: 0 | F7: 0 | H7: 0 | J7: 0 | L7: =IF(K7<fiú!$D$2,0,VLOOKUP(K7,hfut,3,TRUE)) -> 0 | M7: 0 | N7: =RANK(M7,Egyéni!$N$3:$N$156,0) -> 44
D8: 0 | F8: 0 | H8: 0 | J8: 0 | L8: =IF(K8<fiú!$D$2,0,VLOOKUP(K8,hfut,3,TRUE)) -> 0 | M8: 0 | N8: =RANK(M8,Egyéni!$N$3:$N$156,0) -> 44
D9: 0 | F9: 0 | H9: 0 | J9: 0 | L9: =IF(K9<fiú!$D$2,0,VLOOKUP(K9,hfut,3,TRUE)) -> 0 | M9: 0 | N9: =RANK(M9,Egyéni!$N$3:$N$156,0) -> 44
D10: 0 | F10: 0 | H10: 0 | J10: 0 | L10: =IF(K10<fiú!$D$2,0,VLOOKUP(K10,hfut,3,TRUE)) -> 0 | M10: 0 | N10: =RANK(M10,Egyéni!$N$3:$N$156,0) -> 44
D11: 0 | F11: 0 | H11: 0 | J11: 0 | L11: =IF(K11<fiú!$D$2,0,VLOOKUP(K11,hfut,3,TRUE)) -> 0 | M11: 0 | N11: =RANK(M11,Egyéni!$N$3:$N$156,0) -> 44
D12: 0 | F12: 0 | H12: 0 | J12: 0 | L12: =IF(K12<fiú!$D$2,0,VLOOKUP(K12,hfut,3,TRUE)) -> 0 | M12: 0 | N12: =RANK(M12,Egyéni!$N$3:$N$156,0) -> 44
D13: 0 | F13: 0 | H13: 0 | J13: 0 | L13: =IF(K13<fiú!$D$2,0,VLOOKUP(K13,hfut,3,TRUE)) -> 0 | M13: 0 | N13: =RANK(M13,Egyéni!$N$3:$N$156,0) -> 44
D14: 0 | F14: 0 | H14: 0 | J14: 0 | L14: =IF(K14<fiú!$D$2,0,VLOOKUP(K14,hfut,3,TRUE)) -> 0 | M14: 0 | N14: =RANK(M14,Egyéni!$N$3:$N$156,0) -> 44
D15: 0 | F15: 0 | H15: 0 | J15: 0 | L15: =IF(K15<fiú!$D$2,0,VLOOKUP(K15,hfut,3,TRUE)) -> 0 | M15: 0 | N15: =RANK(M15,Egyéni!$N$3:$N$156,0) -> 44
D16: 0 | F16: 0 | H16: 0 | J16: 0 | L16: =IF(K16<fiú!$D$2,0,VLOOKUP(K16,hfut,3,TRUE)) -> 0 | M16: 0 | N16: =RANK(M16,Egyéni!$N$3:$N$156,0) -> 44
D17: 0 | F17: 0 | H17: 0 | J17: 0 | L17: =IF(K17<fiú!$D$2,0,VLOOKUP(K17,hfut,3,TRUE)) -> 0 | M17: 0 | N17: =RANK(M17,Egyéni!$N$3:$N$156,0) -> 44
D18: 0 | F18: 0 | H18: 0 | J18: 0 | L18: =IF(K18<fiú!$D$2,0,VLOOKUP(K18,hfut,3,TRUE)) -> 0 | M18: 0 | N18: =RANK(M18,Egyéni!$N$3:$N$156,0) -> 44
D19: 0 | F19: 0 | H19: 0 | J19: 0 | L19: =IF(K19<fiú!$D$2,0,VLOOKUP(K19,hfut,3,TRUE)) -> 0 | M19: 0 | N19: =RANK(M19,Egyéni!$N$3:$N$156,0) -> 44
D20: 0 | F20: 0 | H20: 0 | J20: 0 | L20: =IF(K20<fiú!$D$2,0,VLOOKUP(K20,hfut,3,TRUE)) -> 0 | M20: 0 | N20: =RANK(M20,Egyéni!$N$3:$N$156,0) -> 44
D21: 0 | F21: 0 | H21: 0 | J21: 0 | L21: =IF(K21<fiú!$D$2,0,VLOOKUP(K21,hfut,3,TRUE)) -> 0 | M21: 0 | N21: =RANK(M21,Egyéni!$N$3:$N$156,0) -> 44
D22: 0 | F22: 0 | H22: 0 | J22: 0 | L22: =IF(K22<fiú!$D$2,0,VLOOKUP(K22,hfut,3,TRUE)) -> 0 | M22: 0 | N22: =RANK(M22,Egyéni!$N$3:$N$156,0) -> 44
D23: 0 | F23: 0 | H23: 0 | J23: 0 | L23: =IF(K23<fiú!$D$2,0,VLOOKUP(K23,hfut,3,TRUE)) -> 0 | M23: 0 | N23: =RANK(M23,Egyéni!$N$3:$N$156,0) -> 44
D24: 0 | F24: 0 | H24: 0 | J24: 0 | L24: =IF(K24<fiú!$D$2,0,VLOOKUP(K24,hfut,3,TRUE)) -> 0 | M24: 0 | N24: =RANK(M24,Egyéni!$N$3:$N$156,0) -> 44
D25: 0 | F25: 0 | H25: 0 | J25: 0 | L25: =IF(K25<fiú!$D$2,0,VLOOKUP(K25,hfut,3,TRUE)) -> 0 | M25: 0 | N25: =RANK(M25,Egyéni!$N$3:$N$156,0) -> 44
A27: Szekszárdi Dienes V. Ált. Isk. | O27: =RANK(O29,Csapat!$C$3:P30,0) -> 1
A28: Név | B28: Sz.év | C28: 100 m | E28: Távolugrás | G28: Klabdahajítás | I28: Súlylökés | K28: 800 m | M28: Összpont | N28: Helyezés
A29: Loe Dávid | B29: 2009 | C29: 14.4 | D29: =IF(C29<6.19,0,VLOOKUP(C29,rfut,5,TRUE)) -> 132 | E29: 4.39 | F29: =IF(E29<1.79,0,VLOOKUP(E29,távol,4,TRUE)) -> 117 | G29: 46.56 | H29: =IF(G29<4,0,VLOOKUP(G29,kisl,2,TRUE)) -> 125 | I29: 6.91 | J29: =IF(I29<3,0,VLOOKUP(I29,súly,3,TRUE)) -> 69 | K29: 00:02:54.100 | L29: =IF(K29<fiú!$D$2,0,VLOOKUP(K29,hfut,3,TRUE)) -> 112 | M29: =SUM(D29,F29,H29,L29,J29) -> 555 | N29: =RANK(M29,Egyéni!$N$3:$N$156,0) -> 29 | O29: =SUM(M29:M34)-MIN(M29:M34) -> 3554
A30: Füle Richárd | B30: 2008 | C30: 13.1 | D30: 176 | E30: 4.72 | F30: 134 | G30: 44.85 | H30: 119 | I30: 9.81 | J30: 126 | K30: 00:02:44.700 | L30: =IF(K30<fiú!$D$2,0,VLOOKUP(K30,hfut,3,TRUE)) -> 133 | M30: 688 | N30: =RANK(M30,Egyéni!$N$3:$N$156,0) -> 13
A31: Kocsis Martin | B31: 2008 | C31: 12.7 | D31: 191 | E31: 5.07 | F31: 152 | G31: 43.52 | H31: 115 | I31: 10.5 | J31: 141 | K31: 00:02:46.300 | L31: =IF(K31<fiú!$D$2,0,VLOOKUP(K31,hfut,3,TRUE)) -> 129 | M31: 728 | N31: =RANK(M31,Egyéni!$N$3:$N$156,0) -> 9
A32: Könyves László Lorenzó | B32: 2009 | C32: 13.2 | D32: 173 | E32: 5.02 | F32: 149 | G32: 48.07 | H32: 129 | I32: 9.47 | J32: 119 | K32: 00:02:27.400 | L32: =IF(K32<fiú!$D$2,0,VLOOKUP(K32,hfut,3,TRUE)) -> 175 | M32: 745 | N32: =RANK(M32,Egyéni!$N$3:$N$156,0) -> 7
A33: Radnóti Gergely Attila | B33: 2008 | C33: 12.5 | D33: 198 | E33: 5.31 | F33: 166 | G33: 40.75 | H33: 105 | I33: 13.75 | J33: 217 | K33: 00:02:46.900 | L33: =IF(K33<fiú!$D$2,0,VLOOKUP(K33,hfut,3,TRUE)) -> 128 | M33: 814 | N33: =RANK(M33,Egyéni!$N$3:$N$156,0) -> 3
A34: Szoboszlai Máté | B34: 2008 | C34: 13.1 | D34: 176 | E34: 4.08 | F34: 101 | G34: 39 | H34: 100 | I34: 9.34 | J34: 117 | K34: 00:03:06.300 | L34: =IF(K34<fiú!$D$2,0,VLOOKUP(K34,hfut,3,TRUE)) -> 85 | M34: 579 | N34: =RANK(M34,Egyéni!$N$3:$N$156,0) -> 27
O37: =RANK(O39,Csapat!$C$3:P40,0) -> 8
A38: Név | B38: Sz.év | C38: 100 m | E38: Távolugrás | G38: Klabdahajítás | I38: Súlylökés | K38: 800 m | M38: Összpont | N38: Helyezés
D39: =IF(C39<6.19,0,VLOOKUP(C39,rfut,5,TRUE)) -> 0 | F39: =IF(E39<1.79,0,VLOOKUP(E39,távol,4,TRUE)) -> 0 | H39: =IF(G39<4,0,VLOOKUP(G39,kisl,2,TRUE)) -> 0 | J39: =IF(I39<3,0,VLOOKUP(I39,súly,3,TRUE)) -> 0 | L39: =IF(K39<fiú!$D$2,0,VLOOKUP(K39,hfut,3,TRUE)) -> 0 | M39: =SUM(D39,F39,H39,L39,J39) -> 0 | N39: =RANK(M39,Egyéni!$N$3:$N$156,0) -> 44 | O39: =SUM(M39:M44)-MIN(M39:M44) -> 0
D40: 0 | F40: 0 | H40: 0 | J40: 0 | L40: =IF(K40<fiú!$D$2,0,VLOOKUP(K40,hfut,3,TRUE)) -> 0 | M40: 0 | N40: =RANK(M40,Egyéni!$N$3:$N$156,0) -> 44
D41: 0 | F41: 0 | H41: 0 | J41: 0 | L41: =IF(K41<fiú!$D$2,0,VLOOKUP(K41,hfut,3,TRUE)) -> 0 | M41: 0 | N41: =RANK(M41,Egyéni!$N$3:$N$156,0) -> 44
D42: 0 | F42: 0 | H42: 0 | J42: 0 | L42: =IF(K42<fiú!$D$2,0,VLOOKUP(K42,hfut,3,TRUE)) -> 0 | M42: 0 | N42: =RANK(M42,Egyéni!$N$3:$N$156,0) -> 44
D43: 0 | F43: 0 | H43: 0 | J43: 0 | L43: =IF(K43<fiú!$D$2,0,VLOOKUP(K43,hfut,3,TRUE)) -> 0 | M43: 0 | N43: =RANK(M43,Egyéni!$N$3:$N$156,0) -> 44
D44: 0 | F44: 0 | H44: 0 | J44: 0 | L44: =IF(K44<fiú!$D$2,0,VLOOKUP(K44,hfut,3,TRUE)) -> 0 | M44: 0 | N44: =RANK(M44,Egyéni!$N$3:$N$156,0) -> 44
A47: Bonyhádi Petőfi S.E.Gimn. Ált. Isk. | O47: =RANK(O49,Csapat!$C$3:P50,0) -> 6
A48: Név | B48: Sz.év | C48: 100 m | E48: Távolugrás | G48: Klabdahajítás | I48: Súlylökés | K48: 800 m | M48: Összpont | N48: Helyezés
A49: Garay Gergő | B49: 2008 | C49: 13.4 | D49: =IF(C49<6.19,0,VLOOKUP(C49,rfut,5,TRUE)) -> 166 | E49: 4.22 | F49: =IF(E49<1.79,0,VLOOKUP(E49,távol,4,TRUE)) -> 108 | G49: 38.05 | H49: =IF(G49<4,0,VLOOKUP(G49,kisl,2,TRUE)) -> 97 | I49: 7.83 | J49: =IF(I49<3,0,VLOOKUP(I49,súly,3,TRUE)) -> 87 | K49: 00:03:05.100 | L49: =IF(K49<fiú!$D$2,0,VLOOKUP(K49,hfut,3,TRUE)) -> 88 | M49: =SUM(D49,F49,H49,L49,J49) -> 546 | N49: =RANK(M49,Egyéni!$N$3:$N$156,0) -> 30 | O49: =SUM(M49:M54)-MIN(M49:M54) -> 2686
A50: Hucker Olivér | B50: 2009 | C50: 14.2 | D50: 138 | E50: 3.35 | F50: 67 | G50: 31.09 | H50: 76 | I50: 8.51 | J50: 99 | K50: 00:03:00.600 | L50: =IF(K50<fiú!$D$2,0,VLOOKUP(K50,hfut,3,TRUE)) -> 97 | M50: 477 | N50: =RANK(M50,Egyéni!$N$3:$N$156,0) -> 40
A51: Németh Kolos | B51: 2008 | C51: 13.7 | D51: 155 | E51: 0 | F51: 0 | G51: 39.56 | H51: 101 | I51: 9.34 | J51: 117 | K51: 00:02:45.200 | L51: =IF(K51<fiú!$D$2,0,VLOOKUP(K51,hfut,3,TRUE)) -> 132 | M51: 505 | N51: =RANK(M51,Egyéni!$N$3:$N$156,0) -> 35
A52: Schiszler Ádám | B52: 2008 | C52: 13.9 | D52: 148 | E52: 4.07 | F52: 101 | G52: 36.05 | H52: 91 | I52: 7.5 | J52: 80 | K52: 00:03:16.400 | L52: =IF(K52<fiú!$D$2,0,VLOOKUP(K52,hfut,3,TRUE)) -> 64 | M52: 484 | N52: =RANK(M52,Egyéni!$N$3:$N$156,0) -> 38
A53: Sánta Balázs | B53: 2008 | C53: 13.9 | D53: 148 | E53: 4.16 | F53: 105 | G53: 42.38 | H53: 111 | I53: 6.96 | J53: 70 | K53: 00:03:02 | L53: =IF(K53<fiú!$D$2,0,VLOOKUP(K53,hfut,3,TRUE)) -> 94 | M53: 528 | N53: =RANK(M53,Egyéni!$N$3:$N$156,0) -> 32
A54: Vukálovics Ákos | B54: 2008 | C54: 13.4 | D54: 166 | E54: 4.3 | F54: 113 | G54: 40.44 | H54: 104 | I54: 8.13 | J54: 92 | K54: 00:02:38.200 | L54: =IF(K54<fiú!$D$2,0,VLOOKUP(K54,hfut,3,TRUE)) -> 148 | M54: 623 | N54: =RANK(M54,Egyéni!$N$3:$N$156,0) -> 24
A57: Szekszárdi Babits M. Ált. Isk. | O57: =RANK(O59,Csapat!$C$3:P60,0) -> 2
A58: Név | B58: Sz.év | C58: 100 m | E58: Távolugrás | G58: Klabdahajítás | I58: Súlylökés | K58: 800 m | M58: Összpont | N58: Helyezés
A59: Bíró Botond | B59: 2008 | C59: 13.2 | D59: =IF(C59<6.19,0,VLOOKUP(C59,rfut,5,TRUE)) -> 173 | E59: 4.83 | F59: =IF(E59<1.79,0,VLOOKUP(E59,távol,4,TRUE)) -> 140 | G59: 41.87 | H59: =IF(G59<4,0,VLOOKUP(G59,kisl,2,TRUE)) -> 109 | I59: 8.49 | J59: =IF(I59<3,0,VLOOKUP(I59,súly,3,TRUE)) -> 99 | K59: 00:02:25.300 | L59: =IF(K59<fiú!$D$2,0,VLOOKUP(K59,hfut,3,TRUE)) -> 180 | M59: =SUM(D59,F59,H59,L59,J59) -> 701 | N59: =RANK(M59,Egyéni!$N$3:$N$156,0) -> 11 | O59: =SUM(M59:M64)-MIN(M59:M64) -> 3446
A60: Fodor Zalán | B60: 2009 | C60: 13.4 | D60: 166 | E60: 4.64 | F60: 130 | G60: 34.18 | H60: =IF(G60<4,0,VLOOKUP(G60,kisl,2,TRUE)) -> 85 | I60: 6.64 | J60: 64 | K60: 00:02:42.100 | L60: =IF(K60<fiú!$D$2,0,VLOOKUP(K60,hfut,3,TRUE)) -> 139 | M60: 584 | N60: =RANK(M60,Egyéni!$N$3:$N$156,0) -> 26
A61: Gréczy Bálint | B61: 2009 | C61: 13.3 | D61: 169 | E61: 4.81 | F61: 139 | G61: 47.15 | H61: =IF(G61<4,0,VLOOKUP(G61,kisl,2,TRUE)) -> 126 | I61: 11.59 | J61: 165 | K61: 00:02:32.500 | L61: =IF(K61<fiú!$D$2,0,VLOOKUP(K61,hfut,3,TRUE)) -> 162 | M61: 761 | N61: =RANK(M61,Egyéni!$N$3:$N$156,0) -> 5
A62: Kappel Márton | B62: 2009 | C62: 13.2 | D62: 173 | E62: 4.33 | F62: 114 | G62: 40.89 | H62: =IF(G62<4,0,VLOOKUP(G62,kisl,2,TRUE)) -> 106 | I62: 9.96 | J62: 130 | K62: 00:02:48.600 | L62: =IF(K62<fiú!$D$2,0,VLOOKUP(K62,hfut,3,TRUE)) -> 124 | M62: 647 | N62: =RANK(M62,Egyéni!$N$3:$N$156,0) -> 19
A63: Palkó Boldizsár | B63: 2008 | C63: 13.5 | D63: 162 | E63: 4.47 | F63: 121 | G63: 47.17 | H63: =IF(G63<4,0,VLOOKUP(G63,kisl,2,TRUE)) -> 127 | I63: 10.08 | J63: 132 | K63: 00:02:46.600 | L63: =IF(K63<fiú!$D$2,0,VLOOKUP(K63,hfut,3,TRUE)) -> 129 | M63: 671 | N63: =RANK(M63,Egyéni!$N$3:$N$156,0) -> 14
A64: Gréczy Dániel | B64: 2009 | C64: 13.5 | D64: 162 | E64: 4.46 | F64: 121 | G64: 43.76 | H64: =IF(G64<4,0,VLOOKUP(G64,kisl,2,TRUE)) -> 115 | I64: 10.05 | J64: 131 | K64: 00:02:42.800 | L64: =IF(K64<fiú!$D$2,0,VLOOKUP(K64,hfut,3,TRUE)) -> 137 | M64: 666 | N64: =RANK(M64,Egyéni!$N$3:$N$156,0) -> 16
A67: Szt. Orsolya Bencés Ált. Isk. | O67: =RANK(O69,Csapat!$C$3:P70,0) -> 3
A68: Név | B68: Sz.év | C68: 100 m | E68: Távolugrás | G68: Klabdahajítás | I68: Súlylökés | K68: 800 m | M68: Összpont | N68: Helyezés
A69: Halmai Zsombor | B69: 2008 | C69: 13.3 | D69: =IF(C69<6.19,0,VLOOKUP(C69,rfut,5,TRUE)) -> 169 | E69: 4.53 | F69: =IF(E69<1.79,0,VLOOKUP(E69,távol,4,TRUE)) -> 124 | G69: 60.37 | H69: =IF(G69<4,0,VLOOKUP(G69,kisl,2,TRUE)) -> 172 | I69: 10.95 | J69: =IF(I69<3,0,VLOOKUP(I69,súly,3,TRUE)) -> 150 | K69: 00:02:49.900 | L69: =IF(K69<fiú!$D$2,0,VLOOKUP(K69,hfut,3,TRUE)) -> 121 | M69: =SUM(D69,F69,H69,L69,J69) -> 736 | N69: =RANK(M69,Egyéni!$N$3:$N$156,0) -> 8 | O69: =SUM(M69:M74)-MIN(M69:M74) -> 3421
A70: Kapinya Péter | B70: 2008 | C70: 13.2 | D70: 173 | E70: 4.76 | F70: 136 | G70: 55 | H70: 153 | I70: 8.56 | J70: 100 | K70: 00:02:38.500 | L70: =IF(K70<fiú!$D$2,0,VLOOKUP(K70,hfut,3,TRUE)) -> 147 | M70: 709 | N70: =RANK(M70,Egyéni!$N$3:$N$156,0) -> 10
A71: Kovács Barnabás | B71: 2008 | C71: 12.6 | D71: 194 | E71: 4.92 | F71: 144 | G71: 48.88 | H71: 132 | I71: 10.07 | J71: 132 | K71: 00:03:01.400 | L71: =IF(K71<fiú!$D$2,0,VLOOKUP(K71,hfut,3,TRUE)) -> 95 | M71: 697 | N71: =RANK(M71,Egyéni!$N$3:$N$156,0) -> 12
A72: Szabó Dominik | B72: 2008 | C72: 13.6 | D72: 159 | E72: 4.62 | F72: 129 | G72: 52.4 | H72: 144 | I72: 8.27 | J72: 95 | K72: 00:02:39.700 | L72: =IF(K72<fiú!$D$2,0,VLOOKUP(K72,hfut,3,TRUE)) -> 144 | M72: 671 | N72: =RANK(M72,Egyéni!$N$3:$N$156,0) -> 14
A73: Vida Bence | B73: 2009 | C73: 14.6 | D73: 126 | E73: 4.21 | F73: 108 | G73: 48.08 | H73: 130 | I73: 7.99 | J73: 90 | K73: 00:03:06.600 | L73: =IF(K73<fiú!$D$2,0,VLOOKUP(K73,hfut,3,TRUE)) -> 85 | M73: 539 | N73: =RANK(M73,Egyéni!$N$3:$N$156,0) -> 31
A74: Tobler Péter | B74: 2009 | C74: 13.8 | D74: 151 | E74: 4.89 | F74: 143 | G74: 39.57 | H74: 102 | I74: 6.92 | J74: 69 | K74: 00:02:40.300 | L74: =IF(K74<fiú!$D$2,0,VLOOKUP(K74,hfut,3,TRUE)) -> 143 | M74: 608 | N74: =RANK(M74,Egyéni!$N$3:$N$156,0) -> 25
A77: Zombai Általános Iskola | O77: =RANK(O79,Csapat!$C$3:P80,0) -> 5
A78: Név | B78: Sz.év | C78: 100 m | E78: Távolugrás | G78: Klabdahajítás | I78: Súlylökés | K78: 800 m | M78: Összpont | N78: Helyezés
A79: Csibi Olivér | B79: 2009 | C79: 13.2 | D79: =IF(C79<6.19,0,VLOOKUP(C79,rfut,5,TRUE)) -> 173 | E79: 4.4 | F79: =IF(E79<1.79,0,VLOOKUP(E79,távol,4,TRUE)) -> 118 | G79: 45.19 | H79: =IF(G79<4,0,VLOOKUP(G79,kisl,2,TRUE)) -> 120 | I79: 9.5 | J79: =IF(I79<3,0,VLOOKUP(I79,súly,3,TRUE)) -> 120 | K79: 00:02:45.800 | L79: =IF(K79<fiú!$D$2,0,VLOOKUP(K79,hfut,3,TRUE)) -> 130 | M79: =SUM(D79,F79,H79,L79,J79) -> 661 | N79: =RANK(M79,Egyéni!$N$3:$N$156,0) -> 18 | O79: =SUM(M79:M84)-MIN(M79:M84) -> 2957
A80: Marázi Archilles | B80: 2009 | C80: 13.8 | D80: 151 | E80: 3.96 | F80: 96 | G80: 37.14 | H80: 94 | I80: 7.15 | J80: 74 | K80: 00:03:08.800 | L80: =IF(K80<fiú!$D$2,0,VLOOKUP(K80,hfut,3,TRUE)) -> 80 | M80: 495 | N80: =RANK(M80,Egyéni!$N$3:$N$156,0) -> 37
A81: Orsós Kevin Zsolt | B81: 2008 | C81: 13.1 | D81: 176 | E81: 4.63 | F81: 129 | G81: 46.16 | H81: 123 | I81: 10.47 | J81: 140 | K81: 00:03:10.700 | L81: =IF(K81<fiú!$D$2,0,VLOOKUP(K81,hfut,3,TRUE)) -> 76 | M81: 644 | N81: =RANK(M81,Egyéni!$N$3:$N$156,0) -> 20
A82: Szemes Márk | B82: 2008 | C82: 13.3 | D82: 169 | E82: 4.6 | F82: 128 | G82: 34.57 | H82: 86 | I82: 8.49 | J82: 99 | K82: 00:02:36.300 | L82: =IF(K82<fiú!$D$2,0,VLOOKUP(K82,hfut,3,TRUE)) -> 152 | M82: 634 | N82: =RANK(M82,Egyéni!$N$3:$N$156,0) -> 22
A83: Häckl Ábel | B83: 2009 | C83: 13.6 | D83: 159 | E83: 4.16 | F83: 105 | G83: 33.07 | H83: 82 | I83: 6.41 | J83: 60 | K83: 00:02:51.800 | L83: =IF(K83<fiú!$D$2,0,VLOOKUP(K83,hfut,3,TRUE)) -> 117 | M83: 523 | N83: =RANK(M83,Egyéni!$N$3:$N$156,0) -> 33
D84: 0 | F84: 0 | H84: 0 | J84: 0 | L84: =IF(K84<fiú!$D$2,0,VLOOKUP(K84,hfut,3,TRUE)) -> 0 | M84: 0 | N84: =RANK(M84,Egyéni!$N$3:$N$156,0) -> 44
A87: Nagydorogi Széchényi Sándor Ált. Isk. | O87: =RANK(O89,Csapat!$C$3:P90,0) -> 4
A88: Név | B88: Sz.év | C88: 100 m | E88: Távolugrás | G88: Klabdahajítás | I88: Súlylökés | K88: 800 m | M88: Összpont | N88: Helyezés
A89: Csonka Ármin Milán | B89: 2009 | C89: 13.3 | D89: =IF(C89<6.19,0,VLOOKUP(C89,rfut,5,TRUE)) -> 169 | E89: 4.19 | F89: =IF(E89<1.79,0,VLOOKUP(E89,távol,4,TRUE)) -> 107 | G89: 47.7 | H89: =IF(G89<4,0,VLOOKUP(G89,kisl,2,TRUE)) -> 128 | I89: 8.06 | J89: =IF(I89<3,0,VLOOKUP(I89,súly,3,TRUE)) -> 91 | K89: 00:02:43.400 | L89: =IF(K89<fiú!$D$2,0,VLOOKUP(K89,hfut,3,TRUE)) -> 136 | M89: =SUM(D89,F89,H89,L89,J89) -> 631 | N89: =RANK(M89,Egyéni!$N$3:$N$156,0) -> 23 | O89: =SUM(M89:M94)-MIN(M89:M94) -> 3304
A90: Kocsis Damáz | B90: 2009 | C90: 15.2 | D90: 106 | E90: 3.97 | F90: 96 | G90: 39.73 | H90: 102 | I90: 7.07 | J90: 72 | K90: 00:02:47.400 | L90: =IF(K90<fiú!$D$2,0,VLOOKUP(K90,hfut,3,TRUE)) -> 127 | M90: 503 | N90: =RANK(M90,Egyéni!$N$3:$N$156,0) -> 36
A91: Kovács Tibor | B91: 2008 | C91: 13.5 | D91: 162 | E91: 4.78 | F91: 137 | G91: 50.81 | H91: 138 | I91: 8.25 | J91: 94 | K91: 00:02:53.500 | L91: =IF(K91<fiú!$D$2,0,VLOOKUP(K91,hfut,3,TRUE)) -> 113 | M91: 644 | N91: =RANK(M91,Egyéni!$N$3:$N$156,0) -> 20
A92: Molnár Milán Marcell | B92: 2008 | C92: 13 | D92: 180 | E92: 4.56 | F92: 126 | G92: 41.2 | H92: 107 | I92: 9.02 | J92: 110 | K92: 00:02:41.200 | L92: =IF(K92<fiú!$D$2,0,VLOOKUP(K92,hfut,3,TRUE)) -> 141 | M92: 664 | N92: =RANK(M92,Egyéni!$N$3:$N$156,0) -> 17
A93: Nyári László András | B93: 2009 | C93: 13.6 | D93: 159 | E93: 4.46 | F93: 121 | G93: 48.28 | H93: 130 | I93: 8.9 | J93: 108 | K93: 00:03:23.500 | L93: =IF(K93<fiú!$D$2,0,VLOOKUP(K93,hfut,3,TRUE)) -> 50 | M93: 568 | N93: =RANK(M93,Egyéni!$N$3:$N$156,0) -> 28
A94: Sáfrány Dominik Ferenc | B94: 2008 | C94: 12.6 | D94: 194 | E94: 5.54 | F94: 179 | G94: 47.08 | H94: 126 | I94: 9.34 | J94: 117 | K94: 00:02:25 | L94: =IF(K94<fiú!$D$2,0,VLOOKUP(K94,hfut,3,TRUE)) -> 181 | M94: 797 | N94: =RANK(M94,Egyéni!$N$3:$N$156,0) -> 4
A97: Tolnai Wosinsky M. Ált. Isk. | O97: =RANK(O99,Csapat!$C$3:P100,0) -> 7
A98: Név | B98: Sz.év | C98: 100 m | E98: Távolugrás | G98: Klabdahajítás | I98: Súlylökés | K98: 800 m | M98: Összpont | N98: Helyezés
A99: Janthó Márk | B99: 2008 | C99: 14 | D99: =IF(C99<6.19,0,VLOOKUP(C99,rfut,5,TRUE)) -> 145 | E99: 4.26 | F99: =IF(E99<1.79,0,VLOOKUP(E99,távol,4,TRUE)) -> 110 | G99: 33.1 | H99: =IF(G99<4,0,VLOOKUP(G99,kisl,2,TRUE)) -> 82 | I99: 7.63 | J99: =IF(I99<3,0,VLOOKUP(I99,súly,3,TRUE)) -> 83 | K99: 00:03:00.300 | L99: =IF(K99<fiú!$D$2,0,VLOOKUP(K99,hfut,3,TRUE)) -> 98 | M99: =SUM(D99,F99,H99,L99,J99) -> 518 | N99: =RANK(M99,Egyéni!$N$3:$N$156,0) -> 34 | O99: =SUM(M99:M104)-MIN(M99:M104) -> 2270
A100: Novák Dávid Ferenc | B100: 2009 | C100: 15.2 | D100: 106 | E100: 3.76 | F100: 86 | G100: 51.38 | H100: 140 | I100: 9.48 | J100: 120 | K100: 00:03:34.300 | L100: =IF(K100<fiú!$D$2,0,VLOOKUP(K100,hfut,3,TRUE)) -> 29 | M100: 481 | N100: =RANK(M100,Egyéni!$N$3:$N$156,0) -> 39
A101: Potyondi Botond | B101: 2009 | C101: 15.1 | D101: 110 | E101: 3.5 | F101: 74 | G101: 33.53 | H101: 83 | I101: 4.75 | J101: 30 | K101: 00:03:16.700 | L101: =IF(K101<fiú!$D$2,0,VLOOKUP(K101,hfut,3,TRUE)) -> 64 | M101: 361 | N101: =RANK(M101,Egyéni!$N$3:$N$156,0) -> 43
A102: Straubinger Marcell | B102: 2008 | C102: 15 | D102: 113 | E102: 4.01 | F102: 98 | G102: 43.86 | H102: 116 | I102: 7.88 | J102: 87 | K102: 00:03:25.700 | L102: =IF(K102<fiú!$D$2,0,VLOOKUP(K102,hfut,3,TRUE)) -> 46 | M102: 460 | N102: =RANK(M102,Egyéni!$N$3:$N$156,0) -> 41
A103: Tóth Richárd | B103: 2008 | C103: 14.1 | D103: 142 | E103: 3.88 | F103: 92 | G103: 40.1 | H103: 103 | I103: 7.05 | J103: 72 | K103: 00:03:27.900 | L103: =IF(K103<fiú!$D$2,0,VLOOKUP(K103,hfut,3,TRUE)) -> 41 | M103: 450 | N103: =RANK(M103,Egyéni!$N$3:$N$156,0) -> 42
D104: 0 | F104: 0 | H104: 0 | J104: 0 | L104: =IF(K104<fiú!$D$2,0,VLOOKUP(K104,hfut,3,TRUE)) -> 0 | M104: 0 | N104: =RANK(M104,Egyéni!$N$3:$N$156,0) -> 44
O107: =RANK(O109,Csapat!$C$3:P110,0) -> 8
A108: Név | B108: Sz.év | C108: 100 m | E108: Távolugrás | G108: Klabdahajítás | I108: Súlylökés | K108: 800 m | M108: Összpont | N108: Helyezés
D109: =IF(C109<6.19,0,VLOOKUP(C109,rfut,5,TRUE)) -> 0 | F109: =IF(E109<1.79,0,VLOOKUP(E109,távol,4,TRUE)) -> 0 | H109: =IF(G109<4,0,VLOOKUP(G109,kisl,2,TRUE)) -> 0 | J109: =IF(I109<3,0,VLOOKUP(I109,súly,3,TRUE)) -> 0 | L109: =IF(K109<fiú!$D$2,0,VLOOKUP(K109,hfut,3,TRUE)) -> 0 | M109: =SUM(D109,F109,H109,L109,J109) -> 0 | N109: =RANK(M109,Egyéni!$N$3:$N$156,0) -> 44 | O109: =SUM(M109:M114)-MIN(M109:M114) -> 0
D110: 0 | F110: 0 | H110: 0 | J110: 0 | L110: =IF(K110<fiú!$D$2,0,VLOOKUP(K110,hfut,3,TRUE)) -> 0 | M110: 0 | N110: =RANK(M110,Egyéni!$N$3:$N$156,0) -> 44
D111: 0 | F111: 0 | H111: 0 | J111: 0 | L111: =IF(K111<fiú!$D$2,0,VLOOKUP(K111,hfut,3,TRUE)) -> 0 | M111: 0 | N111: =RANK(M111,Egyéni!$N$3:$N$156,0) -> 44
D112: 0 | F112: 0 | H112: 0 | J112: 0 | L112: =IF(K112<fiú!$D$2,0,VLOOKUP(K112,hfut,3,TRUE)) -> 0 | M112: 0 | N112: =RANK(M112,Egyéni!$N$3:$N$156,0) -> 44
D113: 0 | F113: 0 | H113: 0 | J113: 0 | L113: =IF(K113<fiú!$D$2,0,VLOOKUP(K113,hfut,3,TRUE)) -> 0 | M113: 0 | N113: =RANK(M113,Egyéni!$N$3:$N$156,0) -> 44
D114: 0 | F114: 0 | H114: 0 | J114: 0 | L114: =IF(K114<fiú!$D$2,0,VLOOKUP(K114,hfut,3,TRUE)) -> 0 | M114: 0 | N114: =RANK(M114,Egyéni!$N$3:$N$156,0) -> 44
O117: =RANK(O119,Csapat!$C$3:P120,0) -> 8
A118: Név | B118: Sz.év | C118: 100 m | E118: Távolugrás | G118: Klabdahajítás | I118: Súlylökés | K118: 800 m | M118: Összpont | N118: Helyezés
D119: =IF(C119<6.19,0,VLOOKUP(C119,rfut,5,TRUE)) -> 0 | F119: =IF(E119<1.79,0,VLOOKUP(E119,távol,4,TRUE)) -> 0 | H119: =IF(G119<4,0,VLOOKUP(G119,kisl,2,TRUE)) -> 0 | J119: =IF(I119<3,0,VLOOKUP(I119,súly,3,TRUE)) -> 0 | L119: =IF(K119<fiú!$D$2,0,VLOOKUP(K119,hfut,3,TRUE)) -> 0 | M119: =SUM(D119,F119,H119,L119,J119) -> 0 | N119: =RANK(M119,Egyéni!$N$3:$N$156,0) -> 44 | O119: =SUM(M119:M124)-MIN(M119:M124) -> 0
D120: 0 | F120: 0 | H120: 0 | J120: 0 | L120: =IF(K120<fiú!$D$2,0,VLOOKUP(K120,hfut,3,TRUE)) -> 0 | M120: 0 | N120: =RANK(M120,Egyéni!$N$3:$N$156,0) -> 44
D121: 0 | F121: 0 | H121: 0 | J121: 0 | L121: =IF(K121<fiú!$D$2,0,VLOOKUP(K121,hfut,3,TRUE)) -> 0 | M121: 0 | N121: =RANK(M121,Egyéni!$N$3:$N$156,0) -> 44
D122: 0 | F122: 0 | H122: 0 | J122: 0 | L122: =IF(K122<fiú!$D$2,0,VLOOKUP(K122,hfut,3,TRUE)) -> 0 | M122: 0 | N122: =RANK(M122,Egyéni!$N$3:$N$156,0) -> 44
D123: 0 | F123: 0 | H123: 0 | J123: 0 | L123: =IF(K123<fiú!$D$2,0,VLOOKUP(K123,hfut,3,TRUE)) -> 0 | M123: 0 | N123: =RANK(M123,Egyéni!$N$3:$N$156,0) -> 44
D124: 0 | F124: 0 | H124: 0 | J124: 0 | L124: =IF(K124<fiú!$D$2,0,VLOOKUP(K124,hfut,3,TRUE)) -> 0 | M124: 0 | N124: =RANK(M124,Egyéni!$N$3:$N$156,0) -> 44
O127: =RANK(O129,Csapat!$C$3:P130,0) -> 8
A128: Név | B128: Sz.év | C128: 100 m | E128: Távolugrás | G128: Klabdahajítás | I128: Súlylökés | K128: 800 m | M128: Összpont | N128: Helyezés
D129: =IF(C129<6.19,0,VLOOKUP(C129,rfut,5,TRUE)) -> 0 | F129: =IF(E129<1.79,0,VLOOKUP(E129,távol,4,TRUE)) -> 0 | H129: =IF(G129<4,0,VLOOKUP(G129,kisl,2,TRUE)) -> 0 | J129: =IF(I129<3,0,VLOOKUP(I129,súly,3,TRUE)) -> 0 | L129: =IF(K129<fiú!$D$2,0,VLOOKUP(K129,hfut,3,TRUE)) -> 0 | M129: =SUM(D129,F129,H129,L129,J129) -> 0 | N129: =RANK(M129,Egyéni!$N$3:$N$156,0) -> 44 | O129: =SUM(M129:M134)-MIN(M129:M134) -> 0
D130: 0 | F130: 0 | H130: 0 | J130: 0 | L130: =IF(K130<fiú!$D$2,0,VLOOKUP(K130,hfut,3,TRUE)) -> 0 | M130: 0 | N130: =RANK(M130,Egyéni!$N$3:$N$156,0) -> 44
D131: 0 | F131: 0 | H131: 0 | J131: 0 | L131: =IF(K131<fiú!$D$2,0,VLOOKUP(K131,hfut,3,TRUE)) -> 0 | M131: 0 | N131: =RANK(M131,Egyéni!$N$3:$N$156,0) -> 44
D132: 0 | F132: 0 | H132: 0 | J132: 0 | L132: =IF(K132<fiú!$D$2,0,VLOOKUP(K132,hfut,3,TRUE)) -> 0 | M132: 0 | N132: =RANK(M132,Egyéni!$N$3:$N$156,0) -> 44
D133: 0 | F133: 0 | H133: 0 | J133: 0 | L133: =IF(K133<fiú!$D$2,0,VLOOKUP(K133,hfut,3,TRUE)) -> 0 | M133: 0 | N133: =RANK(M133,Egyéni!$N$3:$N$156,0) -> 44
D134: 0 | F134: 0 | H134: 0 | J134: 0 | L134: =IF(K134<fiú!$D$2,0,VLOOKUP(K134,hfut,3,TRUE)) -> 0 | M134: 0 | N134: =RANK(M134,Egyéni!$N$3:$N$156,0) -> 44
O137: =RANK(O139,Csapat!$C$3:P140,0) -> 8
A138: Név | B138: Sz.év | C138: 100 m | E138: Távolugrás | G138: Klabdahajítás | I138: Súlylökés | K138: 800 m | M138: Összpont | N138: Helyezés
D139: =IF(C139<6.19,0,VLOOKUP(C139,rfut,5,TRUE)) -> 0 | F139: =IF(E139<1.79,0,VLOOKUP(E139,távol,4,TRUE)) -> 0 | H139: =IF(G139<4,0,VLOOKUP(G139,kisl,2,TRUE)) -> 0 | J139: =IF(I139<3,0,VLOOKUP(I139,súly,3,TRUE)) -> 0 | L139: =IF(K139<fiú!$D$2,0,VLOOKUP(K139,hfut,3,TRUE)) -> 0 | M139: =SUM(D139,F139,H139,L139,J139) -> 0 | N139: =RANK(M139,Egyéni!$N$3:$N$156,0) -> 44 | O139: =SUM(M139:M144)-MIN(M139:M144) -> 0
D140: 0 | F140: 0 | H140: 0 | J140: 0 | L140: =IF(K140<fiú!$D$2,0,VLOOKUP(K140,hfut,3,TRUE)) -> 0 | M140: 0 | N140: =RANK(M140,Egyéni!$N$3:$N$156,0) -> 44
D141: 0 | F141: 0 | H141: 0 | J141: 0 | L141: =IF(K141<fiú!$D$2,0,VLOOKUP(K141,hfut,3,TRUE)) -> 0 | M141: 0 | N141: =RANK(M141,Egyéni!$N$3:$N$156,0) -> 44
D142: 0 | F142: 0 | H142: 0 | J142: 0 | L142: =IF(K142<fiú!$D$2,0,VLOOKUP(K142,hfut,3,TRUE)) -> 0 | M142: 0 | N142: =RANK(M142,Egyéni!$N$3:$N$156,0) -> 44
D143: 0 | F143: 0 | H143: 0 | J143: 0 | L143: =IF(K143<fiú!$D$2,0,VLOOKUP(K143,hfut,3,TRUE)) -> 0 | M143: 0 | N143: =RANK(M143,Egyéni!$N$3:$N$156,0) -> 44
D144: 0 | F144: 0 | H144: 0 | J144: 0 | L144: =IF(K144<fiú!$D$2,0,VLOOKUP(K144,hfut,3,TRUE)) -> 0 | M144: 0 | N144: =RANK(M144,Egyéni!$N$3:$N$156,0) -> 44
O147: =RANK(O149,Csapat!$C$3:P150,0) -> 8
A148: Név | B148: Sz.év | C148: 100 m | E148: Távolugrás | G148: Klabdahajítás | I148: Súlylökés | K148: 800 m | M148: Összpont | N148: Helyezés
D149: =IF(C149<6.19,0,VLOOKUP(C149,rfut,5,TRUE)) -> 0 | F149: =IF(E149<1.79,0,VLOOKUP(E149,távol,4,TRUE)) -> 0 | H149: =IF(G149<4,0,VLOOKUP(G149,kisl,2,TRUE)) -> 0 | J149: =IF(I149<3,0,VLOOKUP(I149,súly,3,TRUE)) -> 0 | L149: =IF(K149<fiú!$D$2,0,VLOOKUP(K149,hfut,3,TRUE)) -> 0 | M149: =SUM(D149,F149,H149,L149,J149) -> 0 | N149: =RANK(M149,Egyéni!$N$3:$N$156,0) -> 44 | O149: =SUM(M149:M154)-MIN(M149:M154) -> 0
D150: 0 | F150: 0 | H150: 0 | J150: 0 | L150: =IF(K150<fiú!$D$2,0,VLOOKUP(K150,hfut,3,TRUE)) -> 0 | M150: 0 | N150: =RANK(M150,Egyéni!$N$3:$N$156,0) -> 44
D151: 0 | F151: 0 | H151: 0 | J151: 0 | L151: =IF(K151<fiú!$D$2,0,VLOOKUP(K151,hfut,3,TRUE)) -> 0 | M151: 0 | N151: =RANK(M151,Egyéni!$N$3:$N$156,0) -> 44
D152: 0 | F152: 0 | H152: 0 | J152: 0 | L152: =IF(K152<fiú!$D$2,0,VLOOKUP(K152,hfut,3,TRUE)) -> 0 | M152: 0 | N152: =RANK(M152,Egyéni!$N$3:$N$156,0) -> 44
D153: 0 | F153: 0 | H153: 0 | J153: 0 | L153: =IF(K153<fiú!$D$2,0,VLOOKUP(K153,hfut,3,TRUE)) -> 0 | M153: 0 | N153: =RANK(M153,Egyéni!$N$3:$N$156,0) -> 44
D154: 0 | F154: 0 | H154: 0 | J154: 0 | L154: =IF(K154<fiú!$D$2,0,VLOOKUP(K154,hfut,3,TRUE)) -> 0 | M154: 0 | N154: =RANK(M154,Egyéni!$N$3:$N$156,0) -> 44
O157: =RANK(O159,Csapat!$C$3:P160,0) -> 8
A158: Név | B158: Sz.év | C158: 100 m | E158: Távolugrás | G158: Klabdahajítás | I158: Súlylökés | K158: 800 m | M158: Összpont | N158: Helyezés
D159: =IF(C159<6.19,0,VLOOKUP(C159,rfut,5,TRUE)) -> 0 | F159: =IF(E159<1.79,0,VLOOKUP(E159,távol,4,TRUE)) -> 0 | H159: =IF(G159<4,0,VLOOKUP(G159,kisl,2,TRUE)) -> 0 | J159: =IF(I159<3,0,VLOOKUP(I159,súly,3,TRUE)) -> 0 | L159: =IF(K159<fiú!$D$2,0,VLOOKUP(K159,hfut,3,TRUE)) -> 0 | M159: =SUM(D159,F159,H159,L159,J159) -> 0 | N159: =RANK(M159,Egyéni!$N$3:$N$156,0) -> 44 | O159: =SUM(M159:M164)-MIN(M159:M164) -> 0
D160: 0 | F160: 0 | H160: 0 | J160: 0 | L160: =IF(K160<fiú!$D$2,0,VLOOKUP(K160,hfut,3,TRUE)) -> 0 | M160: 0 | N160: =RANK(M160,Egyéni!$N$3:$N$156,0) -> 44
D161: 0 | F161: 0 | H161: 0 | J161: 0 | L161: =IF(K161<fiú!$D$2,0,VLOOKUP(K161,hfut,3,TRUE)) -> 0 | M161: 0 | N161: =RANK(M161,Egyéni!$N$3:$N$156,0) -> 44
D162: 0 | F162: 0 | H162: 0 | J162: 0 | L162: =IF(K162<fiú!$D$2,0,VLOOKUP(K162,hfut,3,TRUE)) -> 0 | M162: 0 | N162: =RANK(M162,Egyéni!$N$3:$N$156,0) -> 44
D163: 0 | F163: 0 | H163: 0 | J163: 0 | L163: =IF(K163<fiú!$D$2,0,VLOOKUP(K163,hfut,3,TRUE)) -> 0 | M163: 0 | N163: =RANK(M163,Egyéni!$N$3:$N$156,0) -> 44
D164: 0 | F164: 0 | H164: 0 | J164: 0 | L164: =IF(K164<fiú!$D$2,0,VLOOKUP(K164,hfut,3,TRUE)) -> 0 | M164: 0 | N164: =RANK(M164,Egyéni!$N$3:$N$156,0) -> 44
O167: =RANK(O169,Csapat!$C$3:P170,0) -> 8
A168: Név | B168: Sz.év | C168: 100 m | E168: Távolugrás | G168: Klabdahajítás | I168: Súlylökés | K168: 800 m | M168: Összpont | N168: Helyezés
D169: =IF(C169<6.19,0,VLOOKUP(C169,rfut,5,TRUE)) -> 0 | F169: =IF(E169<1.79,0,VLOOKUP(E169,távol,4,TRUE)) -> 0 | H169: =IF(G169<4,0,VLOOKUP(G169,kisl,2,TRUE)) -> 0 | J169: =IF(I169<3,0,VLOOKUP(I169,súly,3,TRUE)) -> 0 | L169: =IF(K169<fiú!$D$2,0,VLOOKUP(K169,hfut,3,TRUE)) -> 0 | M169: =SUM(D169,F169,H169,L169,J169) -> 0 | N169: =RANK(M169,Egyéni!$N$3:$N$156,0) -> 44 | O169: =SUM(M169:M174)-MIN(M169:M174) -> 0
D170: 0 | F170: 0 | H170: 0 | J170: 0 | L170: =IF(K170<fiú!$D$2,0,VLOOKUP(K170,hfut,3,TRUE)) -> 0 | M170: 0 | N170: =RANK(M170,Egyéni!$N$3:$N$156,0) -> 44
D171: 0 | F171: 0 | H171: 0 | J171: 0 | L171: =IF(K171<fiú!$D$2,0,VLOOKUP(K171,hfut,3,TRUE)) -> 0 | M171: 0 | N171: =RANK(M171,Egyéni!$N$3:$N$156,0) -> 44
D172: 0 | F172: 0 | H172: 0 | J172: 0 | L172: =IF(K172<fiú!$D$2,0,VLOOKUP(K172,hfut,3,TRUE)) -> 0 | M172: 0 | N172: =RANK(M172,Egyéni!$N$3:$N$156,0) -> 44
D173: 0 | F173: 0 | H173: 0 | J173: 0 | L173: =IF(K173<fiú!$D$2,0,VLOOKUP(K173,hfut,3,TRUE)) -> 0 | M173: 0 | N173: =RANK(M173,Egyéni!$N$3:$N$156,0) -> 44
D174: 0 | F174: 0 | H174: 0 | J174: 0 | L174: =IF(K174<fiú!$D$2,0,VLOOKUP(K174,hfut,3,TRUE)) -> 0 | M174: 0 | N174: =RANK(M174,Egyéni!$N$3:$N$156,0) -> 44
O177: =RANK(O179,Csapat!$C$3:P180,0) -> 8
A178: Név | B178: Sz.év | C178: 100 m | E178: Távolugrás | G178: Klabdahajítás | I178: Súlylökés | K178: 800 m | M178: Összpont | N178: Helyezés
D179: =IF(C179<6.19,0,VLOOKUP(C179,rfut,5,TRUE)) -> 0 | F179: =IF(E179<1.79,0,VLOOKUP(E179,távol,4,TRUE)) -> 0 | H179: =IF(G179<4,0,VLOOKUP(G179,kisl,2,TRUE)) -> 0 | J179: =IF(I179<3,0,VLOOKUP(I179,súly,3,TRUE)) -> 0 | L179: =IF(K179<fiú!$D$2,0,VLOOKUP(K179,hfut,3,TRUE)) -> 0 | M179: =SUM(D179,F179,H179,L179,J179) -> 0 | N179: =RANK(M179,Egyéni!$N$3:$N$156,0) -> 44 | O179: =SUM(M179:M184)-MIN(M179:M184) -> 0
D180: 0 | F180: 0 | H180: 0 | J180: 0 | L180: =IF(K180<fiú!$D$2,0,VLOOKUP(K180,hfut,3,TRUE)) -> 0 | M180: 0 | N180: =RANK(M180,Egyéni!$N$3:$N$156,0) -> 44
D181: 0 | F181: 0 | H181: 0 | J181: 0 | L181: =IF(K181<fiú!$D$2,0,VLOOKUP(K181,hfut,3,TRUE)) -> 0 | M181: 0 | N181: =RANK(M181,Egyéni!$N$3:$N$156,0) -> 44
D182: 0 | F182: 0 | H182: 0 | J182: 0 | L182: =IF(K182<fiú!$D$2,0,VLOOKUP(K182,hfut,3,TRUE)) -> 0 | M182: 0 | N182: =RANK(M182,Egyéni!$N$3:$N$156,0) -> 44
D183: 0 | F183: 0 | H183: 0 | J183: 0 | L183: =IF(K183<fiú!$D$2,0,VLOOKUP(K183,hfut,3,TRUE)) -> 0 | M183: 0 | N183: =RANK(M183,Egyéni!$N$3:$N$156,0) -> 44
D184: 0 | F184: 0 | H184: 0 | J184: 0 | L184: =IF(K184<fiú!$D$2,0,VLOOKUP(K184,hfut,3,TRUE)) -> 0 | M184: 0 | N184: =RANK(M184,Egyéni!$N$3:$N$156,0) -> 44
O187: =RANK(O189,Csapat!$C$3:P190,0) -> 8
A188: Név | B188: Sz.év | C188: 100 m | E188: Távolugrás | G188: Klabdahajítás | I188: Súlylökés | K188: 800 m | M188: Összpont | N188: Helyezés
D189: =IF(C189<6.19,0,VLOOKUP(C189,rfut,5,TRUE)) -> 0 | F189: =IF(E189<1.79,0,VLOOKUP(E189,távol,4,TRUE)) -> 0 | H189: =IF(G189<4,0,VLOOKUP(G189,kisl,2,TRUE)) -> 0 | J189: =IF(I189<3,0,VLOOKUP(I189,súly,3,TRUE)) -> 0 | L189: =IF(K189<fiú!$D$2,0,VLOOKUP(K189,hfut,3,TRUE)) -> 0 | M189: =SUM(D189,F189,H189,L189,J189) -> 0 | N189: =RANK(M189,Egyéni!$N$3:$N$156,0) -> 44 | O189: =SUM(M189:M194)-MIN(M189:M194) -> 0
D190: 0 | F190: 0 | H190: 0 | J190: 0 | L190: =IF(K190<fiú!$D$2,0,VLOOKUP(K190,hfut,3,TRUE)) -> 0 | M190: 0 | N190: =RANK(M190,Egyéni!$N$3:$N$156,0) -> 44
D191: 0 | F191: 0 | H191: 0 | J191: 0 | L191: =IF(K191<fiú!$D$2,0,VLOOKUP(K191,hfut,3,TRUE)) -> 0 | M191: 0 | N191: =RANK(M191,Egyéni!$N$3:$N$156,0) -> 44
D192: 0 | F192: 0 | H192: 0 | J192: 0 | L192: =IF(K192<fiú!$D$2,0,VLOOKUP(K192,hfut,3,TRUE)) -> 0 | M192: 0 | N192: =RANK(M192,Egyéni!$N$3:$N$156,0) -> 44
D193: 0 | F193: 0 | H193: 0 | J193: 0 | L193: =IF(K193<fiú!$D$2,0,VLOOKUP(K193,hfut,3,TRUE)) -> 0 | M193: 0 | N193: =RANK(M193,Egyéni!$N$3:$N$156,0) -> 44
D194: 0 | F194: 0 | H194: 0 | J194: 0 | L194: =IF(K194<fiú!$D$2,0,VLOOKUP(K194,hfut,3,TRUE)) -> 0 | M194: 0 | N194: =RANK(M194,Egyéni!$N$3:$N$156,0) -> 44
O197: =RANK(O199,Csapat!$C$3:P200,0) -> 8
A198: Név | B198: Sz.év | C198: 100 m | E198: Távolugrás | G198: Klabdahajítás | I198: Súlylökés | K198: 800 m | M198: Összpont | N198: Helyezés
D199: =IF(C199<6.19,0,VLOOKUP(C199,rfut,5,TRUE)) -> 0 | F199: =IF(E199<1.79,0,VLOOKUP(E199,távol,4,TRUE)) -> 0 | H199: =IF(G199<4,0,VLOOKUP(G199,kisl,2,TRUE)) -> 0 | J199: =IF(I199<3,0,VLOOKUP(I199,súly,3,TRUE)) -> 0 | L199: =IF(K199<fiú!$D$2,0,VLOOKUP(K199,hfut,3,TRUE)) -> 0 | M199: =SUM(D199,F199,H199,L199,J199) -> 0 | N199: =RANK(M199,Egyéni!$N$3:$N$156,0) -> 44 | O199: =SUM(M199:M204)-MIN(M199:M204) -> 0
D200: 0 | F200: 0 | H200: 0 | J200: 0 | L200: =IF(K200<fiú!$D$2,0,VLOOKUP(K200,hfut,3,TRUE)) -> 0 | M200: 0 | N200: =RANK(M200,Egyéni!$N$3:$N$156,0) -> 44
D201: 0 | F201: 0 | H201: 0 | J201: 0 | L201: =IF(K201<fiú!$D$2,0,VLOOKUP(K201,hfut,3,TRUE)) -> 0 | M201: 0 | N201: =RANK(M201,Egyéni!$N$3:$N$156,0) -> 44
D202: 0 | F202: 0 | H202: 0 | J202: 0 | L202: =IF(K202<fiú!$D$2,0,VLOOKUP(K202,hfut,3,TRUE)) -> 0 | M202: 0 | N202: =RANK(M202,Egyéni!$N$3:$N$156,0) -> 44
D203: 0 | F203: 0 | H203: 0 | J203: 0 | L203: =IF(K203<fiú!$D$2,0,VLOOKUP(K203,hfut,3,TRUE)) -> 0 | M203: 0 | N203: =RANK(M203,Egyéni!$N$3:$N$156,0) -> 44
D204: 0 | F204: 0 | H204: 0 | J204: 0 | L204: =IF(K204<fiú!$D$2,0,VLOOKUP(K204,hfut,3,TRUE)) -> 0 | M204: 0 | N204: =RANK(M204,Egyéni!$N$3:$N$156,0) -> 44
O207: =RANK(O209,Csapat!$C$3:P210,0) -> 8
A208: Név | B208: Sz.év | C208: 100 m | E208: Távolugrás | G208: Klabdahajítás | I208: Súlylökés | K208: 800 m | M208: Összpont | N208: Helyezés
D209: =IF(C209<6.19,0,VLOOKUP(C209,rfut,5,TRUE)) -> 0 | F209: =IF(E209<1.79,0,VLOOKUP(E209,távol,4,TRUE)) -> 0 | H209: =IF(G209<4,0,VLOOKUP(G209,kisl,2,TRUE)) -> 0 | J209: =IF(I209<3,0,VLOOKUP(I209,súly,3,TRUE)) -> 0 | L209: =IF(K209<fiú!$D$2,0,VLOOKUP(K209,hfut,3,TRUE)) -> 0 | M209: =SUM(D209,F209,H209,L209,J209) -> 0 | N209: =RANK(M209,Egyéni!$N$3:$N$156,0) -> 44 | O209: =SUM(M209:M214)-MIN(M209:M214) -> 0
D210: 0 | F210: 0 | H210: 0 | J210: 0 | L210: =IF(K210<fiú!$D$2,0,VLOOKUP(K210,hfut,3,TRUE)) -> 0 | M210: 0 | N210: =RANK(M210,Egyéni!$N$3:$N$156,0) -> 44
D211: 0 | F211: 0 | H211: 0 | J211: 0 | L211: =IF(K211<fiú!$D$2,0,VLOOKUP(K211,hfut,3,TRUE)) -> 0 | M211: 0 | N211: =RANK(M211,Egyéni!$N$3:$N$156,0) -> 44
D212: 0 | F212: 0 | H212: 0 | J212: 0 | L212: =IF(K212<fiú!$D$2,0,VLOOKUP(K212,hfut,3,TRUE)) -> 0 | M212: 0 | N212: =RANK(M212,Egyéni!$N$3:$N$156,0) -> 44
D213: 0 | F213: 0 | H213: 0 | J213: 0 | L213: =IF(K213<fiú!$D$2,0,VLOOKUP(K213,hfut,3,TRUE)) -> 0 | M213: 0 | N213: =RANK(M213,Egyéni!$N$3:$N$156,0) -> 44
D214: 0 | F214: 0 | H214: 0 | J214: 0 | L214: =IF(K214<fiú!$D$2,0,VLOOKUP(K214,hfut,3,TRUE)) -> 0 | M214: 0 | N214: =RANK(M214,Egyéni!$N$3:$N$156,0) -> 44
O217: =RANK(O219,Csapat!$C$3:P220,0) -> 8
A218: Név | B218: Sz.év | C218: 100 m | E218: Távolugrás | G218: Klabdahajítás | I218: Súlylökés | K218: 800 m | M218: Összpont | N218: Helyezés
D219: =IF(C219<6.19,0,VLOOKUP(C219,rfut,5,TRUE)) -> 0 | F219: =IF(E219<1.79,0,VLOOKUP(E219,távol,4,TRUE)) -> 0 | H219: =IF(G219<4,0,VLOOKUP(G219,kisl,2,TRUE)) -> 0 | J219: =IF(I219<3,0,VLOOKUP(I219,súly,3,TRUE)) -> 0 | L219: =IF(K219<fiú!$D$2,0,VLOOKUP(K219,hfut,3,TRUE)) -> 0 | M219: =SUM(D219,F219,H219,L219,J219) -> 0 | N219: =RANK(M219,Egyéni!$N$3:$N$156,0) -> 44 | O219: =SUM(M219:M224)-MIN(M219:M224) -> 0
D220: 0 | F220: 0 | H220: 0 | J220: 0 | L220: =IF(K220<fiú!$D$2,0,VLOOKUP(K220,hfut,3,TRUE)) -> 0 | M220: 0 | N220: =RANK(M220,Egyéni!$N$3:$N$156,0) -> 44
D221: 0 | F221: 0 | H221: 0 | J221: 0 | L221: =IF(K221<fiú!$D$2,0,VLOOKUP(K221,hfut,3,TRUE)) -> 0 | M221: 0 | N221: =RANK(M221,Egyéni!$N$3:$N$156,0) -> 44
D222: 0 | F222: 0 | H222: 0 | J222: 0 | L222: =IF(K222<fiú!$D$2,0,VLOOKUP(K222,hfut,3,TRUE)) -> 0 | M222: 0 | N222: =RANK(M222,Egyéni!$N$3:$N$156,0) -> 44
D223: 0 | F223: 0 | H223: 0 | J223: 0 | L223: =IF(K223<fiú!$D$2,0,VLOOKUP(K223,hfut,3,TRUE)) -> 0 | M223: 0 | N223: =RANK(M223,Egyéni!$N$3:$N$156,0) -> 44
D224: 0 | F224: 0 | H224: 0 | J224: 0 | L224: =IF(K224<fiú!$D$2,0,VLOOKUP(K224,hfut,3,TRUE)) -> 0 | M224: 0 | N224: =RANK(M224,Egyéni!$N$3:$N$156,0) -> 44
O227: =RANK(O229,Csapat!$C$3:P230,0) -> 8
A228: Név | B228: Sz.év | C228: 100 m | E228: Távolugrás | G228: Klabdahajítás | I228: Súlylökés | K228: 800 m | M228: Összpont | N228: Helyezés
D229: =IF(C229<6.19,0,VLOOKUP(C229,rfut,5,TRUE)) -> 0 | F229: =IF(E229<1.79,0,VLOOKUP(E229,távol,4,TRUE)) -> 0 | H229: =IF(G229<4,0,VLOOKUP(G229,kisl,2,TRUE)) -> 0 | J229: =IF(I229<3,0,VLOOKUP(I229,súly,3,TRUE)) -> 0 | L229: =IF(K229<fiú!$D$2,0,VLOOKUP(K229,hfut,3,TRUE)) -> 0 | M229: =SUM(D229,F229,H229,L229,J229) -> 0 | N229: =RANK(M229,Egyéni!$N$3:$N$156,0) -> 44 | O229: =SUM(M229:M234)-MIN(M229:M234) -> 0
D230: 0 | F230: 0 | H230: 0 | J230: 0 | L230: =IF(K230<fiú!$D$2,0,VLOOKUP(K230,hfut,3,TRUE)) -> 0 | M230: 0 | N230: =RANK(M230,Egyéni!$N$3:$N$156,0) -> 44
D231: 0 | F231: 0 | H231: 0 | J231: 0 | L231: =IF(K231<fiú!$D$2,0,VLOOKUP(K231,hfut,3,TRUE)) -> 0 | M231: 0 | N231: =RANK(M231,Egyéni!$N$3:$N$156,0) -> 44
D232: 0 | F232: 0 | H232: 0 | J232: 0 | L232: =IF(K232<fiú!$D$2,0,VLOOKUP(K232,hfut,3,TRUE)) -> 0 | M232: 0 | N232: =RANK(M232,Egyéni!$N$3:$N$156,0) -> 44
D233: 0 | F233: 0 | H233: 0 | J233: 0 | L233: =IF(K233<fiú!$D$2,0,VLOOKUP(K233,hfut,3,TRUE)) -> 0 | M233: 0 | N233: =RANK(M233,Egyéni!$N$3:$N$156,0) -> 44
D234: 0 | F234: 0 | H234: 0 | J234: 0 | L234: =IF(K234<fiú!$D$2,0,VLOOKUP(K234,hfut,3,TRUE)) -> 0 | M234: 0 | N234: =RANK(M234,Egyéni!$N$3:$N$156,0) -> 44
O237: =RANK(O239,Csapat!$C$3:P240,0) -> 8
A238: Név | B238: Sz.év | C238: 100 m | E238: Távolugrás | G238: Klabdahajítás | I238: Súlylökés | K238: 800 m | M238: Összpont | N238: Helyezés
D239: =IF(C239<6.19,0,VLOOKUP(C239,rfut,5,TRUE)) -> 0 | F239: =IF(E239<1.79,0,VLOOKUP(E239,távol,4,TRUE)) -> 0 | H239: =IF(G239<4,0,VLOOKUP(G239,kisl,2,TRUE)) -> 0 | J239: =IF(I239<3,0,VLOOKUP(I239,súly,3,TRUE)) -> 0 | L239: =IF(K239<fiú!$D$2,0,VLOOKUP(K239,hfut,3,TRUE)) -> 0 | M239: =SUM(D239,F239,H239,L239,J239) -> 0 | N239: =RANK(M239,Egyéni!$N$3:$N$156,0) -> 44 | O239: =SUM(M239:M244)-MIN(M239:M244) -> 0
D240: 0 | F240: 0 | H240: 0 | J240: 0 | L240: =IF(K240<fiú!$D$2,0,VLOOKUP(K240,hfut,3,TRUE)) -> 0 | M240: 0 | N240: =RANK(M240,Egyéni!$N$3:$N$156,0) -> 44
D241: 0 | F241: 0 | H241: 0 | J241: 0 | L241: =IF(K241<fiú!$D$2,0,VLOOKUP(K241,hfut,3,TRUE)) -> 0 | M241: 0 | N241: =RANK(M241,Egyéni!$N$3:$N$156,0) -> 44
D242: 0 | F242: 0 | H242: 0 | J242: 0 | L242: =IF(K242<fiú!$D$2,0,VLOOKUP(K242,hfut,3,TRUE)) -> 0 | M242: 0 | N242: =RANK(M242,Egyéni!$N$3:$N$156,0) -> 44
D243: 0 | F243: 0 | H243: 0 | J243: 0 | L243: =IF(K243<fiú!$D$2,0,VLOOKUP(K243,hfut,3,TRUE)) -> 0 | M243: 0 | N243: =RANK(M243,Egyéni!$N$3:$N$156,0) -> 44
D244: 0 | F244: 0 | H244: 0 | J244: 0 | L244: =IF(K244<fiú!$D$2,0,VLOOKUP(K244,hfut,3,TRUE)) -> 0 | M244: 0 | N244: =RANK(M244,Egyéni!$N$3:$N$156,0) -> 44

Sheet Egyéni
A1: IV. korcsoport FIÚ EGYÉNI végeredmény ( Rendezés Ctrl + e )
A2: Ssz | B2: Név | C2: Szév | D2: 100 m | E2: p | F2: Távol | G2: p | H2: Kisl | I2: p | J2: Súly | K2: p | L2: 800 m | M2: p | N2: Összp | P2: Iskola
A3: 1. | B3: =Be!A5 -> Tojzán Zádor | C3: =Be!B5 -> 2008 | D3: =Be!C5 -> 12.4 | E3: =Be!D5 -> 202 | F3: =Be!E5 -> 5.65 | G3: =Be!F5 -> 185 | H3: =Be!G5 -> 48.48 | I3: =Be!H5 -> 131 | J3: =Be!I5 -> 11.79 | K3: =Be!J5 -> 170 | L3: =Be!K5 -> 00:02:28.100 | M3: =Be!L5 -> 173 | N3: =Be!M5 -> 861 | P3: =Be!O5 -> Szekszárd, Garay
A4: 2. | B4: =Be!A4 -> Kiss Bendegúz | C4: =Be!B4 -> 2009 | D4: =Be!C4 -> 12.4 | E4: =Be!D4 -> 202 | F4: =Be!E4 -> 5.85 | G4: =Be!F4 -> 196 | H4: =Be!G4 -> 41.41 | I4: =Be!H4 -> 108 | J4: =Be!I4 -> 10.33 | K4: =Be!J4 -> 137 | L4: =Be!K4 -> 00:02:26.100 | M4: =Be!L4 -> 178 | N4: =Be!M4 -> 821 | P4: =Be!O4 -> PTE Gyakorló Ált. Isk.
A5: 3. | B5: =Be!A33 -> Radnóti Gergely Attila | C5: =Be!B33 -> 2008 | D5: =Be!C33 -> 12.5 | E5: =Be!D33 -> 198 | F5: =Be!E33 -> 5.31 | G5: =Be!F33 -> 166 | H5: =Be!G33 -> 40.75 | I5: =Be!H33 -> 105 | J5: =Be!I33 -> 13.75 | K5: =Be!J33 -> 217 | L5: =Be!K33 -> 00:02:46.900 | M5: =Be!L33 -> 128 | N5: =Be!M33 -> 814 | P5: =Be!A27 -> Szekszárdi Dienes V. Ált. Isk.
A6: 4. | B6: =Be!A94 -> Sáfrány Dominik Ferenc | C6: =Be!B94 -> 2008 | D6: =Be!C94 -> 12.6 | E6: =Be!D94 -> 194 | F6: =Be!E94 -> 5.54 | G6: =Be!F94 -> 179 | H6: =Be!G94 -> 47.08 | I6: =Be!H94 -> 126 | J6: =Be!I94 -> 9.34 | K6: =Be!J94 -> 117 | L6: =Be!K94 -> 00:02:25 | M6: =Be!L94 -> 181 | N6: =Be!M94 -> 797 | P6: =Be!A87 -> Nagydorogi Széchényi Sándor Ált. Isk.
A7: 5. | B7: =Be!A61 -> Gréczy Bálint | C7: =Be!B61 -> 2009 | D7: =Be!C61 -> 13.3 | E7: =Be!D61 -> 169 | F7: =Be!E61 -> 4.81 | G7: =Be!F61 -> 139 | H7: =Be!G61 -> 47.15 | I7: =Be!H61 -> 126 | J7: =Be!I61 -> 11.59 | K7: =Be!J61 -> 165 | L7: =Be!K61 -> 00:02:32.500 | M7: =Be!L61 -> 162 | N7: =Be!M61 -> 761 | P7: =Be!A57 -> Szekszárdi Babits M. Ált. Isk.
A8: 6. | B8: =Be!A6 -> Lakatos-Lamm Bence | C8: =Be!B6 -> 2009 | D8: =Be!C6 -> 12.4 | E8: =Be!D6 -> 202 | F8: =Be!E6 -> 5.78 | G8: =Be!F6 -> 192 | H8: =Be!G6 -> 48.92 | I8: =Be!H6 -> 132 | J8: =Be!I6 -> 7.78 | K8: =Be!J6 -> 86 | L8: =Be!K6 -> 00:02:39 | M8: =Be!L6 -> 146 | N8: =Be!M6 -> 758 | P8: =Be!O6 -> Dombóvári Illyés Gy. Gimn.
A9: 7. | B9: =Be!A32 -> Könyves László Lorenzó | C9: =Be!B32 -> 2009 | D9: =Be!C32 -> 13.2 | E9: =Be!D32 -> 173 | F9: =Be!E32 -> 5.02 | G9: =Be!F32 -> 149 | H9: =Be!G32 -> 48.07 | I9: =Be!H32 -> 129 | J9: =Be!I32 -> 9.47 | K9: =Be!J32 -> 119 | L9: =Be!K32 -> 00:02:27.400 | M9: =Be!L32 -> 175 | N9: =Be!M32 -> 745 | P9: =Be!A27 -> Szekszárdi Dienes V. Ált. Isk.
A10: 8. | B10: =Be!A69 -> Halmai Zsombor | C10: =Be!B69 -> 2008 | D10: =Be!C69 -> 13.3 | E10: =Be!D69 -> 169 | F10: =Be!E69 -> 4.53 | G10: =Be!F69 -> 124 | H10: =Be!G69 -> 60.37 | I10: =Be!H69 -> 172 | J10: =Be!I69 -> 10.95 | K10: =Be!J69 -> 150 | L10: =Be!K69 -> 00:02:49.900 | M10: =Be!L69 -> 121 | N10: =Be!M69 -> 736 | P10: =Be!A67 -> Szt. Orsolya Bencés Ált. Isk.
A11: 9. | B11: =Be!A31 -> Kocsis Martin | C11: =Be!B31 -> 2008 | D11: =Be!C31 -> 12.7 | E11: =Be!D31 -> 191 | F11: =Be!E31 -> 5.07 | G11: =Be!F31 -> 152 | H11: =Be!G31 -> 43.52 | I11: =Be!H31 -> 115 | J11: =Be!I31 -> 10.5 | K11: =Be!J31 -> 141 | L11: =Be!K31 -> 00:02:46.300 | M11: =Be!L31 -> 129 | N11: =Be!M31 -> 728 | P11: =Be!A27 -> Szekszárdi Dienes V. Ált. Isk.
A12: 10. | B12: =Be!A70 -> Kapinya Péter | C12: =Be!B70 -> 2008 | D12: =Be!C70 -> 13.2 | E12: =Be!D70 -> 173 | F12: =Be!E70 -> 4.76 | G12: =Be!F70 -> 136 | H12: =Be!G70 -> 55 | I12: =Be!H70 -> 153 | J12: =Be!I70 -> 8.56 | K12: =Be!J70 -> 100 | L12: =Be!K70 -> 00:02:38.500 | M12: =Be!L70 -> 147 | N12: =Be!M70 -> 709 | P12: =Be!A67 -> Szt. Orsolya Bencés Ált. Isk.
A13: 11. | B13: =Be!A59 -> Bíró Botond | C13: =Be!B59 -> 2008 | D13: =Be!C59 -> 13.2 | E13: =Be!D59 -> 173 | F13: =Be!E59 -> 4.83 | G13: =Be!F59 -> 140 | H13: =Be!G59 -> 41.87 | I13: =Be!H59 -> 109 | J13: =Be!I59 -> 8.49 | K13: =Be!J59 -> 99 | L13: =Be!K59 -> 00:02:25.300 | M13: =Be!L59 -> 180 | N13: =Be!M59 -> 701 | P13: =Be!A57 -> Szekszárdi Babits M. Ált. Isk.
A14: 12. | B14: =Be!A71 -> Kovács Barnabás | C14: =Be!B71 -> 2008 | D14: =Be!C71 -> 12.6 | E14: =Be!D71 -> 194 | F14: =Be!E71 -> 4.92 | G14: =Be!F71 -> 144 | H14: =Be!G71 -> 48.88 | I14: =Be!H71 -> 132 | J14: =Be!I71 -> 10.07 | K14: =Be!J71 -> 132 | L14: =Be!K71 -> 00:03:01.400 | M14: =Be!L71 -> 95 | N14: =Be!M71 -> 697 | P14: =Be!A67 -> Szt. Orsolya Bencés Ált. Isk.
A15: 13. | B15: =Be!A30 -> Füle Richárd | C15: =Be!B30 -> 2008 | D15: =Be!C30 -> 13.1 | E15: =Be!D30 -> 176 | F15: =Be!E30 -> 4.72 | G15: =Be!F30 -> 134 | H15: =Be!G30 -> 44.85 | I15: =Be!H30 -> 119 | J15: =Be!I30 -> 9.81 | K15: =Be!J30 -> 126 | L15: =Be!K30 -> 00:02:44.700 | M15: =Be!L30 -> 133 | N15: =Be!M30 -> 688 | P15: =Be!A27 -> Szekszárdi Dienes V. Ált. Isk.
A16: 14. | B16: =Be!A72 -> Szabó Dominik | C16: =Be!B72 -> 2008 | D16: =Be!C72 -> 13.6 | E16: =Be!D72 -> 159 | F16: =Be!E72 -> 4.62 | G16: =Be!F72 -> 129 | H16: =Be!G72 -> 52.4 | I16: =Be!H72 -> 144 | J16: =Be!I72 -> 8.27 | K16: =Be!J72 -> 95 | L16: =Be!K72 -> 00:02:39.700 | M16: =Be!L72 -> 144 | N16: =Be!M72 -> 671 | P16: =Be!A67 -> Szt. Orsolya Bencés Ált. Isk.
A17: 15. | B17: =Be!A63 -> Palkó Boldizsár | C17: =Be!B63 -> 2008 | D17: =Be!C63 -> 13.5 | E17: =Be!D63 -> 162 | F17: =Be!E63 -> 4.47 | G17: =Be!F63 -> 121 | H17: =Be!G63 -> 47.17 | I17: =Be!H63 -> 127 | J17: =Be!I63 -> 10.08 | K17: =Be!J63 -> 132 | L17: =Be!K63 -> 00:02:46.600 | M17: =Be!L63 -> 129 | N17: =Be!M63 -> 671 | P17: =Be!A57 -> Szekszárdi Babits M. Ált. Isk.
A18: 16. | B18: =Be!A64 -> Gréczy Dániel | C18: =Be!B64 -> 2009 | D18: =Be!C64 -> 13.5 | E18: =Be!D64 -> 162 | F18: =Be!E64 -> 4.46 | G18: =Be!F64 -> 121 | H18: =Be!G64 -> 43.76 | I18: =Be!H64 -> 115 | J18: =Be!I64 -> 10.05 | K18: =Be!J64 -> 131 | L18: =Be!K64 -> 00:02:42.800 | M18: =Be!L64 -> 137 | N18: =Be!M64 -> 666 | P18: =Be!A57 -> Szekszárdi Babits M. Ált. Isk.
A19: 17. | B19: =Be!A92 -> Molnár Milán Marcell | C19: =Be!B92 -> 2008 | D19: =Be!C92 -> 13 | E19: =Be!D92 -> 180 | F19: =Be!E92 -> 4.56 | G19: =Be!F92 -> 126 | H19: =Be!G92 -> 41.2 | I19: =Be!H92 -> 107 | J19: =Be!I92 -> 9.02 | K19: =Be!J92 -> 110 | L19: =Be!K92 -> 00:02:41.200 | M19: =Be!L92 -> 141 | N19: =Be!M92 -> 664 | P19: =Be!A87 -> Nagydorogi Széchényi Sándor Ált. Isk.
A20: 18. | B20: =Be!A79 -> Csibi Olivér | C20: =Be!B79 -> 2009 | D20: =Be!C79 -> 13.2 | E20: =Be!D79 -> 173 | F20: =Be!E79 -> 4.4 | G20: =Be!F79 -> 118 | H20: =Be!G79 -> 45.19 | I20: =Be!H79 -> 120 | J20: =Be!I79 -> 9.5 | K20: =Be!J79 -> 120 | L20: =Be!K79 -> 00:02:45.800 | M20: =Be!L79 -> 130 | N20: =Be!M79 -> 661 | P20: =Be!A77 -> Zombai Általános Iskola
A21: 19. | B21: =Be!A62 -> Kappel Márton | C21: =Be!B62 -> 2009 | D21: =Be!C62 -> 13.2 | E21: =Be!D62 -> 173 | F21: =Be!E62 -> 4.33 | G21: =Be!F62 -> 114 | H21: =Be!G62 -> 40.89 | I21: =Be!H62 -> 106 | J21: =Be!I62 -> 9.96 | K21: =Be!J62 -> 130 | L21: =Be!K62 -> 00:02:48.600 | M21: =Be!L62 -> 124 | N21: =Be!M62 -> 647 | P21: =Be!A57 -> Szekszárdi Babits M. Ált. Isk.
A22: 20. | B22: =Be!A81 -> Orsós Kevin Zsolt | C22: =Be!B81 -> 2008 | D22: =Be!C81 -> 13.1 | E22: =Be!D81 -> 176 | F22: =Be!E81 -> 4.63 | G22: =Be!F81 -> 129 | H22: =Be!G81 -> 46.16 | I22: =Be!H81 -> 123 | J22: =Be!I81 -> 10.47 | K22: =Be!J81 -> 140 | L22: =Be!K81 -> 00:03:10.700 | M22: =Be!L81 -> 76 | N22: =Be!M81 -> 644 | P22: =Be!A77 -> Zombai Általános Iskola
A23: 21. | B23: =Be!A91 -> Kovács Tibor | C23: =Be!B91 -> 2008 | D23: =Be!C91 -> 13.5 | E23: =Be!D91 -> 162 | F23: =Be!E91 -> 4.78 | G23: =Be!F91 -> 137 | H23: =Be!G91 -> 50.81 | I23: =Be!H91 -> 138 | J23: =Be!I91 -> 8.25 | K23: =Be!J91 -> 94 | L23: =Be!K91 -> 00:02:53.500 | M23: =Be!L91 -> 113 | N23: =Be!M91 -> 644 | P23: =Be!A87 -> Nagydorogi Széchényi Sándor Ált. Isk.
A24: 22. | B24: =Be!A82 -> Szemes Márk | C24: =Be!B82 -> 2008 | D24: =Be!C82 -> 13.3 | E24: =Be!D82 -> 169 | F24: =Be!E82 -> 4.6 | G24: =Be!F82 -> 128 | H24: =Be!G82 -> 34.57 | I24: =Be!H82 -> 86 | J24: =Be!I82 -> 8.49 | K24: =Be!J82 -> 99 | L24: =Be!K82 -> 00:02:36.300 | M24: =Be!L82 -> 152 | N24: =Be!M82 -> 634 | P24: =Be!A77 -> Zombai Általános Iskola
A25: 23. | B25: =Be!A89 -> Csonka Ármin Milán | C25: =Be!B89 -> 2009 | D25: =Be!C89 -> 13.3 | E25: =Be!D89 -> 169 | F25: =Be!E89 -> 4.19 | G25: =Be!F89 -> 107 | H25: =Be!G89 -> 47.7 | I25: =Be!H89 -> 128 | J25: =Be!I89 -> 8.06 | K25: =Be!J89 -> 91 | L25: =Be!K89 -> 00:02:43.400 | M25: =Be!L89 -> 136 | N25: =Be!M89 -> 631 | P25: =Be!A87 -> Nagydorogi Széchényi Sándor Ált. Isk.
A26: 24. | B26: =Be!A54 -> Vukálovics Ákos | C26: =Be!B54 -> 2008 | D26: =Be!C54 -> 13.4 | E26: =Be!D54 -> 166 | F26: =Be!E54 -> 4.3 | G26: =Be!F54 -> 113 | H26: =Be!G54 -> 40.44 | I26: =Be!H54 -> 104 | J26: =Be!I54 -> 8.13 | K26: =Be!J54 -> 92 | L26: =Be!K54 -> 00:02:38.200 | M26: =Be!L54 -> 148 | N26: =Be!M54 -> 623 | P26: =Be!A47 -> Bonyhádi Petőfi S.E.Gimn. Ált. Isk.
A27: 25. | B27: =Be!A74 -> Tobler Péter | C27: =Be!B74 -> 2009 | D27: =Be!C74 -> 13.8 | E27: =Be!D74 -> 151 | F27: =Be!E74 -> 4.89 | G27: =Be!F74 -> 143 | H27: =Be!G74 -> 39.57 | I27: =Be!H74 -> 102 | J27: =Be!I74 -> 6.92 | K27: =Be!J74 -> 69 | L27: =Be!K74 -> 00:02:40.300 | M27: =Be!L74 -> 143 | N27: =Be!M74 -> 608 | P27: =Be!A67 -> Szt. Orsolya Bencés Ált. Isk.
A28: 26. | B28: =Be!A60 -> Fodor Zalán | C28: =Be!B60 -> 2009 | D28: =Be!C60 -> 13.4 | E28: =Be!D60 -> 166 | F28: =Be!E60 -> 4.64 | G28: =Be!F60 -> 130 | H28: =Be!G60 -> 34.18 | I28: =Be!H60 -> 85 | J28: =Be!I60 -> 6.64 | K28: =Be!J60 -> 64 | L28: =Be!K60 -> 00:02:42.100 | M28: =Be!L60 -> 139 | N28: =Be!M60 -> 584 | P28: =Be!A57 -> Szekszárdi Babits M. Ált. Isk.
A29: 27. | B29: =Be!A34 -> Szoboszlai Máté | C29: =Be!B34 -> 2008 | D29: =Be!C34 -> 13.1 | E29: =Be!D34 -> 176 | F29: =Be!E34 -> 4.08 | G29: =Be!F34 -> 101 | H29: =Be!G34 -> 39 | I29: =Be!H34 -> 100 | J29: =Be!I34 -> 9.34 | K29: =Be!J34 -> 117 | L29: =Be!K34 -> 00:03:06.300 | M29: =Be!L34 -> 85 | N29: =Be!M34 -> 579 | P29: =Be!A27 -> Szekszárdi Dienes V. Ált. Isk.
A30: 28. | B30: =Be!A93 -> Nyári László András | C30: =Be!B93 -> 2009 | D30: =Be!C93 -> 13.6 | E30: =Be!D93 -> 159 | F30: =Be!E93 -> 4.46 | G30: =Be!F93 -> 121 | H30: =Be!G93 -> 48.28 | I30: =Be!H93 -> 130 | J30: =Be!I93 -> 8.9 | K30: =Be!J93 -> 108 | L30: =Be!K93 -> 00:03:23.500 | M30: =Be!L93 -> 50 | N30: =Be!M93 -> 568 | P30: =Be!A87 -> Nagydorogi Széchényi Sándor Ált. Isk.
A31: 29. | B31: =Be!A29 -> Loe Dávid | C31: =Be!B29 -> 2009 | D31: =Be!C29 -> 14.4 | E31: =Be!D29 -> 132 | F31: =Be!E29 -> 4.39 | G31: =Be!F29 -> 117 | H31: =Be!G29 -> 46.56 | I31: =Be!H29 -> 125 | J31: =Be!I29 -> 6.91 | K31: =Be!J29 -> 69 | L31: =Be!K29 -> 00:02:54.100 | M31: =Be!L29 -> 112 | N31: =Be!M29 -> 555 | P31: =Be!A27 -> Szekszárdi Dienes V. Ált. Isk.
A32: 30. | B32: =Be!A49 -> Garay Gergő | C32: =Be!B49 -> 2008 | D32: =Be!C49 -> 13.4 | E32: =Be!D49 -> 166 | F32: =Be!E49 -> 4.22 | G32: =Be!F49 -> 108 | H32: =Be!G49 -> 38.05 | I32: =Be!H49 -> 97 | J32: =Be!I49 -> 7.83 | K32: =Be!J49 -> 87 | L32: =Be!K49 -> 00:03:05.100 | M32: =Be!L49 -> 88 | N32: =Be!M49 -> 546 | P32: =Be!A47 -> Bonyhádi Petőfi S.E.Gimn. Ált. Isk.
A33: 31. | B33: =Be!A73 -> Vida Bence | C33: =Be!B73 -> 2009 | D33: =Be!C73 -> 14.6 | E33: =Be!D73 -> 126 | F33: =Be!E73 -> 4.21 | G33: =Be!F73 -> 108 | H33: =Be!G73 -> 48.08 | I33: =Be!H73 -> 130 | J33: =Be!I73 -> 7.99 | K33: =Be!J73 -> 90 | L33: =Be!K73 -> 00:03:06.600 | M33: =Be!L73 -> 85 | N33: =Be!M73 -> 539 | P33: =Be!A67 -> Szt. Orsolya Bencés Ált. Isk.
A34: 32. | B34: =Be!A53 -> Sánta Balázs | C34: =Be!B53 -> 2008 | D34: =Be!C53 -> 13.9 | E34: =Be!D53 -> 148 | F34: =Be!E53 -> 4.16 | G34: =Be!F53 -> 105 | H34: =Be!G53 -> 42.38 | I34: =Be!H53 -> 111 | J34: =Be!I53 -> 6.96 | K34: =Be!J53 -> 70 | L34: =Be!K53 -> 00:03:02 | M34: =Be!L53 -> 94 | N34: =Be!M53 -> 528 | P34: =Be!A47 -> Bonyhádi Petőfi S.E.Gimn. Ált. Isk.
A35: 33. | B35: =Be!A83 -> Häckl Ábel | C35: =Be!B83 -> 2009 | D35: =Be!C83 -> 13.6 | E35: =Be!D83 -> 159 | F35: =Be!E83 -> 4.16 | G35: =Be!F83 -> 105 | H35: =Be!G83 -> 33.07 | I35: =Be!H83 -> 82 | J35: =Be!I83 -> 6.41 | K35: =Be!J83 -> 60 | L35: =Be!K83 -> 00:02:51.800 | M35: =Be!L83 -> 117 | N35: =Be!M83 -> 523 | P35: =Be!A77 -> Zombai Általános Iskola
A36: 34. | B36: =Be!A99 -> Janthó Márk | C36: =Be!B99 -> 2008 | D36: =Be!C99 -> 14 | E36: =Be!D99 -> 145 | F36: =Be!E99 -> 4.26 | G36: =Be!F99 -> 110 | H36: =Be!G99 -> 33.1 | I36: =Be!H99 -> 82 | J36: =Be!I99 -> 7.63 | K36: =Be!J99 -> 83 | L36: =Be!K99 -> 00:03:00.300 | M36: =Be!L99 -> 98 | N36: =Be!M99 -> 518 | P36: =Be!A97 -> Tolnai Wosinsky M. Ált. Isk.
A37: 35. | B37: =Be!A51 -> Németh Kolos | C37: =Be!B51 -> 2008 | D37: =Be!C51 -> 13.7 | E37: =Be!D51 -> 155 | F37: =Be!E51 -> 0 | G37: =Be!F51 -> 0 | H37: =Be!G51 -> 39.56 | I37: =Be!H51 -> 101 | J37: =Be!I51 -> 9.34 | K37: =Be!J51 -> 117 | L37: =Be!K51 -> 00:02:45.200 | M37: =Be!L51 -> 132 | N37: =Be!M51 -> 505 | P37: =Be!A47 -> Bonyhádi Petőfi S.E.Gimn. Ált. Isk.
A38: 36. | B38: =Be!A90 -> Kocsis Damáz | C38: =Be!B90 -> 2009 | D38: =Be!C90 -> 15.2 | E38: =Be!D90 -> 106 | F38: =Be!E90 -> 3.97 | G38: =Be!F90 -> 96 | H38: =Be!G90 -> 39.73 | I38: =Be!H90 -> 102 | J38: =Be!I90 -> 7.07 | K38: =Be!J90 -> 72 | L38: =Be!K90 -> 00:02:47.400 | M38: =Be!L90 -> 127 | N38: =Be!M90 -> 503 | P38: =Be!A87 -> Nagydorogi Széchényi Sándor Ált. Isk.
A39: 37. | B39: =Be!A80 -> Marázi Archilles | C39: =Be!B80 -> 2009 | D39: =Be!C80 -> 13.8 | E39: =Be!D80 -> 151 | F39: =Be!E80 -> 3.96 | G39: =Be!F80 -> 96 | H39: =Be!G80 -> 37.14 | I39: =Be!H80 -> 94 | J39: =Be!I80 -> 7.15 | K39: =Be!J80 -> 74 | L39: =Be!K80 -> 00:03:08.800 | M39: =Be!L80 -> 80 | N39: =Be!M80 -> 495 | P39: =Be!A77 -> Zombai Általános Iskola
A40: 38. | B40: =Be!A52 -> Schiszler Ádám | C40: =Be!B52 -> 2008 | D40: =Be!C52 -> 13.9 | E40: =Be!D52 -> 148 | F40: =Be!E52 -> 4.07 | G40: =Be!F52 -> 101 | H40: =Be!G52 -> 36.05 | I40: =Be!H52 -> 91 | J40: =Be!I52 -> 7.5 | K40: =Be!J52 -> 80 | L40: =Be!K52 -> 00:03:16.400 | M40: =Be!L52 -> 64 | N40: =Be!M52 -> 484 | P40: =Be!A47 -> Bonyhádi Petőfi S.E.Gimn. Ált. Isk.
A41: 39. | B41: =Be!A100 -> Novák Dávid Ferenc | C41: =Be!B100 -> 2009 | D41: =Be!C100 -> 15.2 | E41: =Be!D100 -> 106 | F41: =Be!E100 -> 3.76 | G41: =Be!F100 -> 86 | H41: =Be!G100 -> 51.38 | I41: =Be!H100 -> 140 | J41: =Be!I100 -> 9.48 | K41: =Be!J100 -> 120 | L41: =Be!K100 -> 00:03:34.300 | M41: =Be!L100 -> 29 | N41: =Be!M100 -> 481 | P41: =Be!A97 -> Tolnai Wosinsky M. Ált. Isk.
A42: 40. | B42: =Be!A50 -> Hucker Olivér | C42: =Be!B50 -> 2009 | D42: =Be!C50 -> 14.2 | E42: =Be!D50 -> 138 | F42: =Be!E50 -> 3.35 | G42: =Be!F50 -> 67 | H42: =Be!G50 -> 31.09 | I42: =Be!H50 -> 76 | J42: =Be!I50 -> 8.51 | K42: =Be!J50 -> 99 | L42: =Be!K50 -> 00:03:00.600 | M42: =Be!L50 -> 97 | N42: =Be!M50 -> 477 | P42: =Be!A47 -> Bonyhádi Petőfi S.E.Gimn. Ált. Isk.
A43: 41. | B43: =Be!A102 -> Straubinger Marcell | C43: =Be!B102 -> 2008 | D43: =Be!C102 -> 15 | E43: =Be!D102 -> 113 | F43: =Be!E102 -> 4.01 | G43: =Be!F102 -> 98 | H43: =Be!G102 -> 43.86 | I43: =Be!H102 -> 116 | J43: =Be!I102 -> 7.88 | K43: =Be!J102 -> 87 | L43: =Be!K102 -> 00:03:25.700 | M43: =Be!L102 -> 46 | N43: =Be!M102 -> 460 | P43: =Be!A97 -> Tolnai Wosinsky M. Ált. Isk.
A44: 42. | B44: =Be!A103 -> Tóth Richárd | C44: =Be!B103 -> 2008 | D44: =Be!C103 -> 14.1 | E44: =Be!D103 -> 142 | F44: =Be!E103 -> 3.88 | G44: =Be!F103 -> 92 | H44: =Be!G103 -> 40.1 | I44: =Be!H103 -> 103 | J44: =Be!I103 -> 7.05 | K44: =Be!J103 -> 72 | L44: =Be!K103 -> 00:03:27.900 | M44: =Be!L103 -> 41 | N44: =Be!M103 -> 450 | P44: =Be!A97 -> Tolnai Wosinsky M. Ált. Isk.
A45: 43. | B45: =Be!A101 -> Potyondi Botond | C45: =Be!B101 -> 2009 | D45: =Be!C101 -> 15.1 | E45: =Be!D101 -> 110 | F45: =Be!E101 -> 3.5 | G45: =Be!F101 -> 74 | H45: =Be!G101 -> 33.53 | I45: =Be!H101 -> 83 | J45: =Be!I101 -> 4.75 | K45: =Be!J101 -> 30 | L45: =Be!K101 -> 00:03:16.700 | M45: =Be!L101 -> 64 | N45: =Be!M101 -> 361 | P45: =Be!A97 -> Tolnai Wosinsky M. Ált. Isk.
A46: 44. | B46: =Be!A41 -> 0 | C46: =Be!B41 -> 0 | D46: =Be!C41 -> 0 | E46: =Be!D41 -> 0 | F46: =Be!E41 -> 0 | G46: =Be!F41 -> 0 | H46: =Be!G41 -> 0 | I46: =Be!H41 -> 0 | J46: =Be!I41 -> 0 | K46: =Be!J41 -> 0 | L46: =Be!K41 -> 00:00:00 | M46: =Be!L41 -> 0 | N46: =Be!M41 -> 0 | P46: =Be!A37 -> 0
A47: 45. | B47: =Be!A39 -> 0 | C47: =Be!B39 -> 0 | D47: =Be!C39 -> 0 | E47: =Be!D39 -> 0 | F47: =Be!E39 -> 0 | G47: =Be!F39 -> 0 | H47: =Be!G39 -> 0 | I47: =Be!H39 -> 0 | J47: =Be!I39 -> 0 | K47: =Be!J39 -> 0 | L47: =Be!K39 -> 00:00:00 | M47: =Be!L39 -> 0 | N47: =Be!M39 -> 0 | P47: =Be!A37 -> 0
A48: 46. | B48: =Be!A43 -> 0 | C48: =Be!B43 -> 0 | D48: =Be!C43 -> 0 | E48: =Be!D43 -> 0 | F48: =Be!E43 -> 0 | G48: =Be!F43 -> 0 | H48: =Be!G43 -> 0 | I48: =Be!H43 -> 0 | J48: =Be!I43 -> 0 | K48: =Be!J43 -> 0 | L48: =Be!K43 -> 00:00:00 | M48: =Be!L43 -> 0 | N48: =Be!M43 -> 0 | P48: =Be!A37 -> 0
A49: 47. | B49: =Be!A44 -> 0 | C49: =Be!B44 -> 0 | D49: =Be!C44 -> 0 | E49: =Be!D44 -> 0 | F49: =Be!E44 -> 0 | G49: =Be!F44 -> 0 | H49: =Be!G44 -> 0 | I49: =Be!H44 -> 0 | J49: =Be!I44 -> 0 | K49: =Be!J44 -> 0 | L49: =Be!K44 -> 00:00:00 | M49: =Be!L44 -> 0 | N49: =Be!M44 -> 0 | P49: =Be!A37 -> 0
A50: 48. | B50: =Be!A42 -> 0 | C50: =Be!B42 -> 0 | D50: =Be!C42 -> 0 | E50: =Be!D42 -> 0 | F50: =Be!E42 -> 0 | G50: =Be!F42 -> 0 | H50: =Be!G42 -> 0 | I50: =Be!H42 -> 0 | J50: =Be!I42 -> 0 | K50: =Be!J42 -> 0 | L50: =Be!K42 -> 00:00:00 | M50: =Be!L42 -> 0 | N50: =Be!M42 -> 0 | P50: =Be!A37 -> 0
A51: 49. | B51: =Be!A40 -> 0 | C51: =Be!B40 -> 0 | D51: =Be!C40 -> 0 | E51: =Be!D40 -> 0 | F51: =Be!E40 -> 0 | G51: =Be!F40 -> 0 | H51: =Be!G40 -> 0 | I51: =Be!H40 -> 0 | J51: =Be!I40 -> 0 | K51: =Be!J40 -> 0 | L51: =Be!K40 -> 00:00:00 | M51: =Be!L40 -> 0 | N51: =Be!M40 -> 0 | P51: =Be!A37 -> 0
A52: 50. | B52: =Be!A7 -> 0 | C52: =Be!B7 -> 0 | D52: =Be!C7 -> 0 | E52: =Be!D7 -> 0 | F52: =Be!E7 -> 0 | G52: =Be!F7 -> 0 | H52: =Be!G7 -> 0 | I52: =Be!H7 -> 0 | J52: =Be!I7 -> 0 | K52: =Be!J7 -> 0 | L52: =Be!K7 -> 00:00:00 | M52: =Be!L7 -> 0 | N52: =Be!M7 -> 0 | P52: =Be!O7 -> 0
A53: 51. | B53: =Be!A8 -> 0 | C53: =Be!B8 -> 0 | D53: =Be!C8 -> 0 | E53: =Be!D8 -> 0 | F53: =Be!E8 -> 0 | G53: =Be!F8 -> 0 | H53: =Be!G8 -> 0 | I53: =Be!H8 -> 0 | J53: =Be!I8 -> 0 | K53: =Be!J8 -> 0 | L53: =Be!K8 -> 00:00:00 | M53: =Be!L8 -> 0 | N53: =Be!M8 -> 0 | P53: =Be!O8 -> 0
A54: 52. | B54: =Be!A9 -> 0 | C54: =Be!B9 -> 0 | D54: =Be!C9 -> 0 | E54: =Be!D9 -> 0 | F54: =Be!E9 -> 0 | G54: =Be!F9 -> 0 | H54: =Be!G9 -> 0 | I54: =Be!H9 -> 0 | J54: =Be!I9 -> 0 | K54: =Be!J9 -> 0 | L54: =Be!K9 -> 00:00:00 | M54: =Be!L9 -> 0 | N54: =Be!M9 -> 0 | P54: =Be!O9 -> 0
A55: 53. | B55: =Be!A10 -> 0 | C55: =Be!B10 -> 0 | D55: =Be!C10 -> 0 | E55: =Be!D10 -> 0 | F55: =Be!E10 -> 0 | G55: =Be!F10 -> 0 | H55: =Be!G10 -> 0 | I55: =Be!H10 -> 0 | J55: =Be!I10 -> 0 | K55: =Be!J10 -> 0 | L55: =Be!K10 -> 00:00:00 | M55: =Be!L10 -> 0 | N55: =Be!M10 -> 0 | P55: =Be!O10 -> 0
A56: 54. | B56: =Be!A11 -> 0 | C56: =Be!B11 -> 0 | D56: =Be!C11 -> 0 | E56: =Be!D11 -> 0 | F56: =Be!E11 -> 0 | G56: =Be!F11 -> 0 | H56: =Be!G11 -> 0 | I56: =Be!H11 -> 0 | J56: =Be!I11 -> 0 | K56: =Be!J11 -> 0 | L56: =Be!K11 -> 00:00:00 | M56: =Be!L11 -> 0 | N56: =Be!M11 -> 0 | P56: =Be!O11 -> 0
A57: 55. | B57: =Be!A12 -> 0 | C57: =Be!B12 -> 0 | D57: =Be!C12 -> 0 | E57: =Be!D12 -> 0 | F57: =Be!E12 -> 0 | G57: =Be!F12 -> 0 | H57: =Be!G12 -> 0 | I57: =Be!H12 -> 0 | J57: =Be!I12 -> 0 | K57: =Be!J12 -> 0 | L57: =Be!K12 -> 00:00:00 | M57: =Be!L12 -> 0 | N57: =Be!M12 -> 0 | P57: =Be!O12 -> 0
A58: 56. | B58: =Be!A13 -> 0 | C58: =Be!B13 -> 0 | D58: =Be!C13 -> 0 | E58: =Be!D13 -> 0 | F58: =Be!E13 -> 0 | G58: =Be!F13 -> 0 | H58: =Be!G13 -> 0 | I58: =Be!H13 -> 0 | J58: =Be!I13 -> 0 | K58: =Be!J13 -> 0 | L58: =Be!K13 -> 00:00:00 | M58: =Be!L13 -> 0 | N58: =Be!M13 -> 0 | P58: =Be!O13 -> 0
A59: 57. | B59: =Be!A14 -> 0 | C59: =Be!B14 -> 0 | D59: =Be!C14 -> 0 | E59: =Be!D14 -> 0 | F59: =Be!E14 -> 0 | G59: =Be!F14 -> 0 | H59: =Be!G14 -> 0 | I59: =Be!H14 -> 0 | J59: =Be!I14 -> 0 | K59: =Be!J14 -> 0 | L59: =Be!K14 -> 00:00:00 | M59: =Be!L14 -> 0 | N59: =Be!M14 -> 0 | P59: =Be!O14 -> 0
A60: 58. | B60: =Be!A15 -> 0 | C60: =Be!B15 -> 0 | D60: =Be!C15 -> 0 | E60: =Be!D15 -> 0 | F60: =Be!E15 -> 0 | G60: =Be!F15 -> 0 | H60: =Be!G15 -> 0 | I60: =Be!H15 -> 0 | J60: =Be!I15 -> 0 | K60: =Be!J15 -> 0 | L60: =Be!K15 -> 00:00:00 | M60: =Be!L15 -> 0 | N60: =Be!M15 -> 0 | P60: =Be!O15 -> 0
A61: 59. | B61: =Be!A16 -> 0 | C61: =Be!B16 -> 0 | D61: =Be!C16 -> 0 | E61: =Be!D16 -> 0 | F61: =Be!E16 -> 0 | G61: =Be!F16 -> 0 | H61: =Be!G16 -> 0 | I61: =Be!H16 -> 0 | J61: =Be!I16 -> 0 | K61: =Be!J16 -> 0 | L61: =Be!K16 -> 00:00:00 | M61: =Be!L16 -> 0 | N61: =Be!M16 -> 0 | P61: =Be!O16 -> 0
A62: 60. | B62: =Be!A17 -> 0 | C62: =Be!B17 -> 0 | D62: =Be!C17 -> 0 | E62: =Be!D17 -> 0 | F62: =Be!E17 -> 0 | G62: =Be!F17 -> 0 | H62: =Be!G17 -> 0 | I62: =Be!H17 -> 0 | J62: =Be!I17 -> 0 | K62: =Be!J17 -> 0 | L62: =Be!K17 -> 00:00:00 | M62: =Be!L17 -> 0 | N62: =Be!M17 -> 0 | P62: =Be!O17 -> 0
A63: 61. | B63: =Be!A18 -> 0 | C63: =Be!B18 -> 0 | D63: =Be!C18 -> 0 | E63: =Be!D18 -> 0 | F63: =Be!E18 -> 0 | G63: =Be!F18 -> 0 | H63: =Be!G18 -> 0 | I63: =Be!H18 -> 0 | J63: =Be!I18 -> 0 | K63: =Be!J18 -> 0 | L63: =Be!K18 -> 00:00:00 | M63: =Be!L18 -> 0 | N63: =Be!M18 -> 0 | P63: =Be!O18 -> 0
A64: 62. | B64: =Be!A19 -> 0 | C64: =Be!B19 -> 0 | D64: =Be!C19 -> 0 | E64: =Be!D19 -> 0 | F64: =Be!E19 -> 0 | G64: =Be!F19 -> 0 | H64: =Be!G19 -> 0 | I64: =Be!H19 -> 0 | J64: =Be!I19 -> 0 | K64: =Be!J19 -> 0 | L64: =Be!K19 -> 00:00:00 | M64: =Be!L19 -> 0 | N64: =Be!M19 -> 0 | P64: =Be!O19 -> 0
A65: 63. | B65: =Be!A20 -> 0 | C65: =Be!B20 -> 0 | D65: =Be!C20 -> 0 | E65: =Be!D20 -> 0 | F65: =Be!E20 -> 0 | G65: =Be!F20 -> 0 | H65: =Be!G20 -> 0 | I65: =Be!H20 -> 0 | J65: =Be!I20 -> 0 | K65: =Be!J20 -> 0 | L65: =Be!K20 -> 00:00:00 | M65: =Be!L20 -> 0 | N65: =Be!M20 -> 0 | P65: =Be!O20 -> 0
A66: 64. | B66: =Be!A21 -> 0 | C66: =Be!B21 -> 0 | D66: =Be!C21 -> 0 | E66: =Be!D21 -> 0 | F66: =Be!E21 -> 0 | G66: =Be!F21 -> 0 | H66: =Be!G21 -> 0 | I66: =Be!H21 -> 0 | J66: =Be!I21 -> 0 | K66: =Be!J21 -> 0 | L66: =Be!K21 -> 00:00:00 | M66: =Be!L21 -> 0 | N66: =Be!M21 -> 0 | P66: =Be!O21 -> 0
A67: 65. | B67: =Be!A22 -> 0 | C67: =Be!B22 -> 0 | D67: =Be!C22 -> 0 | E67: =Be!D22 -> 0 | F67: =Be!E22 -> 0 | G67: =Be!F22 -> 0 | H67: =Be!G22 -> 0 | I67: =Be!H22 -> 0 | J67: =Be!I22 -> 0 | K67: =Be!J22 -> 0 | L67: =Be!K22 -> 00:00:00 | M67: =Be!L22 -> 0 | N67: =Be!M22 -> 0 | P67: =Be!O22 -> 0
A68: 66. | B68: =Be!A23 -> 0 | C68: =Be!B23 -> 0 | D68: =Be!C23 -> 0 | E68: =Be!D23 -> 0 | F68: =Be!E23 -> 0 | G68: =Be!F23 -> 0 | H68: =Be!G23 -> 0 | I68: =Be!H23 -> 0 | J68: =Be!I23 -> 0 | K68: =Be!J23 -> 0 | L68: =Be!K23 -> 00:00:00 | M68: =Be!L23 -> 0 | N68: =Be!M23 -> 0 | P68: =Be!O23 -> 0
A69: 67. | B69: =Be!A24 -> 0 | C69: =Be!B24 -> 0 | D69: =Be!C24 -> 0 | E69: =Be!D24 -> 0 | F69: =Be!E24 -> 0 | G69: =Be!F24 -> 0 | H69: =Be!G24 -> 0 | I69: =Be!H24 -> 0 | J69: =Be!I24 -> 0 | K69: =Be!J24 -> 0 | L69: =Be!K24 -> 00:00:00 | M69: =Be!L24 -> 0 | N69: =Be!M24 -> 0 | P69: =Be!O24 -> 0
A70: 68. | B70: =Be!A25 -> 0 | C70: =Be!B25 -> 0 | D70: =Be!C25 -> 0 | E70: =Be!D25 -> 0 | F70: =Be!E25 -> 0 | G70: =Be!F25 -> 0 | H70: =Be!G25 -> 0 | I70: =Be!H25 -> 0 | J70: =Be!I25 -> 0 | K70: =Be!J25 -> 0 | L70: =Be!K25 -> 00:00:00 | M70: =Be!L25 -> 0 | N70: =Be!M25 -> 0 | P70: =Be!O25 -> 0
A71: 69. | B71: =Be!A84 -> 0 | C71: =Be!B84 -> 0 | D71: =Be!C84 -> 0 | E71: =Be!D84 -> 0 | F71: =Be!E84 -> 0 | G71: =Be!F84 -> 0 | H71: =Be!G84 -> 0 | I71: =Be!H84 -> 0 | J71: =Be!I84 -> 0 | K71: =Be!J84 -> 0 | L71: =Be!K84 -> 00:00:00 | M71: =Be!L84 -> 0 | N71: =Be!M84 -> 0 | P71: =Be!A77 -> Zombai Általános Iskola
A72: 70. | B72: =Be!A104 -> 0 | C72: =Be!B104 -> 0 | D72: =Be!C104 -> 0 | E72: =Be!D104 -> 0 | F72: =Be!E104 -> 0 | G72: =Be!F104 -> 0 | H72: =Be!G104 -> 0 | I72: =Be!H104 -> 0 | J72: =Be!I104 -> 0 | K72: =Be!J104 -> 0 | L72: =Be!K104 -> 00:00:00 | M72: =Be!L104 -> 0 | N72: =Be!M104 -> 0 | P72: =Be!A97 -> Tolnai Wosinsky M. Ált. Isk.
A73: 71. | B73: =Be!A109 -> 0 | C73: =Be!B109 -> 0 | D73: =Be!C109 -> 0 | E73: =Be!D109 -> 0 | F73: =Be!E109 -> 0 | G73: =Be!F109 -> 0 | H73: =Be!G109 -> 0 | I73: =Be!H109 -> 0 | J73: =Be!I109 -> 0 | K73: =Be!J109 -> 0 | L73: =Be!K109 -> 00:00:00 | M73: =Be!L109 -> 0 | N73: =Be!M109 -> 0 | P73: =Be!A107 -> 0
A74: 72. | B74: =Be!A110 -> 0 | C74: =Be!B110 -> 0 | D74: =Be!C110 -> 0 | E74: =Be!D110 -> 0 | F74: =Be!E110 -> 0 | G74: =Be!F110 -> 0 | H74: =Be!G110 -> 0 | I74: =Be!H110 -> 0 | J74: =Be!I110 -> 0 | K74: =Be!J110 -> 0 | L74: =Be!K110 -> 00:00:00 | M74: =Be!L110 -> 0 | N74: =Be!M110 -> 0 | P74: =Be!A107 -> 0
A75: 73. | B75: =Be!A111 -> 0 | C75: =Be!B111 -> 0 | D75: =Be!C111 -> 0 | E75: =Be!D111 -> 0 | F75: =Be!E111 -> 0 | G75: =Be!F111 -> 0 | H75: =Be!G111 -> 0 | I75: =Be!H111 -> 0 | J75: =Be!I111 -> 0 | K75: =Be!J111 -> 0 | L75: =Be!K111 -> 00:00:00 | M75: =Be!L111 -> 0 | N75: =Be!M111 -> 0 | P75: =Be!A107 -> 0
A76: 74. | B76: =Be!A112 -> 0 | C76: =Be!B112 -> 0 | D76: =Be!C112 -> 0 | E76: =Be!D112 -> 0 | F76: =Be!E112 -> 0 | G76: =Be!F112 -> 0 | H76: =Be!G112 -> 0 | I76: =Be!H112 -> 0 | J76: =Be!I112 -> 0 | K76: =Be!J112 -> 0 | L76: =Be!K112 -> 00:00:00 | M76: =Be!L112 -> 0 | N76: =Be!M112 -> 0 | P76: =Be!A107 -> 0
A77: 75. | B77: =Be!A113 -> 0 | C77: =Be!B113 -> 0 | D77: =Be!C113 -> 0 | E77: =Be!D113 -> 0 | F77: =Be!E113 -> 0 | G77: =Be!F113 -> 0 | H77: =Be!G113 -> 0 | I77: =Be!H113 -> 0 | J77: =Be!I113 -> 0 | K77: =Be!J113 -> 0 | L77: =Be!K113 -> 00:00:00 | M77: =Be!L113 -> 0 | N77: =Be!M113 -> 0 | P77: =Be!A107 -> 0
A78: 76. | B78: =Be!A114 -> 0 | C78: =Be!B114 -> 0 | D78: =Be!C114 -> 0 | E78: =Be!D114 -> 0 | F78: =Be!E114 -> 0 | G78: =Be!F114 -> 0 | H78: =Be!G114 -> 0 | I78: =Be!H114 -> 0 | J78: =Be!I114 -> 0 | K78: =Be!J114 -> 0 | L78: =Be!K114 -> 00:00:00 | M78: =Be!L114 -> 0 | N78: =Be!M114 -> 0 | P78: =Be!A107 -> 0
A79: 77. | B79: =Be!A119 -> 0 | C79: =Be!B119 -> 0 | D79: =Be!C119 -> 0 | E79: =Be!D119 -> 0 | F79: =Be!E119 -> 0 | G79: =Be!F119 -> 0 | H79: =Be!G119 -> 0 | I79: =Be!H119 -> 0 | J79: =Be!I119 -> 0 | K79: =Be!J119 -> 0 | L79: =Be!K119 -> 00:00:00 | M79: =Be!L119 -> 0 | N79: =Be!M119 -> 0 | P79: =Be!A117 -> 0
A80: 78. | B80: =Be!A120 -> 0 | C80: =Be!B120 -> 0 | D80: =Be!C120 -> 0 | E80: =Be!D120 -> 0 | F80: =Be!E120 -> 0 | G80: =Be!F120 -> 0 | H80: =Be!G120 -> 0 | I80: =Be!H120 -> 0 | J80: =Be!I120 -> 0 | K80: =Be!J120 -> 0 | L80: =Be!K120 -> 00:00:00 | M80: =Be!L120 -> 0 | N80: =Be!M120 -> 0 | P80: =Be!A117 -> 0
A81: 79. | B81: =Be!A121 -> 0 | C81: =Be!B121 -> 0 | D81: =Be!C121 -> 0 | E81: =Be!D121 -> 0 | F81: =Be!E121 -> 0 | G81: =Be!F121 -> 0 | H81: =Be!G121 -> 0 | I81: =Be!H121 -> 0 | J81: =Be!I121 -> 0 | K81: =Be!J121 -> 0 | L81: =Be!K121 -> 00:00:00 | M81: =Be!L121 -> 0 | N81: =Be!M121 -> 0 | P81: =Be!A117 -> 0
A82: 80. | B82: =Be!A122 -> 0 | C82: =Be!B122 -> 0 | D82: =Be!C122 -> 0 | E82: =Be!D122 -> 0 | F82: =Be!E122 -> 0 | G82: =Be!F122 -> 0 | H82: =Be!G122 -> 0 | I82: =Be!H122 -> 0 | J82: =Be!I122 -> 0 | K82: =Be!J122 -> 0 | L82: =Be!K122 -> 00:00:00 | M82: =Be!L122 -> 0 | N82: =Be!M122 -> 0 | P82: =Be!A117 -> 0
A83: 81. | B83: =Be!A123 -> 0 | C83: =Be!B123 -> 0 | D83: =Be!C123 -> 0 | E83: =Be!D123 -> 0 | F83: =Be!E123 -> 0 | G83: =Be!F123 -> 0 | H83: =Be!G123 -> 0 | I83: =Be!H123 -> 0 | J83: =Be!I123 -> 0 | K83: =Be!J123 -> 0 | L83: =Be!K123 -> 00:00:00 | M83: =Be!L123 -> 0 | N83: =Be!M123 -> 0 | P83: =Be!A117 -> 0
A84: 82. | B84: =Be!A124 -> 0 | C84: =Be!B124 -> 0 | D84: =Be!C124 -> 0 | E84: =Be!D124 -> 0 | F84: =Be!E124 -> 0 | G84: =Be!F124 -> 0 | H84: =Be!G124 -> 0 | I84: =Be!H124 -> 0 | J84: =Be!I124 -> 0 | K84: =Be!J124 -> 0 | L84: =Be!K124 -> 00:00:00 | M84: =Be!L124 -> 0 | N84: =Be!M124 -> 0 | P84: =Be!A117 -> 0
A85: 83. | B85: =Be!A129 -> 0 | C85: =Be!B129 -> 0 | D85: =Be!C129 -> 0 | E85: =Be!D129 -> 0 | F85: =Be!E129 -> 0 | G85: =Be!F129 -> 0 | H85: =Be!G129 -> 0 | I85: =Be!H129 -> 0 | J85: =Be!I129 -> 0 | K85: =Be!J129 -> 0 | L85: =Be!K129 -> 00:00:00 | M85: =Be!L129 -> 0 | N85: =Be!M129 -> 0 | P85: =Be!A127 -> 0
A86: 84. | B86: =Be!A130 -> 0 | C86: =Be!B130 -> 0 | D86: =Be!C130 -> 0 | E86: =Be!D130 -> 0 | F86: =Be!E130 -> 0 | G86: =Be!F130 -> 0 | H86: =Be!G130 -> 0 | I86: =Be!H130 -> 0 | J86: =Be!I130 -> 0 | K86: =Be!J130 -> 0 | L86: =Be!K130 -> 00:00:00 | M86: =Be!L130 -> 0 | N86: =Be!M130 -> 0 | P86: =Be!A127 -> 0
A87: 85. | B87: =Be!A131 -> 0 | C87: =Be!B131 -> 0 | D87: =Be!C131 -> 0 | E87: =Be!D131 -> 0 | F87: =Be!E131 -> 0 | G87: =Be!F131 -> 0 | H87: =Be!G131 -> 0 | I87: =Be!H131 -> 0 | J87: =Be!I131 -> 0 | K87: =Be!J131 -> 0 | L87: =Be!K131 -> 00:00:00 | M87: =Be!L131 -> 0 | N87: =Be!M131 -> 0 | P87: =Be!A127 -> 0
A88: 86. | B88: =Be!A132 -> 0 | C88: =Be!B132 -> 0 | D88: =Be!C132 -> 0 | E88: =Be!D132 -> 0 | F88: =Be!E132 -> 0 | G88: =Be!F132 -> 0 | H88: =Be!G132 -> 0 | I88: =Be!H132 -> 0 | J88: =Be!I132 -> 0 | K88: =Be!J132 -> 0 | L88: =Be!K132 -> 00:00:00 | M88: =Be!L132 -> 0 | N88: =Be!M132 -> 0 | P88: =Be!A127 -> 0
A89: 87. | B89: =Be!A133 -> 0 | C89: =Be!B133 -> 0 | D89: =Be!C133 -> 0 | E89: =Be!D133 -> 0 | F89: =Be!E133 -> 0 | G89: =Be!F133 -> 0 | H89: =Be!G133 -> 0 | I89: =Be!H133 -> 0 | J89: =Be!I133 -> 0 | K89: =Be!J133 -> 0 | L89: =Be!K133 -> 00:00:00 | M89: =Be!L133 -> 0 | N89: =Be!M133 -> 0 | P89: =Be!A127 -> 0
A90: 88. | B90: =Be!A134 -> 0 | C90: =Be!B134 -> 0 | D90: =Be!C134 -> 0 | E90: =Be!D134 -> 0 | F90: =Be!E134 -> 0 | G90: =Be!F134 -> 0 | H90: =Be!G134 -> 0 | I90: =Be!H134 -> 0 | J90: =Be!I134 -> 0 | K90: =Be!J134 -> 0 | L90: =Be!K134 -> 00:00:00 | M90: =Be!L134 -> 0 | N90: =Be!M134 -> 0 | P90: =Be!A127 -> 0
A91: 89. | B91: =Be!A139 -> 0 | C91: =Be!B139 -> 0 | D91: =Be!C139 -> 0 | E91: =Be!D139 -> 0 | F91: =Be!E139 -> 0 | G91: =Be!F139 -> 0 | H91: =Be!G139 -> 0 | I91: =Be!H139 -> 0 | J91: =Be!I139 -> 0 | K91: =Be!J139 -> 0 | L91: =Be!K139 -> 00:00:00 | M91: =Be!L139 -> 0 | N91: =Be!M139 -> 0 | P91: =Be!A137 -> 0
A92: 90. | B92: =Be!A140 -> 0 | C92: =Be!B140 -> 0 | D92: =Be!C140 -> 0 | E92: =Be!D140 -> 0 | F92: =Be!E140 -> 0 | G92: =Be!F140 -> 0 | H92: =Be!G140 -> 0 | I92: =Be!H140 -> 0 | J92: =Be!I140 -> 0 | K92: =Be!J140 -> 0 | L92: =Be!K140 -> 00:00:00 | M92: =Be!L140 -> 0 | N92: =Be!M140 -> 0 | P92: =Be!A137 -> 0
A93: 91. | B93: =Be!A141 -> 0 | C93: =Be!B141 -> 0 | D93: =Be!C141 -> 0 | E93: =Be!D141 -> 0 | F93: =Be!E141 -> 0 | G93: =Be!F141 -> 0 | H93: =Be!G141 -> 0 | I93: =Be!H141 -> 0 | J93: =Be!I141 -> 0 | K93: =Be!J141 -> 0 | L93: =Be!K141 -> 00:00:00 | M93: =Be!L141 -> 0 | N93: =Be!M141 -> 0 | P93: =Be!A137 -> 0
A94: 92. | B94: =Be!A142 -> 0 | C94: =Be!B142 -> 0 | D94: =Be!C142 -> 0 | E94: =Be!D142 -> 0 | F94: =Be!E142 -> 0 | G94: =Be!F142 -> 0 | H94: =Be!G142 -> 0 | I94: =Be!H142 -> 0 | J94: =Be!I142 -> 0 | K94: =Be!J142 -> 0 | L94: =Be!K142 -> 00:00:00 | M94: =Be!L142 -> 0 | N94: =Be!M142 -> 0 | P94: =Be!A137 -> 0
A95: 93. | B95: =Be!A143 -> 0 | C95: =Be!B143 -> 0 | D95: =Be!C143 -> 0 | E95: =Be!D143 -> 0 | F95: =Be!E143 -> 0 | G95: =Be!F143 -> 0 | H95: =Be!G143 -> 0 | I95: =Be!H143 -> 0 | J95: =Be!I143 -> 0 | K95: =Be!J143 -> 0 | L95: =Be!K143 -> 00:00:00 | M95: =Be!L143 -> 0 | N95: =Be!M143 -> 0 | P95: =Be!A137 -> 0
A96: 94. | B96: =Be!A144 -> 0 | C96: =Be!B144 -> 0 | D96: =Be!C144 -> 0 | E96: =Be!D144 -> 0 | F96: =Be!E144 -> 0 | G96: =Be!F144 -> 0 | H96: =Be!G144 -> 0 | I96: =Be!H144 -> 0 | J96: =Be!I144 -> 0 | K96: =Be!J144 -> 0 | L96: =Be!K144 -> 00:00:00 | M96: =Be!L144 -> 0 | N96: =Be!M144 -> 0 | P96: =Be!A137 -> 0
A97: 95. | B97: =Be!A149 -> 0 | C97: =Be!B149 -> 0 | D97: =Be!C149 -> 0 | E97: =Be!D149 -> 0 | F97: =Be!E149 -> 0 | G97: =Be!F149 -> 0 | H97: =Be!G149 -> 0 | I97: =Be!H149 -> 0 | J97: =Be!I149 -> 0 | K97: =Be!J149 -> 0 | L97: =Be!K149 -> 00:00:00 | M97: =Be!L149 -> 0 | N97: =Be!M149 -> 0 | P97: =Be!A147 -> 0
A98: 96. | B98: =Be!A150 -> 0 | C98: =Be!B150 -> 0 | D98: =Be!C150 -> 0 | E98: =Be!D150 -> 0 | F98: =Be!E150 -> 0 | G98: =Be!F150 -> 0 | H98: =Be!G150 -> 0 | I98: =Be!H150 -> 0 | J98: =Be!I150 -> 0 | K98: =Be!J150 -> 0 | L98: =Be!K150 -> 00:00:00 | M98: =Be!L150 -> 0 | N98: =Be!M150 -> 0 | P98: =Be!A147 -> 0
A99: 97. | B99: =Be!A151 -> 0 | C99: =Be!B151 -> 0 | D99: =Be!C151 -> 0 | E99: =Be!D151 -> 0 | F99: =Be!E151 -> 0 | G99: =Be!F151 -> 0 | H99: =Be!G151 -> 0 | I99: =Be!H151 -> 0 | J99: =Be!I151 -> 0 | K99: =Be!J151 -> 0 | L99: =Be!K151 -> 00:00:00 | M99: =Be!L151 -> 0 | N99: =Be!M151 -> 0 | P99: =Be!A147 -> 0
A100: 98. | B100: =Be!A152 -> 0 | C100: =Be!B152 -> 0 | D100: =Be!C152 -> 0 | E100: =Be!D152 -> 0 | F100: =Be!E152 -> 0 | G100: =Be!F152 -> 0 | H100: =Be!G152 -> 0 | I100: =Be!H152 -> 0 | J100: =Be!I152 -> 0 | K100: =Be!J152 -> 0 | L100: =Be!K152 -> 00:00:00 | M100: =Be!L152 -> 0 | N100: =Be!M152 -> 0 | P100: =Be!A147 -> 0
A101: 99. | B101: =Be!A153 -> 0 | C101: =Be!B153 -> 0 | D101: =Be!C153 -> 0 | E101: =Be!D153 -> 0 | F101: =Be!E153 -> 0 | G101: =Be!F153 -> 0 | H101: =Be!G153 -> 0 | I101: =Be!H153 -> 0 | J101: =Be!I153 -> 0 | K101: =Be!J153 -> 0 | L101: =Be!K153 -> 00:00:00 | M101: =Be!L153 -> 0 | N101: =Be!M153 -> 0 | P101: =Be!A147 -> 0
A102: 100. | B102: =Be!A154 -> 0 | C102: =Be!B154 -> 0 | D102: =Be!C154 -> 0 | E102: =Be!D154 -> 0 | F102: =Be!E154 -> 0 | G102: =Be!F154 -> 0 | H102: =Be!G154 -> 0 | I102: =Be!H154 -> 0 | J102: =Be!I154 -> 0 | K102: =Be!J154 -> 0 | L102: =Be!K154 -> 00:00:00 | M102: =Be!L154 -> 0 | N102: =Be!M154 -> 0 | P102: =Be!A147 -> 0
A103: 101. | B103: =Be!A159 -> 0 | C103: =Be!B159 -> 0 | D103: =Be!C159 -> 0 | E103: =Be!D159 -> 0 | F103: =Be!E159 -> 0 | G103: =Be!F159 -> 0 | H103: =Be!G159 -> 0 | I103: =Be!H159 -> 0 | J103: =Be!I159 -> 0 | K103: =Be!J159 -> 0 | L103: =Be!K159 -> 00:00:00 | M103: =Be!L159 -> 0 | N103: =Be!M159 -> 0 | P103: =Be!A157 -> 0
A104: 102. | B104: =Be!A160 -> 0 | C104: =Be!B160 -> 0 | D104: =Be!C160 -> 0 | E104: =Be!D160 -> 0 | F104: =Be!E160 -> 0 | G104: =Be!F160 -> 0 | H104: =Be!G160 -> 0 | I104: =Be!H160 -> 0 | J104: =Be!I160 -> 0 | K104: =Be!J160 -> 0 | L104: =Be!K160 -> 00:00:00 | M104: =Be!L160 -> 0 | N104: =Be!M160 -> 0 | P104: =Be!A157 -> 0
A105: 103. | B105: =Be!A161 -> 0 | C105: =Be!B161 -> 0 | D105: =Be!C161 -> 0 | E105: =Be!D161 -> 0 | F105: =Be!E161 -> 0 | G105: =Be!F161 -> 0 | H105: =Be!G161 -> 0 | I105: =Be!H161 -> 0 | J105: =Be!I161 -> 0 | K105: =Be!J161 -> 0 | L105: =Be!K161 -> 00:00:00 | M105: =Be!L161 -> 0 | N105: =Be!M161 -> 0 | P105: =Be!A157 -> 0
A106: 104. | B106: =Be!A162 -> 0 | C106: =Be!B162 -> 0 | D106: =Be!C162 -> 0 | E106: =Be!D162 -> 0 | F106: =Be!E162 -> 0 | G106: =Be!F162 -> 0 | H106: =Be!G162 -> 0 | I106: =Be!H162 -> 0 | J106: =Be!I162 -> 0 | K106: =Be!J162 -> 0 | L106: =Be!K162 -> 00:00:00 | M106: =Be!L162 -> 0 | N106: =Be!M162 -> 0 | P106: =Be!A157 -> 0
A107: 105. | B107: =Be!A163 -> 0 | C107: =Be!B163 -> 0 | D107: =Be!C163 -> 0 | E107: =Be!D163 -> 0 | F107: =Be!E163 -> 0 | G107: =Be!F163 -> 0 | H107: =Be!G163 -> 0 | I107: =Be!H163 -> 0 | J107: =Be!I163 -> 0 | K107: =Be!J163 -> 0 | L107: =Be!K163 -> 00:00:00 | M107: =Be!L163 -> 0 | N107: =Be!M163 -> 0 | P107: =Be!A157 -> 0
A108: 106. | B108: =Be!A164 -> 0 | C108: =Be!B164 -> 0 | D108: =Be!C164 -> 0 | E108: =Be!D164 -> 0 | F108: =Be!E164 -> 0 | G108: =Be!F164 -> 0 | H108: =Be!G164 -> 0 | I108: =Be!H164 -> 0 | J108: =Be!I164 -> 0 | K108: =Be!J164 -> 0 | L108: =Be!K164 -> 00:00:00 | M108: =Be!L164 -> 0 | N108: =Be!M164 -> 0 | P108: =Be!A157 -> 0
A109: 107. | B109: =Be!A169 -> 0 | C109: =Be!B169 -> 0 | D109: =Be!C169 -> 0 | E109: =Be!D169 -> 0 | F109: =Be!E169 -> 0 | G109: =Be!F169 -> 0 | H109: =Be!G169 -> 0 | I109: =Be!H169 -> 0 | J109: =Be!I169 -> 0 | K109: =Be!J169 -> 0 | L109: =Be!K169 -> 00:00:00 | M109: =Be!L169 -> 0 | N109: =Be!M169 -> 0 | P109: =Be!A167 -> 0
A110: 108. | B110: =Be!A170 -> 0 | C110: =Be!B170 -> 0 | D110: =Be!C170 -> 0 | E110: =Be!D170 -> 0 | F110: =Be!E170 -> 0 | G110: =Be!F170 -> 0 | H110: =Be!G170 -> 0 | I110: =Be!H170 -> 0 | J110: =Be!I170 -> 0 | K110: =Be!J170 -> 0 | L110: =Be!K170 -> 00:00:00 | M110: =Be!L170 -> 0 | N110: =Be!M170 -> 0 | P110: =Be!A167 -> 0
A111: 109. | B111: =Be!A171 -> 0 | C111: =Be!B171 -> 0 | D111: =Be!C171 -> 0 | E111: =Be!D171 -> 0 | F111: =Be!E171 -> 0 | G111: =Be!F171 -> 0 | H111: =Be!G171 -> 0 | I111: =Be!H171 -> 0 | J111: =Be!I171 -> 0 | K111: =Be!J171 -> 0 | L111: =Be!K171 -> 00:00:00 | M111: =Be!L171 -> 0 | N111: =Be!M171 -> 0 | P111: =Be!A167 -> 0
A112: 110. | B112: =Be!A172 -> 0 | C112: =Be!B172 -> 0 | D112: =Be!C172 -> 0 | E112: =Be!D172 -> 0 | F112: =Be!E172 -> 0 | G112: =Be!F172 -> 0 | H112: =Be!G172 -> 0 | I112: =Be!H172 -> 0 | J112: =Be!I172 -> 0 | K112: =Be!J172 -> 0 | L112: =Be!K172 -> 00:00:00 | M112: =Be!L172 -> 0 | N112: =Be!M172 -> 0 | P112: =Be!A167 -> 0
A113: 111. | B113: =Be!A173 -> 0 | C113: =Be!B173 -> 0 | D113: =Be!C173 -> 0 | E113: =Be!D173 -> 0 | F113: =Be!E173 -> 0 | G113: =Be!F173 -> 0 | H113: =Be!G173 -> 0 | I113: =Be!H173 -> 0 | J113: =Be!I173 -> 0 | K113: =Be!J173 -> 0 | L113: =Be!K173 -> 00:00:00 | M113: =Be!L173 -> 0 | N113: =Be!M173 -> 0 | P113: =Be!A167 -> 0
A114: 112. | B114: =Be!A174 -> 0 | C114: =Be!B174 -> 0 | D114: =Be!C174 -> 0 | E114: =Be!D174 -> 0 | F114: =Be!E174 -> 0 | G114: =Be!F174 -> 0 | H114: =Be!G174 -> 0 | I114: =Be!H174 -> 0 | J114: =Be!I174 -> 0 | K114: =Be!J174 -> 0 | L114: =Be!K174 -> 00:00:00 | M114: =Be!L174 -> 0 | N114: =Be!M174 -> 0 | P114: =Be!A167 -> 0
A115: 113. | B115: =Be!A179 -> 0 | C115: =Be!B179 -> 0 | D115: =Be!C179 -> 0 | E115: =Be!D179 -> 0 | F115: =Be!E179 -> 0 | G115: =Be!F179 -> 0 | H115: =Be!G179 -> 0 | I115: =Be!H179 -> 0 | J115: =Be!I179 -> 0 | K115: =Be!J179 -> 0 | L115: =Be!K179 -> 00:00:00 | M115: =Be!L179 -> 0 | N115: =Be!M179 -> 0 | P115: =Be!A177 -> 0
A116: 114. | B116: =Be!A180 -> 0 | C116: =Be!B180 -> 0 | D116: =Be!C180 -> 0 | E116: =Be!D180 -> 0 | F116: =Be!E180 -> 0 | G116: =Be!F180 -> 0 | H116: =Be!G180 -> 0 | I116: =Be!H180 -> 0 | J116: =Be!I180 -> 0 | K116: =Be!J180 -> 0 | L116: =Be!K180 -> 00:00:00 | M116: =Be!L180 -> 0 | N116: =Be!M180 -> 0 | P116: =Be!A177 -> 0
A117: 115. | B117: =Be!A181 -> 0 | C117: =Be!B181 -> 0 | D117: =Be!C181 -> 0 | E117: =Be!D181 -> 0 | F117: =Be!E181 -> 0 | G117: =Be!F181 -> 0 | H117: =Be!G181 -> 0 | I117: =Be!H181 -> 0 | J117: =Be!I181 -> 0 | K117: =Be!J181 -> 0 | L117: =Be!K181 -> 00:00:00 | M117: =Be!L181 -> 0 | N117: =Be!M181 -> 0 | P117: =Be!A177 -> 0
A118: 116. | B118: =Be!A182 -> 0 | C118: =Be!B182 -> 0 | D118: =Be!C182 -> 0 | E118: =Be!D182 -> 0 | F118: =Be!E182 -> 0 | G118: =Be!F182 -> 0 | H118: =Be!G182 -> 0 | I118: =Be!H182 -> 0 | J118: =Be!I182 -> 0 | K118: =Be!J182 -> 0 | L118: =Be!K182 -> 00:00:00 | M118: =Be!L182 -> 0 | N118: =Be!M182 -> 0 | P118: =Be!A177 -> 0
A119: 117. | B119: =Be!A183 -> 0 | C119: =Be!B183 -> 0 | D119: =Be!C183 -> 0 | E119: =Be!D183 -> 0 | F119: =Be!E183 -> 0 | G119: =Be!F183 -> 0 | H119: =Be!G183 -> 0 | I119: =Be!H183 -> 0 | J119: =Be!I183 -> 0 | K119: =Be!J183 -> 0 | L119: =Be!K183 -> 00:00:00 | M119: =Be!L183 -> 0 | N119: =Be!M183 -> 0 | P119: =Be!A177 -> 0
A120: 118. | B120: =Be!A184 -> 0 | C120: =Be!B184 -> 0 | D120: =Be!C184 -> 0 | E120: =Be!D184 -> 0 | F120: =Be!E184 -> 0 | G120: =Be!F184 -> 0 | H120: =Be!G184 -> 0 | I120: =Be!H184 -> 0 | J120: =Be!I184 -> 0 | K120: =Be!J184 -> 0 | L120: =Be!K184 -> 00:00:00 | M120: =Be!L184 -> 0 | N120: =Be!M184 -> 0 | P120: =Be!A177 -> 0
A121: 119. | B121: =Be!A189 -> 0 | C121: =Be!B189 -> 0 | D121: =Be!C189 -> 0 | E121: =Be!D189 -> 0 | F121: =Be!E189 -> 0 | G121: =Be!F189 -> 0 | H121: =Be!G189 -> 0 | I121: =Be!H189 -> 0 | J121: =Be!I189 -> 0 | K121: =Be!J189 -> 0 | L121: =Be!K189 -> 00:00:00 | M121: =Be!L189 -> 0 | N121: =Be!M189 -> 0 | P121: =Be!A187 -> 0
A122: 120. | B122: =Be!A190 -> 0 | C122: =Be!B190 -> 0 | D122: =Be!C190 -> 0 | E122: =Be!D190 -> 0 | F122: =Be!E190 -> 0 | G122: =Be!F190 -> 0 | H122: =Be!G190 -> 0 | I122: =Be!H190 -> 0 | J122: =Be!I190 -> 0 | K122: =Be!J190 -> 0 | L122: =Be!K190 -> 00:00:00 | M122: =Be!L190 -> 0 | N122: =Be!M190 -> 0 | P122: =Be!A187 -> 0
A123: 121. | B123: =Be!A191 -> 0 | C123: =Be!B191 -> 0 | D123: =Be!C191 -> 0 | E123: =Be!D191 -> 0 | F123: =Be!E191 -> 0 | G123: =Be!F191 -> 0 | H123: =Be!G191 -> 0 | I123: =Be!H191 -> 0 | J123: =Be!I191 -> 0 | K123: =Be!J191 -> 0 | L123: =Be!K191 -> 00:00:00 | M123: =Be!L191 -> 0 | N123: =Be!M191 -> 0 | P123: =Be!A187 -> 0
A124: 122. | B124: =Be!A192 -> 0 | C124: =Be!B192 -> 0 | D124: =Be!C192 -> 0 | E124: =Be!D192 -> 0 | F124: =Be!E192 -> 0 | G124: =Be!F192 -> 0 | H124: =Be!G192 -> 0 | I124: =Be!H192 -> 0 | J124: =Be!I192 -> 0 | K124: =Be!J192 -> 0 | L124: =Be!K192 -> 00:00:00 | M124: =Be!L192 -> 0 | N124: =Be!M192 -> 0 | P124: =Be!A187 -> 0
A125: 123. | B125: =Be!A193 -> 0 | C125: =Be!B193 -> 0 | D125: =Be!C193 -> 0 | E125: =Be!D193 -> 0 | F125: =Be!E193 -> 0 | G125: =Be!F193 -> 0 | H125: =Be!G193 -> 0 | I125: =Be!H193 -> 0 | J125: =Be!I193 -> 0 | K125: =Be!J193 -> 0 | L125: =Be!K193 -> 00:00:00 | M125: =Be!L193 -> 0 | N125: =Be!M193 -> 0 | P125: =Be!A187 -> 0
A126: 124. | B126: =Be!A194 -> 0 | C126: =Be!B194 -> 0 | D126: =Be!C194 -> 0 | E126: =Be!D194 -> 0 | F126: =Be!E194 -> 0 | G126: =Be!F194 -> 0 | H126: =Be!G194 -> 0 | I126: =Be!H194 -> 0 | J126: =Be!I194 -> 0 | K126: =Be!J194 -> 0 | L126: =Be!K194 -> 00:00:00 | M126: =Be!L194 -> 0 | N126: =Be!M194 -> 0 | P126: =Be!A187 -> 0
A127: 125. | B127: =Be!A199 -> 0 | C127: =Be!B199 -> 0 | D127: =Be!C199 -> 0 | E127: =Be!D199 -> 0 | F127: =Be!E199 -> 0 | G127: =Be!F199 -> 0 | H127: =Be!G199 -> 0 | I127: =Be!H199 -> 0 | J127: =Be!I199 -> 0 | K127: =Be!J199 -> 0 | L127: =Be!K199 -> 00:00:00 | M127: =Be!L199 -> 0 | N127: =Be!M199 -> 0 | P127: =Be!A197 -> 0
A128: 126. | B128: =Be!A200 -> 0 | C128: =Be!B200 -> 0 | D128: =Be!C200 -> 0 | E128: =Be!D200 -> 0 | F128: =Be!E200 -> 0 | G128: =Be!F200 -> 0 | H128: =Be!G200 -> 0 | I128: =Be!H200 -> 0 | J128: =Be!I200 -> 0 | K128: =Be!J200 -> 0 | L128: =Be!K200 -> 00:00:00 | M128: =Be!L200 -> 0 | N128: =Be!M200 -> 0 | P128: =Be!A197 -> 0
A129: 127. | B129: =Be!A201 -> 0 | C129: =Be!B201 -> 0 | D129: =Be!C201 -> 0 | E129: =Be!D201 -> 0 | F129: =Be!E201 -> 0 | G129: =Be!F201 -> 0 | H129: =Be!G201 -> 0 | I129: =Be!H201 -> 0 | J129: =Be!I201 -> 0 | K129: =Be!J201 -> 0 | L129: =Be!K201 -> 00:00:00 | M129: =Be!L201 -> 0 | N129: =Be!M201 -> 0 | P129: =Be!A197 -> 0
A130: 128. | B130: =Be!A202 -> 0 | C130: =Be!B202 -> 0 | D130: =Be!C202 -> 0 | E130: =Be!D202 -> 0 | F130: =Be!E202 -> 0 | G130: =Be!F202 -> 0 | H130: =Be!G202 -> 0 | I130: =Be!H202 -> 0 | J130: =Be!I202 -> 0 | K130: =Be!J202 -> 0 | L130: =Be!K202 -> 00:00:00 | M130: =Be!L202 -> 0 | N130: =Be!M202 -> 0 | P130: =Be!A197 -> 0
A131: 129. | B131: =Be!A203 -> 0 | C131: =Be!B203 -> 0 | D131: =Be!C203 -> 0 | E131: =Be!D203 -> 0 | F131: =Be!E203 -> 0 | G131: =Be!F203 -> 0 | H131: =Be!G203 -> 0 | I131: =Be!H203 -> 0 | J131: =Be!I203 -> 0 | K131: =Be!J203 -> 0 | L131: =Be!K203 -> 00:00:00 | M131: =Be!L203 -> 0 | N131: =Be!M203 -> 0 | P131: =Be!A197 -> 0
A132: 130. | B132: =Be!A204 -> 0 | C132: =Be!B204 -> 0 | D132: =Be!C204 -> 0 | E132: =Be!D204 -> 0 | F132: =Be!E204 -> 0 | G132: =Be!F204 -> 0 | H132: =Be!G204 -> 0 | I132: =Be!H204 -> 0 | J132: =Be!I204 -> 0 | K132: =Be!J204 -> 0 | L132: =Be!K204 -> 00:00:00 | M132: =Be!L204 -> 0 | N132: =Be!M204 -> 0 | P132: =Be!A197 -> 0
A133: 131. | B133: =Be!A209 -> 0 | C133: =Be!B209 -> 0 | D133: =Be!C209 -> 0 | E133: =Be!D209 -> 0 | F133: =Be!E209 -> 0 | G133: =Be!F209 -> 0 | H133: =Be!G209 -> 0 | I133: =Be!H209 -> 0 | J133: =Be!I209 -> 0 | K133: =Be!J209 -> 0 | L133: =Be!K209 -> 00:00:00 | M133: =Be!L209 -> 0 | N133: =Be!M209 -> 0 | P133: =Be!A207 -> 0
A134: 132. | B134: =Be!A210 -> 0 | C134: =Be!B210 -> 0 | D134: =Be!C210 -> 0 | E134: =Be!D210 -> 0 | F134: =Be!E210 -> 0 | G134: =Be!F210 -> 0 | H134: =Be!G210 -> 0 | I134: =Be!H210 -> 0 | J134: =Be!I210 -> 0 | K134: =Be!J210 -> 0 | L134: =Be!K210 -> 00:00:00 | M134: =Be!L210 -> 0 | N134: =Be!M210 -> 0 | P134: =Be!A207 -> 0
A135: 133. | B135: =Be!A211 -> 0 | C135: =Be!B211 -> 0 | D135: =Be!C211 -> 0 | E135: =Be!D211 -> 0 | F135: =Be!E211 -> 0 | G135: =Be!F211 -> 0 | H135: =Be!G211 -> 0 | I135: =Be!H211 -> 0 | J135: =Be!I211 -> 0 | K135: =Be!J211 -> 0 | L135: =Be!K211 -> 00:00:00 | M135: =Be!L211 -> 0 | N135: =Be!M211 -> 0 | P135: =Be!A207 -> 0
A136: 134. | B136: =Be!A212 -> 0 | C136: =Be!B212 -> 0 | D136: =Be!C212 -> 0 | E136: =Be!D212 -> 0 | F136: =Be!E212 -> 0 | G136: =Be!F212 -> 0 | H136: =Be!G212 -> 0 | I136: =Be!H212 -> 0 | J136: =Be!I212 -> 0 | K136: =Be!J212 -> 0 | L136: =Be!K212 -> 00:00:00 | M136: =Be!L212 -> 0 | N136: =Be!M212 -> 0 | P136: =Be!A207 -> 0
A137: 135. | B137: =Be!A213 -> 0 | C137: =Be!B213 -> 0 | D137: =Be!C213 -> 0 | E137: =Be!D213 -> 0 | F137: =Be!E213 -> 0 | G137: =Be!F213 -> 0 | H137: =Be!G213 -> 0 | I137: =Be!H213 -> 0 | J137: =Be!I213 -> 0 | K137: =Be!J213 -> 0 | L137: =Be!K213 -> 00:00:00 | M137: =Be!L213 -> 0 | N137: =Be!M213 -> 0 | P137: =Be!A207 -> 0
A138: 136. | B138: =Be!A214 -> 0 | C138: =Be!B214 -> 0 | D138: =Be!C214 -> 0 | E138: =Be!D214 -> 0 | F138: =Be!E214 -> 0 | G138: =Be!F214 -> 0 | H138: =Be!G214 -> 0 | I138: =Be!H214 -> 0 | J138: =Be!I214 -> 0 | K138: =Be!J214 -> 0 | L138: =Be!K214 -> 00:00:00 | M138: =Be!L214 -> 0 | N138: =Be!M214 -> 0 | P138: =Be!A207 -> 0
A139: 137. | B139: =Be!A219 -> 0 | C139: =Be!B219 -> 0 | D139: =Be!C219 -> 0 | E139: =Be!D219 -> 0 | F139: =Be!E219 -> 0 | G139: =Be!F219 -> 0 | H139: =Be!G219 -> 0 | I139: =Be!H219 -> 0 | J139: =Be!I219 -> 0 | K139: =Be!J219 -> 0 | L139: =Be!K219 -> 00:00:00 | M139: =Be!L219 -> 0 | N139: =Be!M219 -> 0 | P139: =Be!A217 -> 0
A140: 138. | B140: =Be!A220 -> 0 | C140: =Be!B220 -> 0 | D140: =Be!C220 -> 0 | E140: =Be!D220 -> 0 | F140: =Be!E220 -> 0 | G140: =Be!F220 -> 0 | H140: =Be!G220 -> 0 | I140: =Be!H220 -> 0 | J140: =Be!I220 -> 0 | K140: =Be!J220 -> 0 | L140: =Be!K220 -> 00:00:00 | M140: =Be!L220 -> 0 | N140: =Be!M220 -> 0 | P140: =Be!A217 -> 0
A141: 139. | B141: =Be!A221 -> 0 | C141: =Be!B221 -> 0 | D141: =Be!C221 -> 0 | E141: =Be!D221 -> 0 | F141: =Be!E221 -> 0 | G141: =Be!F221 -> 0 | H141: =Be!G221 -> 0 | I141: =Be!H221 -> 0 | J141: =Be!I221 -> 0 | K141: =Be!J221 -> 0 | L141: =Be!K221 -> 00:00:00 | M141: =Be!L221 -> 0 | N141: =Be!M221 -> 0 | P141: =Be!A217 -> 0
A142: 140. | B142: =Be!A222 -> 0 | C142: =Be!B222 -> 0 | D142: =Be!C222 -> 0 | E142: =Be!D222 -> 0 | F142: =Be!E222 -> 0 | G142: =Be!F222 -> 0 | H142: =Be!G222 -> 0 | I142: =Be!H222 -> 0 | J142: =Be!I222 -> 0 | K142: =Be!J222 -> 0 | L142: =Be!K222 -> 00:00:00 | M142: =Be!L222 -> 0 | N142: =Be!M222 -> 0 | P142: =Be!A217 -> 0
A143: 141. | B143: =Be!A223 -> 0 | C143: =Be!B223 -> 0 | D143: =Be!C223 -> 0 | E143: =Be!D223 -> 0 | F143: =Be!E223 -> 0 | G143: =Be!F223 -> 0 | H143: =Be!G223 -> 0 | I143: =Be!H223 -> 0 | J143: =Be!I223 -> 0 | K143: =Be!J223 -> 0 | L143: =Be!K223 -> 00:00:00 | M143: =Be!L223 -> 0 | N143: =Be!M223 -> 0 | P143: =Be!A217 -> 0
A144: 142. | B144: =Be!A224 -> 0 | C144: =Be!B224 -> 0 | D144: =Be!C224 -> 0 | E144: =Be!D224 -> 0 | F144: =Be!E224 -> 0 | G144: =Be!F224 -> 0 | H144: =Be!G224 -> 0 | I144: =Be!H224 -> 0 | J144: =Be!I224 -> 0 | K144: =Be!J224 -> 0 | L144: =Be!K224 -> 00:00:00 | M144: =Be!L224 -> 0 | N144: =Be!M224 -> 0 | P144: =Be!A217 -> 0
A145: 143. | B145: =Be!A229 -> 0 | C145: =Be!B229 -> 0 | D145: =Be!C229 -> 0 | E145: =Be!D229 -> 0 | F145: =Be!E229 -> 0 | G145: =Be!F229 -> 0 | H145: =Be!G229 -> 0 | I145: =Be!H229 -> 0 | J145: =Be!I229 -> 0 | K145: =Be!J229 -> 0 | L145: =Be!K229 -> 00:00:00 | M145: =Be!L229 -> 0 | N145: =Be!M229 -> 0 | P145: =Be!A227 -> 0
A146: 144. | B146: =Be!A230 -> 0 | C146: =Be!B230 -> 0 | D146: =Be!C230 -> 0 | E146: =Be!D230 -> 0 | F146: =Be!E230 -> 0 | G146: =Be!F230 -> 0 | H146: =Be!G230 -> 0 | I146: =Be!H230 -> 0 | J146: =Be!I230 -> 0 | K146: =Be!J230 -> 0 | L146: =Be!K230 -> 00:00:00 | M146: =Be!L230 -> 0 | N146: =Be!M230 -> 0 | P146: =Be!A227 -> 0
A147: 145. | B147: =Be!A231 -> 0 | C147: =Be!B231 -> 0 | D147: =Be!C231 -> 0 | E147: =Be!D231 -> 0 | F147: =Be!E231 -> 0 | G147: =Be!F231 -> 0 | H147: =Be!G231 -> 0 | I147: =Be!H231 -> 0 | J147: =Be!I231 -> 0 | K147: =Be!J231 -> 0 | L147: =Be!K231 -> 00:00:00 | M147: =Be!L231 -> 0 | N147: =Be!M231 -> 0 | P147: =Be!A227 -> 0
A148: 146. | B148: =Be!A232 -> 0 | C148: =Be!B232 -> 0 | D148: =Be!C232 -> 0 | E148: =Be!D232 -> 0 | F148: =Be!E232 -> 0 | G148: =Be!F232 -> 0 | H148: =Be!G232 -> 0 | I148: =Be!H232 -> 0 | J148: =Be!I232 -> 0 | K148: =Be!J232 -> 0 | L148: =Be!K232 -> 00:00:00 | M148: =Be!L232 -> 0 | N148: =Be!M232 -> 0 | P148: =Be!A227 -> 0
A149: 147. | B149: =Be!A233 -> 0 | C149: =Be!B233 -> 0 | D149: =Be!C233 -> 0 | E149: =Be!D233 -> 0 | F149: =Be!E233 -> 0 | G149: =Be!F233 -> 0 | H149: =Be!G233 -> 0 | I149: =Be!H233 -> 0 | J149: =Be!I233 -> 0 | K149: =Be!J233 -> 0 | L149: =Be!K233 -> 00:00:00 | M149: =Be!L233 -> 0 | N149: =Be!M233 -> 0 | P149: =Be!A227 -> 0
A150: 148. | B150: =Be!A234 -> 0 | C150: =Be!B234 -> 0 | D150: =Be!C234 -> 0 | E150: =Be!D234 -> 0 | F150: =Be!E234 -> 0 | G150: =Be!F234 -> 0 | H150: =Be!G234 -> 0 | I150: =Be!H234 -> 0 | J150: =Be!I234 -> 0 | K150: =Be!J234 -> 0 | L150: =Be!K234 -> 00:00:00 | M150: =Be!L234 -> 0 | N150: =Be!M234 -> 0 | P150: =Be!A227 -> 0
A151: 149. | B151: =Be!A239 -> 0 | C151: =Be!B239 -> 0 | D151: =Be!C239 -> 0 | E151: =Be!D239 -> 0 | F151: =Be!E239 -> 0 | G151: =Be!F239 -> 0 | H151: =Be!G239 -> 0 | I151: =Be!H239 -> 0 | J151: =Be!I239 -> 0 | K151: =Be!J239 -> 0 | L151: =Be!K239 -> 00:00:00 | M151: =Be!L239 -> 0 | N151: =Be!M239 -> 0 | P151: =Be!A237 -> 0
A152: 150. | B152: =Be!A240 -> 0 | C152: =Be!B240 -> 0 | D152: =Be!C240 -> 0 | E152: =Be!D240 -> 0 | F152: =Be!E240 -> 0 | G152: =Be!F240 -> 0 | H152: =Be!G240 -> 0 | I152: =Be!H240 -> 0 | J152: =Be!I240 -> 0 | K152: =Be!J240 -> 0 | L152: =Be!K240 -> 00:00:00 | M152: =Be!L240 -> 0 | N152: =Be!M240 -> 0 | P152: =Be!A237 -> 0
A153: 151. | B153: =Be!A241 -> 0 | C153: =Be!B241 -> 0 | D153: =Be!C241 -> 0 | E153: =Be!D241 -> 0 | F153: =Be!E241 -> 0 | G153: =Be!F241 -> 0 | H153: =Be!G241 -> 0 | I153: =Be!H241 -> 0 | J153: =Be!I241 -> 0 | K153: =Be!J241 -> 0 | L153: =Be!K241 -> 00:00:00 | M153: =Be!L241 -> 0 | N153: =Be!M241 -> 0 | P153: =Be!A237 -> 0
A154: 152. | B154: =Be!A242 -> 0 | C154: =Be!B242 -> 0 | D154: =Be!C242 -> 0 | E154: =Be!D242 -> 0 | F154: =Be!E242 -> 0 | G154: =Be!F242 -> 0 | H154: =Be!G242 -> 0 | I154: =Be!H242 -> 0 | J154: =Be!I242 -> 0 | K154: =Be!J242 -> 0 | L154: =Be!K242 -> 00:00:00 | M154: =Be!L242 -> 0 | N154: =Be!M242 -> 0 | P154: =Be!A237 -> 0
A155: 153. | B155: =Be!A243 -> 0 | C155: =Be!B243 -> 0 | D155: =Be!C243 -> 0 | E155: =Be!D243 -> 0 | F155: =Be!E243 -> 0 | G155: =Be!F243 -> 0 | H155: =Be!G243 -> 0 | I155: =Be!H243 -> 0 | J155: =Be!I243 -> 0 | K155: =Be!J243 -> 0 | L155: =Be!K243 -> 00:00:00 | M155: =Be!L243 -> 0 | N155: =Be!M243 -> 0 | P155: =Be!A237 -> 0
A156: 154. | B156: =Be!A244 -> 0 | C156: =Be!B244 -> 0 | D156: =Be!C244 -> 0 | E156: =Be!D244 -> 0 | F156: =Be!E244 -> 0 | G156: =Be!F244 -> 0 | H156: =Be!G244 -> 0 | I156: =Be!H244 -> 0 | J156: =Be!I244 -> 0 | K156: =Be!J244 -> 0 | L156: =Be!K244 -> 00:00:00 | M156: =Be!L244 -> 0 | N156: =Be!M244 -> 0 | P156: =Be!A237 -> 0

Sheet Csapat
A1: IV. korcsoport FIÚ CSAPAT verseny (Rendezés Ctrl + r )
A2: Ssz | B2: Iskola | C2: Pont
A3: 1. | B3: =Be!$A$27&CHAR(10)&Be!$A$29&" "&Be!$M$29&" "&Be!$A$30&" "&Be!$M$30&CHAR(10)&Be!$A$31&" "&Be!$M$31&" "&Be!$A$32&" "&Be!$M$32&CHAR(10)&Be!$A$33&" "&Be!$M$33&" "&Be!$A$34&" "&Be!$M$34 -> Szekszárdi Dienes V. Ált. Isk. Loe Dávid 555 Füle Richárd 688 Kocsis Martin 728 Könyves László Lorenzó 745 Radnóti Gergely Attila 814 Szoboszlai Máté 579 | C3: =Be!$O$29 -> 3554
A4: 2. | B4: =Be!$A$57&CHAR(10)&Be!$A$59&" "&Be!$M$59&" "&Be!$A$60&" "&Be!$M$60&CHAR(10)&Be!$A$61&" "&Be!$M$61&" "&Be!$A$62&" "&Be!$M$62&CHAR(10)&Be!$A$63&" "&Be!$M$63&" "&Be!$A$64&" "&Be!$M$64 -> Szekszárdi Babits M. Ált. Isk. Bíró Botond 701 Fodor Zalán 584 Gréczy Bálint 761 Kappel Márton 647 Palkó Boldizsár 671 Gréczy Dániel 666 | C4: =Be!$O$59 -> 3446
A5: 3. | B5: =Be!$A$67&CHAR(10)&Be!$A$69&" "&Be!$M$69&" "&Be!$A$70&" "&Be!$M$70&CHAR(10)&Be!$A$71&" "&Be!$M$71&" "&Be!$A$72&" "&Be!$M$72&CHAR(10)&Be!$A$73&" "&Be!$M$73&" "&Be!$A$74&" "&Be!$M$74 -> Szt. Orsolya Bencés Ált. Isk. Halmai Zsombor 736 Kapinya Péter 709 Kovács Barnabás 697 Szabó Dominik 671 Vida Bence 539 Tobler Péter 608 | C5: =Be!$O$69 -> 3421
A6: 4. | B6: =Be!$A$87&CHAR(10)&Be!$A$89&" "&Be!$M$89&" "&Be!$A$90&" "&Be!$M$90&CHAR(10)&Be!$A$91&" "&Be!$M$91&" "&Be!$A$92&" "&Be!$M$92&CHAR(10)&Be!$A$93&" "&Be!$M$93&" "&Be!$A$94&" "&Be!$M$94 -> Nagydorogi Széchényi Sándor Ált. Isk. Csonka Ármin Milán 631 Kocsis Damáz 503 Kovács Tibor 644 Molnár Milán Marcell 664 Nyári László András 568 Sáfrány Dominik Ferenc 797 | C6: =Be!$O$89 -> 3304
A7: 5. | B7: =Be!$A$77&CHAR(10)&Be!$A$79&" "&Be!$M$79&" "&Be!$A$80&" "&Be!$M$80&CHAR(10)&Be!$A$81&" "&Be!$M$81&" "&Be!$A$82&" "&Be!$M$82&CHAR(10)&Be!$A$83&" "&Be!$M$83&" "&Be!$A$84&" "&Be!$M$84 -> Zombai Általános Iskola Csibi Olivér 661 Marázi Archilles 495 Orsós Kevin Zsolt 644 Szemes Márk 634 Häckl Ábel 523 0 | C7: =Be!$O$79 -> 2957
A8: 6. | B8: =Be!$A$47&CHAR(10)&Be!$A$49&" "&Be!$M$49&" "&Be!$A$50&" "&Be!$M$50&CHAR(10)&Be!$A$51&" "&Be!$M$51&" "&Be!$A$52&" "&Be!$M$52&CHAR(10)&Be!$A$53&" "&Be!$M$53&" "&Be!$A$54&" "&Be!$M$54 -> Bonyhádi Petőfi S.E.Gimn. Ált. Isk. Garay Gergő 546 Hucker Olivér 477 Németh Kolos 505 Schiszler Ádám 484 Sánta Balázs 528 Vukálovics Ákos 623 | C8: =Be!$O$49 -> 2686
A9: 7. | B9: =Be!$A$97&CHAR(10)&Be!$A$99&" "&Be!$M$99&" "&Be!$A$100&" "&Be!$M$100&CHAR(10)&Be!$A$101&" "&Be!$M$101&" "&Be!$A$102&" "&Be!$M$102&CHAR(10)&Be!$A$103&" "&Be!$M$103&" "&Be!$A$104&" "&Be!$M$104 -> Tolnai Wosinsky M. Ált. Isk. Janthó Márk 518 Novák Dávid Ferenc 481 Potyondi Botond 361 Straubinger Marcell 460 Tóth Richárd 450 0 | C9: =Be!$O$99 -> 2270
A10: 8. | B10: =Csapat!C5 -> 3421 | C10: =Be!$O$39 -> 0
A11: 9. | B11: =Be!$A$107&CHAR(10)&Be!$A$109&" "&Be!$M$109&" "&Be!$A$110&" "&Be!$M$110&CHAR(10)&Be!$A$111&" "&Be!$M$111&" "&Be!$A$112&" "&Be!$M$112&CHAR(10)&Be!$A$113&" "&Be!$M$113&" "&Be!$A$114&" "&Be!$M$114 -> 0 0 0 0 0 0 | C11: =Be!$O$109 -> 0
A12: 10. | B12: =Be!$A$117&CHAR(10)&Be!$A$119&" "&Be!$M$119&" "&Be!$A$120&" "&Be!$M$120&CHAR(10)&Be!$A$121&" "&Be!$M$121&" "&Be!$A$122&" "&Be!$M$122&CHAR(10)&Be!$A$123&" "&Be!$M$123&" "&Be!$A$124&" "&Be!$M$124 -> 0 0 0 0 0 0 | C12: =Be!$O$119 -> 0
A13: 11. | B13: =Be!$A$127&CHAR(10)&Be!$A$129&" "&Be!$M$129&" "&Be!$A$130&" "&Be!$M$130&CHAR(10)&Be!$A$131&" "&Be!$M$131&" "&Be!$A$132&" "&Be!$M$132&CHAR(10)&Be!$A$133&" "&Be!$M$133&" "&Be!$A$134&" "&Be!$M$134 -> 0 0 0 0 0 0 | C13: =Be!$O$129 -> 0
A14: 12. | B14: =Be!$A$137&CHAR(10)&Be!$A$139&" "&Be!$M$139&" "&Be!$A$140&" "&Be!$M$140&CHAR(10)&Be!$A$141&" "&Be!$M$141&" "&Be!$A$142&" "&Be!$M$142&CHAR(10)&Be!$A$143&" "&Be!$M$143&" "&Be!A$144&" "&Be!$M$144 -> 0 0 0 0 0 0 | C14: =Be!$O$139 -> 0
A15: 13. | B15: =Be!$A$147&CHAR(10)&Be!$A$149&" "&Be!$M$149&" "&Be!$A$150&" "&Be!$M$150&CHAR(10)&Be!$A$151&" "&Be!$M$151&" "&Be!$A$152&" "&Be!$M$152&CHAR(10)&Be!$A$153&" "&Be!$M$153&" "&Be!$A$154&" "&Be!$M$154 -> 0 0 0 0 0 0 | C15: =Be!$O$149 -> 0
A16: 14. | B16: =Be!$A$157&CHAR(10)&Be!$A$159&" "&Be!$M$159&" "&Be!$A$160&" "&Be!$M$160&CHAR(10)&Be!$A$161&" "&Be!$M$161&" "&Be!$A$162&" "&Be!$M$162&CHAR(10)&Be!$A$163&" "&Be!$M$163&" "&Be!$A$164&" "&Be!$M$164 -> 0 0 0 0 0 0 | C16: =Be!$O$159 -> 0
A17: 15. | B17: =Be!$A$167&CHAR(10)&Be!$A$169&" "&Be!$M$169&" "&Be!$A$170&" "&Be!$M$170&CHAR(10)&Be!$A$171&" "&Be!$M$171&" "&Be!$A$172&" "&Be!$M$172&CHAR(10)&Be!$A$173&" "&Be!$M$173&" "&Be!$A$174&" "&Be!$M$174 -> 0 0 0 0 0 0 | C17: =Be!$O$169 -> 0
A18: 16. | B18: =Be!$A$177&CHAR(10)&Be!$A$179&" "&Be!$M$179&" "&Be!$A$180&" "&Be!$M$180&CHAR(10)&Be!$A$181&" "&Be!$M$181&" "&Be!$A$182&" "&Be!$M$182&CHAR(10)&Be!$A$183&" "&Be!$M$183&" "&Be!$A$184&" "&Be!$M$184 -> 0 0 0 0 0 0 | C18: =Be!$O$179 -> 0
A19: 17. | B19: =Be!$A$187&CHAR(10)&Be!$A$189&" "&Be!$M$189&" "&Be!$A$190&" "&Be!$M$190&CHAR(10)&Be!$A$191&" "&Be!$M$191&" "&Be!$A$192&" "&Be!$M$192&CHAR(10)&Be!$A$193&" "&Be!$M$193&" "&Be!$A$194&" "&Be!$M$194 -> 0 0 0 0 0 0 | C19: =Be!$O$189 -> 0
A20: 18. | B20: =Be!$A$197&CHAR(10)&Be!$A$199&" "&Be!$M$199&" "&Be!$A$200&" "&Be!$M$200&CHAR(10)&Be!$A$201&" "&Be!$M$201&" "&Be!$A$202&" "&Be!$M$202&CHAR(10)&Be!$A$203&" "&Be!$M$203&" "&Be!$A$204&" "&Be!$M$204 -> 0 0 0 0 0 0 | C20: =Be!$O$199 -> 0
A21: 19. | B21: =Be!$A$207&CHAR(10)&Be!$A$209&" "&Be!$M$209&" "&Be!$A$210&" "&Be!$M$210&CHAR(10)&Be!$A$211&" "&Be!$M$211&" "&Be!$A$212&" "&Be!$M$212&CHAR(10)&Be!$A$213&" "&Be!$M$213&" "&Be!$A$214&" "&Be!$M$214 -> 0 0 0 0 0 0 | C21: =Be!$O$209 -> 0
A22: 20. | B22: =Be!$A$217&CHAR(10)&Be!$A$219&" "&Be!$M$219&" "&Be!$A$220&" "&Be!$M$220&CHAR(10)&Be!$A$221&" "&Be!$M$221&" "&Be!$A$222&" "&Be!$M$222&CHAR(10)&Be!$A$223&" "&Be!$M$223&" "&Be!$A$224&" "&Be!$M$224 -> 0 0 0 0 0 0 | C22: =Be!$O$219 -> 0
A23: 21. | B23: =Be!$A$227&CHAR(10)&Be!$A$229&" "&Be!$M$229&" "&Be!$A$230&" "&Be!$M$230&CHAR(10)&Be!$A$231&" "&Be!$M$231&" "&Be!$A$232&" "&Be!$M$232&CHAR(10)&Be!$A$233&" "&Be!$M$233&" "&Be!$A$234&" "&Be!$M$234 -> 0 0 0 0 0 0 | C23: =Be!$O$229 -> 0
A24: 22. | B24: =Be!$A$237&CHAR(10)&Be!$A$239&" "&Be!$M$239&" "&Be!$A$240&" "&Be!$M$240&CHAR(10)&Be!$A$241&" "&Be!$M$241&" "&Be!$A$242&" "&Be!$M$242&CHAR(10)&Be!$A$243&" "&Be!$M$243&" "&Be!$A$244&" "&Be!$M$244 -> 0 0 0 0 0 0 | C24: =Be!$O$239 -> 0
